PublisherLabel,PublisherURI,"Body name","Body","Service area","Service division","Responsible unit","Expenses type","Date","Transaction","Amount","Supplier name"
"Bracknell Forest Council","http://opendatacommunities.org/id/unitary-authority/bracknell-forest","","","Holding Accounts in Budget Book COF","Corporate Services - Office Services","Postal Services","Postage",07/08/2018 00:00:00,"6667576",819.71,"WHISTL"
"Bracknell Forest Council","http://opendatacommunities.org/id/unitary-authority/bracknell-forest","","","Holding Accounts in Budget Book COF","Corporate Services - Office Services","Postal Services","Postage",11/09/2018 00:00:00,"6668208",746.61,"WHISTL"
"Bracknell Forest Council","http://opendatacommunities.org/id/unitary-authority/bracknell-forest","","","Holding Accounts in Budget Book COF","Corporate Services - Office Services","Postal Services","Postage",18/09/2018 00:00:00,"6668781",790.79,"WHISTL"
"Bracknell Forest Council","http://opendatacommunities.org/id/unitary-authority/bracknell-forest","","","Holding Accounts in Budget Book COF","Corporate Services - Office Services","Postal Services","Postage",26/09/2018 00:00:00,"6669166",2057.4,"WHISTL"
"Bracknell Forest Council","http://opendatacommunities.org/id/unitary-authority/bracknell-forest","","","Holding Accounts in Budget Book COF","Corporate Services - Office Services","Postal Services","Postage",31/08/2018 00:00:00,"6669358",800,"DX NETWORK SERVICES LTD"
"Bracknell Forest Council","http://opendatacommunities.org/id/unitary-authority/bracknell-forest","","","Holding Accounts in Budget Book COF","Corporate Services - Office Services","Postal Services","Postage",03/10/2018 00:00:00,"6669833",712.34,"WHISTL"
"Bracknell Forest Council","http://opendatacommunities.org/id/unitary-authority/bracknell-forest","","","Holding Accounts in Budget Book COF","Corporate Services - Office Services","Postal Services","Postage",11/10/2018 00:00:00,"6670634",695.74,"WHISTL"
"Bracknell Forest Council","http://opendatacommunities.org/id/unitary-authority/bracknell-forest","","","Holding Accounts in Budget Book COF","Corporate Services - Office Services","Postal Services","Postage",17/10/2018 00:00:00,"6670694",1304.35,"WHISTL"
"Bracknell Forest Council","http://opendatacommunities.org/id/unitary-authority/bracknell-forest","","","Holding Accounts in Budget Book COF","Corporate Services - Office Services","Postal Services","Postage",26/10/2018 00:00:00,"6670920",1995.61,"WHISTL"
"Bracknell Forest Council","http://opendatacommunities.org/id/unitary-authority/bracknell-forest","","","Holding Accounts in Budget Book COF","Corporate Services - Office Services","Postal Services","Postage",28/10/2018 00:00:00,"6671383",909.2,"WHISTL"
"Bracknell Forest Council","http://opendatacommunities.org/id/unitary-authority/bracknell-forest","","","Holding Accounts in Budget Book COF","Corporate Services - Office Services","Postal Services","Postage",06/11/2018 00:00:00,"6671594",531.82,"WHISTL"
"Bracknell Forest Council","http://opendatacommunities.org/id/unitary-authority/bracknell-forest","","","Holding Accounts in Budget Book COF","Corporate Services - Office Services","Postal Services","Postage",03/10/2018 00:00:00,"6671618",1500,"FP FRANCOTYP POSTALIA LIMITED"
"Bracknell Forest Council","http://opendatacommunities.org/id/unitary-authority/bracknell-forest","","","Holding Accounts in Budget Book COF","Corporate Services - Office Services","Postal Services","Postage",15/11/2018 00:00:00,"6672222",1529.17,"WHISTL"
"Bracknell Forest Council","http://opendatacommunities.org/id/unitary-authority/bracknell-forest","","","Holding Accounts in Budget Book COF","Corporate Services - Office Services","Postal Services","Postage",20/11/2018 00:00:00,"6672412",1002.26,"WHISTL"
"Bracknell Forest Council","http://opendatacommunities.org/id/unitary-authority/bracknell-forest","","","Holding Accounts in Budget Book COF","Corporate Services - Office Services","Postal Services","Postage",19/11/2018 00:00:00,"6672500",1500,"FP FRANCOTYP POSTALIA LIMITED"
"Bracknell Forest Council","http://opendatacommunities.org/id/unitary-authority/bracknell-forest","","","Holding Accounts in Budget Book COF","Corporate Services - Office Services","Postal Services","Postage",29/11/2018 00:00:00,"6672844",970.13,"WHISTL"
"Bracknell Forest Council","http://opendatacommunities.org/id/unitary-authority/bracknell-forest","","","Business Support","Premises Development","Easthampstead Park Centre - Catering","Cost of Goods Sold",30/08/2018 00:00:00,"30341768",453.85,"MIKO COFFEE LTD"
"Bracknell Forest Council","http://opendatacommunities.org/id/unitary-authority/bracknell-forest","","","Business Support","Premises Development","Easthampstead Park Centre - Catering","Cost of Goods Sold",30/08/2018 00:00:00,"30341768",36,"MIKO COFFEE LTD"
"Bracknell Forest Council","http://opendatacommunities.org/id/unitary-authority/bracknell-forest","","","Business Support","Premises Development","Easthampstead Park Centre - Catering","Cost of Goods Sold",30/08/2018 00:00:00,"30341768",73.05,"THE QUALITY MEAT COMPANY"
"Bracknell Forest Council","http://opendatacommunities.org/id/unitary-authority/bracknell-forest","","","Business Support","Premises Development","Easthampstead Park Centre - Catering","Cost of Goods Sold",31/08/2018 00:00:00,"30341768",81.72,"BFS GROUP LTD T/A BIDFOOD"
"Bracknell Forest Council","http://opendatacommunities.org/id/unitary-authority/bracknell-forest","","","Business Support","Premises Development","Easthampstead Park Centre - Catering","Cost of Goods Sold",31/08/2018 00:00:00,"30341768",282.12,"BRAKE BROS FOODSERVICE LTD"
"Bracknell Forest Council","http://opendatacommunities.org/id/unitary-authority/bracknell-forest","","","Business Support","Premises Development","Easthampstead Park Centre - Catering","Cost of Goods Sold",31/08/2018 00:00:00,"30341768",483.69,"THE QUALITY MEAT COMPANY"
"Bracknell Forest Council","http://opendatacommunities.org/id/unitary-authority/bracknell-forest","","","Business Support","Premises Development","Easthampstead Park Centre - Catering","Cost of Goods Sold",01/09/2018 00:00:00,"30341768",130.48,"THE QUALITY MEAT COMPANY"
"Bracknell Forest Council","http://opendatacommunities.org/id/unitary-authority/bracknell-forest","","","Business Support","Premises Development","Easthampstead Park Centre - Catering","Cost of Goods Sold",03/09/2018 00:00:00,"30341768",159.29,"THE QUALITY MEAT COMPANY"
"Bracknell Forest Council","http://opendatacommunities.org/id/unitary-authority/bracknell-forest","","","Business Support","Premises Development","Easthampstead Park Centre - Catering","Cost of Goods Sold",04/09/2018 00:00:00,"30341768",605.03,"BFS GROUP LTD T/A BIDFOOD"
"Bracknell Forest Council","http://opendatacommunities.org/id/unitary-authority/bracknell-forest","","","Business Support","Premises Development","Easthampstead Park Centre - Catering","Cost of Goods Sold",04/09/2018 00:00:00,"30341768",29.05,"BFS GROUP LTD T/A BIDFOOD"
"Bracknell Forest Council","http://opendatacommunities.org/id/unitary-authority/bracknell-forest","","","Business Support","Premises Development","Easthampstead Park Centre - Catering","Cost of Goods Sold",04/09/2018 00:00:00,"30341768",71.78,"KFF - KENT FROZEN FOODS LTD"
"Bracknell Forest Council","http://opendatacommunities.org/id/unitary-authority/bracknell-forest","","","Business Support","Premises Development","Easthampstead Park Centre - Catering","Free Milk",06/01/2018 00:00:00,"30342118",130.38,"MULLER MILK & INGREDIENT"
"Bracknell Forest Council","http://opendatacommunities.org/id/unitary-authority/bracknell-forest","","","Business Support","Premises Development","Easthampstead Park Centre - Catering","Free Milk",06/01/2018 00:00:00,"30342118",145.78,"MULLER MILK & INGREDIENT"
"Bracknell Forest Council","http://opendatacommunities.org/id/unitary-authority/bracknell-forest","","","Business Support","Premises Development","Easthampstead Park Centre - Catering","Free Milk",06/01/2018 00:00:00,"30342118",88.96,"MULLER MILK & INGREDIENT"
"Bracknell Forest Council","http://opendatacommunities.org/id/unitary-authority/bracknell-forest","","","Business Support","Premises Development","Easthampstead Park Centre - Catering","Free Milk",20/01/2018 00:00:00,"30342118",170.85,"MULLER MILK & INGREDIENT"
"Bracknell Forest Council","http://opendatacommunities.org/id/unitary-authority/bracknell-forest","","","Business Support","Premises Development","Easthampstead Park Centre - Catering","Free Milk",03/02/2018 00:00:00,"30342118",164.26,"MULLER MILK & INGREDIENT"
"Bracknell Forest Council","http://opendatacommunities.org/id/unitary-authority/bracknell-forest","","","Business Support","Premises Development","Easthampstead Park Centre - Catering","Free Milk",24/02/2018 00:00:00,"30342118",136.36,"MULLER MILK & INGREDIENT"
"Bracknell Forest Council","http://opendatacommunities.org/id/unitary-authority/bracknell-forest","","","Business Support","Premises Development","Easthampstead Park Centre - Catering","Free Milk",03/03/2018 00:00:00,"30342118",77.78,"MULLER MILK & INGREDIENT"
"Bracknell Forest Council","http://opendatacommunities.org/id/unitary-authority/bracknell-forest","","","Business Support","Premises Development","Easthampstead Park Centre - Catering","Free Milk",03/03/2018 00:00:00,"30342118",136.36,"MULLER MILK & INGREDIENT"
"Bracknell Forest Council","http://opendatacommunities.org/id/unitary-authority/bracknell-forest","","","Business Support","Premises Development","Easthampstead Park Centre - Catering","Free Milk",17/03/2018 00:00:00,"30342118",96.08,"MULLER MILK & INGREDIENT"
"Bracknell Forest Council","http://opendatacommunities.org/id/unitary-authority/bracknell-forest","","","Business Support","Premises Development","Easthampstead Park Centre - Catering","Free Milk",17/03/2018 00:00:00,"30342118",96.08,"MULLER MILK & INGREDIENT"
"Bracknell Forest Council","http://opendatacommunities.org/id/unitary-authority/bracknell-forest","","","Business Support","Premises Development","Easthampstead Park Centre - Catering","Free Milk",24/03/2018 00:00:00,"30342118",173.56,"MULLER MILK & INGREDIENT"
"Bracknell Forest Council","http://opendatacommunities.org/id/unitary-authority/bracknell-forest","","","Business Support","Premises Development","Easthampstead Park Centre - Catering","Free Milk",31/03/2018 00:00:00,"30342118",164.26,"MULLER MILK & INGREDIENT"
"Bracknell Forest Council","http://opendatacommunities.org/id/unitary-authority/bracknell-forest","","","Business Support","Premises Development","Easthampstead Park Centre - Catering","Cost of Goods Sold",04/09/2018 00:00:00,"30342118",224.5,"MIKO COFFEE LTD"
"Bracknell Forest Council","http://opendatacommunities.org/id/unitary-authority/bracknell-forest","","","Business Support","Premises Development","Easthampstead Park Centre - Catering","Cost of Goods Sold",04/09/2018 00:00:00,"30342118",129.5,"MIKO COFFEE LTD"
"Bracknell Forest Council","http://opendatacommunities.org/id/unitary-authority/bracknell-forest","","","Business Support","Premises Development","Easthampstead Park Centre - Catering","Cost of Goods Sold",04/09/2018 00:00:00,"30342118",140.4,"TOWN & COUNTRY FINE FOODS"
"Bracknell Forest Council","http://opendatacommunities.org/id/unitary-authority/bracknell-forest","","","Business Support","Premises Development","Easthampstead Park Centre - Catering","Cost of Goods Sold",05/09/2018 00:00:00,"30342118",91.32,"BRAKE BROS FOODSERVICE LTD"
"Bracknell Forest Council","http://opendatacommunities.org/id/unitary-authority/bracknell-forest","","","Business Support","Premises Development","Easthampstead Park Centre - Catering","Cost of Goods Sold",05/09/2018 00:00:00,"30342118",140.05,"BRAKE BROS FOODSERVICE LTD"
"Bracknell Forest Council","http://opendatacommunities.org/id/unitary-authority/bracknell-forest","","","Business Support","Premises Development","Easthampstead Park Centre - Catering","Cost of Goods Sold",05/09/2018 00:00:00,"30342118",45.24,"BRAKE BROS FOODSERVICE LTD"
"Bracknell Forest Council","http://opendatacommunities.org/id/unitary-authority/bracknell-forest","","","Business Support","Premises Development","Easthampstead Park Centre - Catering","Cost of Goods Sold",07/09/2018 00:00:00,"30342118",334.59,"BFS GROUP LTD T/A BIDFOOD"
"Bracknell Forest Council","http://opendatacommunities.org/id/unitary-authority/bracknell-forest","","","Business Support","Premises Development","Easthampstead Park Centre - Catering","Cost of Goods Sold",07/09/2018 00:00:00,"30342118",10.29,"BFS GROUP LTD T/A BIDFOOD"
"Bracknell Forest Council","http://opendatacommunities.org/id/unitary-authority/bracknell-forest","","","Business Support","Premises Development","Easthampstead Park Centre - Catering","Cost of Goods Sold",04/09/2018 00:00:00,"30342400",120.22,"THE QUALITY MEAT COMPANY"
"Bracknell Forest Council","http://opendatacommunities.org/id/unitary-authority/bracknell-forest","","","Business Support","Premises Development","Easthampstead Park Centre - Catering","Cost of Goods Sold",05/09/2018 00:00:00,"30342400",116.46,"THE QUALITY MEAT COMPANY"
"Bracknell Forest Council","http://opendatacommunities.org/id/unitary-authority/bracknell-forest","","","Business Support","Premises Development","Easthampstead Park Centre - Catering","Cost of Goods Sold",06/09/2018 00:00:00,"30342400",39.91,"THE QUALITY MEAT COMPANY"
"Bracknell Forest Council","http://opendatacommunities.org/id/unitary-authority/bracknell-forest","","","Business Support","Premises Development","Easthampstead Park Centre - Catering","Cost of Goods Sold",07/09/2018 00:00:00,"30342400",356.05,"THE QUALITY MEAT COMPANY"
"Bracknell Forest Council","http://opendatacommunities.org/id/unitary-authority/bracknell-forest","","","Business Support","Premises Development","Easthampstead Park Centre - Catering","Cost of Goods Sold",08/09/2018 00:00:00,"30342400",86.38,"THE QUALITY MEAT COMPANY"
"Bracknell Forest Council","http://opendatacommunities.org/id/unitary-authority/bracknell-forest","","","Secondary Schools","Delegated Primary School Budgets","Cranbourne - Primary","Gas",10/10/2018 00:00:00,"30344300",236.54,"CORONA GAS"
"Bracknell Forest Council","http://opendatacommunities.org/id/unitary-authority/bracknell-forest","","","Secondary Schools","Delegated Primary School Budgets","Cranbourne - Primary","Gas",10/10/2018 00:00:00,"30344300",215.76,"CORONA GAS"
"Bracknell Forest Council","http://opendatacommunities.org/id/unitary-authority/bracknell-forest","","","Secondary Schools","Delegated Primary School Budgets","Cranbourne - Primary","Gas",10/10/2018 00:00:00,"30344300",234.07,"CORONA GAS"
"Bracknell Forest Council","http://opendatacommunities.org/id/unitary-authority/bracknell-forest","","","Secondary Schools","Delegated Primary School Budgets","Cranbourne - Primary","Gas",10/10/2018 00:00:00,"30344300",260.2,"CORONA GAS"
"Bracknell Forest Council","http://opendatacommunities.org/id/unitary-authority/bracknell-forest","","","Secondary Schools","Delegated Primary School Budgets","Cranbourne - Primary","Gas",10/10/2018 00:00:00,"30344300",157.24,"CORONA GAS"
"Bracknell Forest Council","http://opendatacommunities.org/id/unitary-authority/bracknell-forest","","","Secondary Schools","Delegated Primary School Budgets","Cranbourne - Primary","Gas",10/10/2018 00:00:00,"30344300",-389,"CORONA GAS"
"Bracknell Forest Council","http://opendatacommunities.org/id/unitary-authority/bracknell-forest","","","Secondary Schools","Delegated Primary School Budgets","Cranbourne - Primary","Gas",10/10/2018 00:00:00,"30344300",-348.36,"CORONA GAS"
"Bracknell Forest Council","http://opendatacommunities.org/id/unitary-authority/bracknell-forest","","","Secondary Schools","Delegated Primary School Budgets","Cranbourne - Primary","Gas",10/10/2018 00:00:00,"30344300",182.32,"CORONA GAS"
"Bracknell Forest Council","http://opendatacommunities.org/id/unitary-authority/bracknell-forest","","","Secondary Schools","Delegated Primary School Budgets","Cranbourne - Primary","Gas",10/10/2018 00:00:00,"30344300",-365.47,"CORONA GAS"
"Bracknell Forest Council","http://opendatacommunities.org/id/unitary-authority/bracknell-forest","","","Secondary Schools","Delegated Primary School Budgets","Cranbourne - Primary","Gas",10/10/2018 00:00:00,"30344300",219.65,"CORONA GAS"
"Bracknell Forest Council","http://opendatacommunities.org/id/unitary-authority/bracknell-forest","","","Secondary Schools","Delegated Primary School Budgets","Cranbourne - Primary","Gas",10/10/2018 00:00:00,"30344300",159.15,"CORONA GAS"
"Bracknell Forest Council","http://opendatacommunities.org/id/unitary-authority/bracknell-forest","","","Secondary Schools","Delegated Primary School Budgets","Cranbourne - Primary","Gas",10/10/2018 00:00:00,"30344300",-253.38,"CORONA GAS"
"Bracknell Forest Council","http://opendatacommunities.org/id/unitary-authority/bracknell-forest","","","Secondary Schools","Delegated Primary School Budgets","Cranbourne - Primary","Gas",10/10/2018 00:00:00,"30344300",246.57,"CORONA GAS"
"Bracknell Forest Council","http://opendatacommunities.org/id/unitary-authority/bracknell-forest","","","Secondary Schools","Delegated Primary School Budgets","Cranbourne - Primary","Gas",10/10/2018 00:00:00,"30344300",-287.64,"CORONA GAS"
"Bracknell Forest Council","http://opendatacommunities.org/id/unitary-authority/bracknell-forest","","","Secondary Schools","Delegated Primary School Budgets","Cranbourne - Primary","Electricity",12/11/2018 00:00:00,"30346303",71.85,"BRITISH GAS TRADING"
"Bracknell Forest Council","http://opendatacommunities.org/id/unitary-authority/bracknell-forest","","","Secondary Schools","Delegated Primary School Budgets","Cranbourne - Primary","Electricity",12/11/2018 00:00:00,"30346303",612.9,"BRITISH GAS TRADING"
"Bracknell Forest Council","http://opendatacommunities.org/id/unitary-authority/bracknell-forest","","","Management and Support Services - CYPL","Holding Codes - net nil","Crown Wood Academy","Electricity",10/08/2018 00:00:00,"30340683",970.58,"BRITISH GAS TRADING"
"Bracknell Forest Council","http://opendatacommunities.org/id/unitary-authority/bracknell-forest","","","Management and Support Services - CYPL","Holding Codes - net nil","Crown Wood Academy","Gas",10/08/2018 00:00:00,"30341042",450.1,"CORONA GAS"
"Bracknell Forest Council","http://opendatacommunities.org/id/unitary-authority/bracknell-forest","","","Management and Support Services - CYPL","Holding Codes - net nil","Crown Wood Academy","Electricity",10/09/2018 00:00:00,"30342617",744.71,"BRITISH GAS TRADING"
"Bracknell Forest Council","http://opendatacommunities.org/id/unitary-authority/bracknell-forest","","","Management and Support Services - CYPL","Holding Codes - net nil","Crown Wood Academy","Gas",10/09/2018 00:00:00,"30342800",444.45,"CORONA GAS"
"Bracknell Forest Council","http://opendatacommunities.org/id/unitary-authority/bracknell-forest","","","Business Support","Premises Development","Easthampstead Park Centre - Catering","Cost of Goods Sold",10/09/2018 00:00:00,"30342400",262.28,"BRAKE BROS FOODSERVICE LTD"
"Bracknell Forest Council","http://opendatacommunities.org/id/unitary-authority/bracknell-forest","","","Business Support","Premises Development","Easthampstead Park Centre - Catering","Cost of Goods Sold",10/09/2018 00:00:00,"30342400",281,"MIKO COFFEE LTD"
"Bracknell Forest Council","http://opendatacommunities.org/id/unitary-authority/bracknell-forest","","","Business Support","Premises Development","Easthampstead Park Centre - Catering","Cost of Goods Sold",10/09/2018 00:00:00,"30342400",108,"MIKO COFFEE LTD"
"Bracknell Forest Council","http://opendatacommunities.org/id/unitary-authority/bracknell-forest","","","Business Support","Premises Development","Easthampstead Park Centre - Catering","Cost of Goods Sold",10/09/2018 00:00:00,"30342400",131.77,"THE QUALITY MEAT COMPANY"
"Bracknell Forest Council","http://opendatacommunities.org/id/unitary-authority/bracknell-forest","","","Business Support","Premises Development","Easthampstead Park Centre - Catering","Cost of Goods Sold",11/09/2018 00:00:00,"30342400",332.75,"BFS GROUP LTD T/A BIDFOOD"
"Bracknell Forest Council","http://opendatacommunities.org/id/unitary-authority/bracknell-forest","","","Business Support","Premises Development","Easthampstead Park Centre - Catering","Cost of Goods Sold",12/09/2018 00:00:00,"30342400",388.75,"BFS GROUP LTD T/A BIDFOOD"
"Bracknell Forest Council","http://opendatacommunities.org/id/unitary-authority/bracknell-forest","","","Business Support","Premises Development","Easthampstead Park Centre - Catering","Cost of Goods Sold",12/09/2018 00:00:00,"30342400",15.64,"BFS GROUP LTD T/A BIDFOOD"
"Bracknell Forest Council","http://opendatacommunities.org/id/unitary-authority/bracknell-forest","","","Business Support","Premises Development","Easthampstead Park Centre - Catering","Cost of Goods Sold",12/09/2018 00:00:00,"30342400",233.32,"DDC FOODS LTD"
"Bracknell Forest Council","http://opendatacommunities.org/id/unitary-authority/bracknell-forest","","","Business Support","Premises Development","Easthampstead Park Centre - Catering","Cost of Goods Sold",13/09/2018 00:00:00,"30342400",123.82,"KFF - KENT FROZEN FOODS LTD"
"Bracknell Forest Council","http://opendatacommunities.org/id/unitary-authority/bracknell-forest","","","Business Support","Premises Development","Easthampstead Park Centre - Catering","Cost of Goods Sold",14/09/2018 00:00:00,"30342400",246.26,"BFS GROUP LTD T/A BIDFOOD"
"Bracknell Forest Council","http://opendatacommunities.org/id/unitary-authority/bracknell-forest","","","Business Support","Premises Development","Easthampstead Park Centre - Catering","Cost of Goods Sold",14/09/2018 00:00:00,"30342400",65.61,"BFS GROUP LTD T/A BIDFOOD"
"Bracknell Forest Council","http://opendatacommunities.org/id/unitary-authority/bracknell-forest","","","Business Support","Premises Development","Easthampstead Park Centre - Catering","Cost of Goods Sold",14/09/2018 00:00:00,"30342400",296.07,"BRAKE BROS FOODSERVICE LTD"
"Bracknell Forest Council","http://opendatacommunities.org/id/unitary-authority/bracknell-forest","","","Business Support","Premises Development","Easthampstead Park Centre - Catering","Cost of Goods Sold",14/09/2018 00:00:00,"30342400",8.39,"BRAKE BROS FOODSERVICE LTD"
"Bracknell Forest Council","http://opendatacommunities.org/id/unitary-authority/bracknell-forest","","","Business Support","Premises Development","Easthampstead Park Centre - Catering","Cost of Goods Sold",15/09/2018 00:00:00,"30342400",43.23,"M & J SEAFOOD"
"Bracknell Forest Council","http://opendatacommunities.org/id/unitary-authority/bracknell-forest","","","Business Support","Premises Development","Easthampstead Park Centre - Catering","Cost of Goods Sold",18/09/2018 00:00:00,"30342400",1025.83,"BFS GROUP LTD T/A BIDFOOD"
"Bracknell Forest Council","http://opendatacommunities.org/id/unitary-authority/bracknell-forest","","","Business Support","Premises Development","Easthampstead Park Centre - Catering","Cost of Goods Sold",18/09/2018 00:00:00,"30342400",299.57,"BFS GROUP LTD T/A BIDFOOD"
"Bracknell Forest Council","http://opendatacommunities.org/id/unitary-authority/bracknell-forest","","","Management and Support Services - CYPL","Holding Codes - net nil","Crown Wood Academy","Electricity",10/10/2018 00:00:00,"30344074",1207.83,"BRITISH GAS TRADING"
"Bracknell Forest Council","http://opendatacommunities.org/id/unitary-authority/bracknell-forest","","","Management and Support Services - CYPL","Holding Codes - net nil","Crown Wood Academy","Gas",10/10/2018 00:00:00,"30344300",469.71,"CORONA GAS"
"Bracknell Forest Council","http://opendatacommunities.org/id/unitary-authority/bracknell-forest","","","Management and Support Services - CYPL","Holding Codes - net nil","Crown Wood Academy","Electricity",12/11/2018 00:00:00,"30346303",1321.21,"BRITISH GAS TRADING"
"Bracknell Forest Council","http://opendatacommunities.org/id/unitary-authority/bracknell-forest","","","Secondary Schools","Delegated Primary School Budgets","Crowthorne - Primary","Electricity",10/08/2018 00:00:00,"30340683",486.21,"BRITISH GAS TRADING"
"Bracknell Forest Council","http://opendatacommunities.org/id/unitary-authority/bracknell-forest","","","Secondary Schools","Delegated Primary School Budgets","Crowthorne - Primary","Electricity",10/08/2018 00:00:00,"30340683",12.59,"BRITISH GAS TRADING"
"Bracknell Forest Council","http://opendatacommunities.org/id/unitary-authority/bracknell-forest","","","Secondary Schools","Delegated Primary School Budgets","Crowthorne - Primary","Gas",10/08/2018 00:00:00,"30341042",199.33,"CORONA GAS"
"Bracknell Forest Council","http://opendatacommunities.org/id/unitary-authority/bracknell-forest","","","Secondary Schools","Delegated Primary School Budgets","Crowthorne - Primary","Gas",10/08/2018 00:00:00,"30341042",52.39,"CORONA GAS"
"Bracknell Forest Council","http://opendatacommunities.org/id/unitary-authority/bracknell-forest","","","Secondary Schools","Delegated Primary School Budgets","Crowthorne - Primary","Electricity",10/09/2018 00:00:00,"30342617",11.3,"BRITISH GAS TRADING"
"Bracknell Forest Council","http://opendatacommunities.org/id/unitary-authority/bracknell-forest","","","Secondary Schools","Delegated Primary School Budgets","Crowthorne - Primary","Electricity",10/09/2018 00:00:00,"30342617",462.27,"BRITISH GAS TRADING"
"Bracknell Forest Council","http://opendatacommunities.org/id/unitary-authority/bracknell-forest","","","Secondary Schools","Delegated Primary School Budgets","Crowthorne - Primary","Gas",10/09/2018 00:00:00,"30342800",160.79,"CORONA GAS"
"Bracknell Forest Council","http://opendatacommunities.org/id/unitary-authority/bracknell-forest","","","Secondary Schools","Delegated Primary School Budgets","Crowthorne - Primary","Gas",10/09/2018 00:00:00,"30342800",49.13,"CORONA GAS"
"Bracknell Forest Council","http://opendatacommunities.org/id/unitary-authority/bracknell-forest","","","Secondary Schools","Delegated Primary School Budgets","Crowthorne - Primary","Electricity",10/10/2018 00:00:00,"30344074",284.27,"BRITISH GAS TRADING"
"Bracknell Forest Council","http://opendatacommunities.org/id/unitary-authority/bracknell-forest","","","Secondary Schools","Delegated Primary School Budgets","Crowthorne - Primary","Electricity",10/10/2018 00:00:00,"30344074",11.06,"BRITISH GAS TRADING"
"Bracknell Forest Council","http://opendatacommunities.org/id/unitary-authority/bracknell-forest","","","Secondary Schools","Delegated Primary School Budgets","Crowthorne - Primary","Gas",10/10/2018 00:00:00,"30344300",225.49,"CORONA GAS"
"Bracknell Forest Council","http://opendatacommunities.org/id/unitary-authority/bracknell-forest","","","Secondary Schools","Delegated Primary School Budgets","Crowthorne - Primary","Gas",10/10/2018 00:00:00,"30344300",52.86,"CORONA GAS"
"Bracknell Forest Council","http://opendatacommunities.org/id/unitary-authority/bracknell-forest","","","Secondary Schools","Delegated Primary School Budgets","Crowthorne - Primary","Electricity",12/11/2018 00:00:00,"30346303",13.09,"BRITISH GAS TRADING"
"Bracknell Forest Council","http://opendatacommunities.org/id/unitary-authority/bracknell-forest","","","Secondary Schools","Delegated Primary School Budgets","Crowthorne - Primary","Electricity",12/11/2018 00:00:00,"30346303",417.61,"BRITISH GAS TRADING"
"Bracknell Forest Council","http://opendatacommunities.org/id/unitary-authority/bracknell-forest","","","Secondary Schools","Delegated Primary School Budgets","Fox Hill - Primary","Electricity",10/08/2018 00:00:00,"30340683",683.28,"BRITISH GAS TRADING"
"Bracknell Forest Council","http://opendatacommunities.org/id/unitary-authority/bracknell-forest","","","Secondary Schools","Delegated Primary School Budgets","Fox Hill - Primary","Electricity",10/09/2018 00:00:00,"30342617",410.84,"BRITISH GAS TRADING"
"Bracknell Forest Council","http://opendatacommunities.org/id/unitary-authority/bracknell-forest","","","Secondary Schools","Delegated Primary School Budgets","Fox Hill - Primary","Electricity",10/10/2018 00:00:00,"30344074",686.99,"BRITISH GAS TRADING"
"Bracknell Forest Council","http://opendatacommunities.org/id/unitary-authority/bracknell-forest","","","Secondary Schools","Delegated Primary School Budgets","Fox Hill - Primary","Electricity",12/11/2018 00:00:00,"30346303",671.25,"BRITISH GAS TRADING"
"Bracknell Forest Council","http://opendatacommunities.org/id/unitary-authority/bracknell-forest","","","Management and Support Services - CYPL","Holding Codes - net nil","Great Hollands Academy","Electricity",10/08/2018 00:00:00,"30340683",691.09,"BRITISH GAS TRADING"
"Bracknell Forest Council","http://opendatacommunities.org/id/unitary-authority/bracknell-forest","","","Management and Support Services - CYPL","Holding Codes - net nil","Great Hollands Academy","Electricity",10/08/2018 00:00:00,"30340683",507.45,"BRITISH GAS TRADING"
"Bracknell Forest Council","http://opendatacommunities.org/id/unitary-authority/bracknell-forest","","","Management and Support Services - CYPL","Holding Codes - net nil","Great Hollands Academy","Electricity",10/08/2018 00:00:00,"30340683",29.72,"BRITISH GAS TRADING"
"Bracknell Forest Council","http://opendatacommunities.org/id/unitary-authority/bracknell-forest","","","Management and Support Services - CYPL","Holding Codes - net nil","Great Hollands Academy","Gas",10/08/2018 00:00:00,"30341042",566.88,"CORONA GAS"
"Bracknell Forest Council","http://opendatacommunities.org/id/unitary-authority/bracknell-forest","","","Management and Support Services - CYPL","Holding Codes - net nil","Great Hollands Academy","Electricity",10/09/2018 00:00:00,"30342617",417.74,"BRITISH GAS TRADING"
"Bracknell Forest Council","http://opendatacommunities.org/id/unitary-authority/bracknell-forest","","","Management and Support Services - CYPL","Holding Codes - net nil","Great Hollands Academy","Electricity",10/09/2018 00:00:00,"30342617",341.73,"BRITISH GAS TRADING"
"Bracknell Forest Council","http://opendatacommunities.org/id/unitary-authority/bracknell-forest","","","Management and Support Services - CYPL","Holding Codes - net nil","Great Hollands Academy","Electricity",10/09/2018 00:00:00,"30342617",26.19,"BRITISH GAS TRADING"
"Bracknell Forest Council","http://opendatacommunities.org/id/unitary-authority/bracknell-forest","","","Management and Support Services - CYPL","Holding Codes - net nil","Great Hollands Academy","Gas",10/09/2018 00:00:00,"30342800",559.27,"CORONA GAS"
"Bracknell Forest Council","http://opendatacommunities.org/id/unitary-authority/bracknell-forest","","","Management and Support Services - CYPL","Holding Codes - net nil","Great Hollands Academy","Electricity",10/10/2018 00:00:00,"30344074",851.82,"BRITISH GAS TRADING"
"Bracknell Forest Council","http://opendatacommunities.org/id/unitary-authority/bracknell-forest","","","Management and Support Services - CYPL","Holding Codes - net nil","Great Hollands Academy","Electricity",10/10/2018 00:00:00,"30344074",537.13,"BRITISH GAS TRADING"
"Bracknell Forest Council","http://opendatacommunities.org/id/unitary-authority/bracknell-forest","","","Management and Support Services - CYPL","Holding Codes - net nil","Great Hollands Academy","Electricity",10/10/2018 00:00:00,"30344074",33.03,"BRITISH GAS TRADING"
"Bracknell Forest Council","http://opendatacommunities.org/id/unitary-authority/bracknell-forest","","","Management and Support Services - CYPL","Holding Codes - net nil","Great Hollands Academy","Gas",10/10/2018 00:00:00,"30344300",609.77,"CORONA GAS"
"Bracknell Forest Council","http://opendatacommunities.org/id/unitary-authority/bracknell-forest","","","Management and Support Services - CYPL","Holding Codes - net nil","Great Hollands Academy","Electricity",12/11/2018 00:00:00,"30346303",1074.74,"BRITISH GAS TRADING"
"Bracknell Forest Council","http://opendatacommunities.org/id/unitary-authority/bracknell-forest","","","Management and Support Services - CYPL","Holding Codes - net nil","Great Hollands Academy","Electricity",12/11/2018 00:00:00,"30346303",571.56,"BRITISH GAS TRADING"
"Bracknell Forest Council","http://opendatacommunities.org/id/unitary-authority/bracknell-forest","","","Management and Support Services - CYPL","Holding Codes - net nil","Great Hollands Academy","Electricity",12/11/2018 00:00:00,"30346303",34.11,"BRITISH GAS TRADING"
"Bracknell Forest Council","http://opendatacommunities.org/id/unitary-authority/bracknell-forest","","","Secondary Schools","Delegated Primary School Budgets","Harmans Water - Primary","Electricity",10/08/2018 00:00:00,"30340683",239.87,"BRITISH GAS TRADING"
"Bracknell Forest Council","http://opendatacommunities.org/id/unitary-authority/bracknell-forest","","","Secondary Schools","Delegated Primary School Budgets","Harmans Water - Primary","Electricity",10/08/2018 00:00:00,"30340683",1012.68,"BRITISH GAS TRADING"
"Bracknell Forest Council","http://opendatacommunities.org/id/unitary-authority/bracknell-forest","","","Secondary Schools","Delegated Primary School Budgets","Harmans Water - Primary","Gas",10/08/2018 00:00:00,"30341042",106.58,"CORONA GAS"
"Bracknell Forest Council","http://opendatacommunities.org/id/unitary-authority/bracknell-forest","","","Secondary Schools","Delegated Primary School Budgets","Harmans Water - Primary","Electricity",10/09/2018 00:00:00,"30342617",217.73,"BRITISH GAS TRADING"
"Bracknell Forest Council","http://opendatacommunities.org/id/unitary-authority/bracknell-forest","","","Secondary Schools","Delegated Primary School Budgets","Harmans Water - Primary","Electricity",10/09/2018 00:00:00,"30342617",561.46,"BRITISH GAS TRADING"
"Bracknell Forest Council","http://opendatacommunities.org/id/unitary-authority/bracknell-forest","","","Secondary Schools","Delegated Primary School Budgets","Harmans Water - Primary","Gas",10/09/2018 00:00:00,"30342800",105.35,"CORONA GAS"
"Bracknell Forest Council","http://opendatacommunities.org/id/unitary-authority/bracknell-forest","","","Secondary Schools","Delegated Primary School Budgets","Harmans Water - Primary","Electricity",10/10/2018 00:00:00,"30344074",982.85,"BRITISH GAS TRADING"
"Bracknell Forest Council","http://opendatacommunities.org/id/unitary-authority/bracknell-forest","","","Secondary Schools","Delegated Primary School Budgets","Harmans Water - Primary","Electricity",10/10/2018 00:00:00,"30344074",1304.7,"BRITISH GAS TRADING"
"Bracknell Forest Council","http://opendatacommunities.org/id/unitary-authority/bracknell-forest","","","Secondary Schools","Delegated Primary School Budgets","Harmans Water - Primary","Gas",10/10/2018 00:00:00,"30344300",114.04,"CORONA GAS"
"Bracknell Forest Council","http://opendatacommunities.org/id/unitary-authority/bracknell-forest","","","Secondary Schools","Delegated Primary School Budgets","Harmans Water - Primary","Electricity",12/11/2018 00:00:00,"30346303",335.22,"BRITISH GAS TRADING"
"Bracknell Forest Council","http://opendatacommunities.org/id/unitary-authority/bracknell-forest","","","Secondary Schools","Delegated Primary School Budgets","Harmans Water - Primary","Electricity",12/11/2018 00:00:00,"30346303",1421.67,"BRITISH GAS TRADING"
"Bracknell Forest Council","http://opendatacommunities.org/id/unitary-authority/bracknell-forest","","","Secondary Schools","Delegated Primary School Budgets","Holly Spring - Infant & Nursery","Electricity",06/08/2018 00:00:00,"30341689",1783.01,"EDF ENERY"
"Bracknell Forest Council","http://opendatacommunities.org/id/unitary-authority/bracknell-forest","","","Secondary Schools","Delegated Primary School Budgets","Holly Spring - Infant & Nursery","Electricity",05/09/2018 00:00:00,"30342945",865.35,"EDF ENERY"
"Bracknell Forest Council","http://opendatacommunities.org/id/unitary-authority/bracknell-forest","","","Secondary Schools","Delegated Primary School Budgets","Holly Spring - Infant & Nursery","Electricity",08/10/2018 00:00:00,"30344789",1914.16,"EDF ENERY"
"Bracknell Forest Council","http://opendatacommunities.org/id/unitary-authority/bracknell-forest","","","Secondary Schools","Delegated Primary School Budgets","Holly Spring - Infant & Nursery","Electricity",05/11/2018 00:00:00,"30346317",2109.49,"EDF ENERY"
"Bracknell Forest Council","http://opendatacommunities.org/id/unitary-authority/bracknell-forest","","","Secondary Schools","Delegated Primary School Budgets","Holly Spring - Junior","Gas",10/08/2018 00:00:00,"30341042",273.75,"CORONA GAS"
"Bracknell Forest Council","http://opendatacommunities.org/id/unitary-authority/bracknell-forest","","","Secondary Schools","Delegated Primary School Budgets","Holly Spring - Junior","Gas",10/08/2018 00:00:00,"30341042",30.84,"CORONA GAS"
"Bracknell Forest Council","http://opendatacommunities.org/id/unitary-authority/bracknell-forest","","","Secondary Schools","Delegated Primary School Budgets","Holly Spring - Junior","Gas",10/09/2018 00:00:00,"30342800",205.71,"CORONA GAS"
"Bracknell Forest Council","http://opendatacommunities.org/id/unitary-authority/bracknell-forest","","","Secondary Schools","Delegated Primary School Budgets","Holly Spring - Junior","Gas",10/09/2018 00:00:00,"30342800",30.64,"CORONA GAS"
"Bracknell Forest Council","http://opendatacommunities.org/id/unitary-authority/bracknell-forest","","","Secondary Schools","Delegated Primary School Budgets","Holly Spring - Junior","Gas",10/10/2018 00:00:00,"30344300",304.31,"CORONA GAS"
"Bracknell Forest Council","http://opendatacommunities.org/id/unitary-authority/bracknell-forest","","","Secondary Schools","Delegated Primary School Budgets","Holly Spring - Junior","Gas",10/10/2018 00:00:00,"30344300",31.75,"CORONA GAS"
"Bracknell Forest Council","http://opendatacommunities.org/id/unitary-authority/bracknell-forest","","","Secondary Schools","Delegated Primary School Budgets","Meadow Vale - Primary","Electricity",10/08/2018 00:00:00,"30340683",1030.59,"BRITISH GAS TRADING"
"Bracknell Forest Council","http://opendatacommunities.org/id/unitary-authority/bracknell-forest","","","Secondary Schools","Delegated Primary School Budgets","Meadow Vale - Primary","Gas",10/08/2018 00:00:00,"30341042",170.63,"CORONA GAS"
"Bracknell Forest Council","http://opendatacommunities.org/id/unitary-authority/bracknell-forest","","","Secondary Schools","Delegated Primary School Budgets","Meadow Vale - Primary","Gas",10/08/2018 00:00:00,"30341042",170.5,"CORONA GAS"
"Bracknell Forest Council","http://opendatacommunities.org/id/unitary-authority/bracknell-forest","","","Secondary Schools","Delegated Primary School Budgets","Meadow Vale - Primary","Electricity",10/09/2018 00:00:00,"30342617",615.07,"BRITISH GAS TRADING"
"Bracknell Forest Council","http://opendatacommunities.org/id/unitary-authority/bracknell-forest","","","Secondary Schools","Delegated Primary School Budgets","Meadow Vale - Primary","Gas",10/09/2018 00:00:00,"30342800",184.02,"CORONA GAS"
"Bracknell Forest Council","http://opendatacommunities.org/id/unitary-authority/bracknell-forest","","","Secondary Schools","Delegated Primary School Budgets","Meadow Vale - Primary","Gas",10/09/2018 00:00:00,"30342800",176.31,"CORONA GAS"
"Bracknell Forest Council","http://opendatacommunities.org/id/unitary-authority/bracknell-forest","","","Secondary Schools","Delegated Primary School Budgets","Meadow Vale - Primary","Electricity",10/10/2018 00:00:00,"30344074",1171.23,"BRITISH GAS TRADING"
"Bracknell Forest Council","http://opendatacommunities.org/id/unitary-authority/bracknell-forest","","","Secondary Schools","Delegated Primary School Budgets","Meadow Vale - Primary","Gas",10/10/2018 00:00:00,"30344300",209.07,"CORONA GAS"
"Bracknell Forest Council","http://opendatacommunities.org/id/unitary-authority/bracknell-forest","","","Secondary Schools","Delegated Primary School Budgets","Meadow Vale - Primary","Gas",10/10/2018 00:00:00,"30344300",167.6,"CORONA GAS"
"Bracknell Forest Council","http://opendatacommunities.org/id/unitary-authority/bracknell-forest","","","Secondary Schools","Delegated Primary School Budgets","Meadow Vale - Primary","Electricity",12/11/2018 00:00:00,"30346303",1230.35,"BRITISH GAS TRADING"
"Bracknell Forest Council","http://opendatacommunities.org/id/unitary-authority/bracknell-forest","","","Secondary Schools","Delegated Primary School Budgets","New Scotland Hill - Primary","Electricity",10/08/2018 00:00:00,"30340683",971.33,"BRITISH GAS TRADING"
"Bracknell Forest Council","http://opendatacommunities.org/id/unitary-authority/bracknell-forest","","","Secondary Schools","Delegated Primary School Budgets","New Scotland Hill - Primary","Electricity",10/08/2018 00:00:00,"30340683",6.33,"BRITISH GAS TRADING"
"Bracknell Forest Council","http://opendatacommunities.org/id/unitary-authority/bracknell-forest","","","Secondary Schools","Delegated Primary School Budgets","New Scotland Hill - Primary","Gas",10/08/2018 00:00:00,"30341042",53.19,"CORONA GAS"
"Bracknell Forest Council","http://opendatacommunities.org/id/unitary-authority/bracknell-forest","","","Secondary Schools","Delegated Primary School Budgets","New Scotland Hill - Primary","Electricity",10/09/2018 00:00:00,"30342617",503.24,"BRITISH GAS TRADING"
"Bracknell Forest Council","http://opendatacommunities.org/id/unitary-authority/bracknell-forest","","","Secondary Schools","Delegated Primary School Budgets","New Scotland Hill - Primary","Electricity",10/09/2018 00:00:00,"30342617",7.18,"BRITISH GAS TRADING"
"Bracknell Forest Council","http://opendatacommunities.org/id/unitary-authority/bracknell-forest","","","Secondary Schools","Delegated Primary School Budgets","New Scotland Hill - Primary","Gas",10/09/2018 00:00:00,"30342800",51.68,"CORONA GAS"
"Bracknell Forest Council","http://opendatacommunities.org/id/unitary-authority/bracknell-forest","","","Secondary Schools","Delegated Primary School Budgets","New Scotland Hill - Primary","Electricity",10/10/2018 00:00:00,"30344074",833.39,"BRITISH GAS TRADING"
"Bracknell Forest Council","http://opendatacommunities.org/id/unitary-authority/bracknell-forest","","","Secondary Schools","Delegated Primary School Budgets","New Scotland Hill - Primary","Electricity",10/10/2018 00:00:00,"30344074",5.28,"BRITISH GAS TRADING"
"Bracknell Forest Council","http://opendatacommunities.org/id/unitary-authority/bracknell-forest","","","Secondary Schools","Delegated Primary School Budgets","New Scotland Hill - Primary","Gas",10/10/2018 00:00:00,"30344300",52.86,"CORONA GAS"
"Bracknell Forest Council","http://opendatacommunities.org/id/unitary-authority/bracknell-forest","","","Secondary Schools","Delegated Primary School Budgets","New Scotland Hill - Primary","Electricity",12/11/2018 00:00:00,"30346303",865,"BRITISH GAS TRADING"
"Bracknell Forest Council","http://opendatacommunities.org/id/unitary-authority/bracknell-forest","","","Secondary Schools","Delegated Primary School Budgets","New Scotland Hill - Primary","Electricity",12/11/2018 00:00:00,"30346303",8.23,"BRITISH GAS TRADING"
"Bracknell Forest Council","http://opendatacommunities.org/id/unitary-authority/bracknell-forest","","","Secondary Schools","Delegated Primary School Budgets","Owlsmoor - Primary","Electricity",10/08/2018 00:00:00,"30340683",813.82,"BRITISH GAS TRADING"
"Bracknell Forest Council","http://opendatacommunities.org/id/unitary-authority/bracknell-forest","","","Secondary Schools","Delegated Primary School Budgets","Owlsmoor - Primary","Gas",10/08/2018 00:00:00,"30341042",227.86,"CORONA GAS"
"Bracknell Forest Council","http://opendatacommunities.org/id/unitary-authority/bracknell-forest","","","Secondary Schools","Delegated Primary School Budgets","Owlsmoor - Primary","Electricity",10/09/2018 00:00:00,"30342617",446.16,"BRITISH GAS TRADING"
"Bracknell Forest Council","http://opendatacommunities.org/id/unitary-authority/bracknell-forest","","","Secondary Schools","Delegated Primary School Budgets","Owlsmoor - Primary","Gas",10/09/2018 00:00:00,"30342800",227.86,"CORONA GAS"
"Bracknell Forest Council","http://opendatacommunities.org/id/unitary-authority/bracknell-forest","","","Secondary Schools","Delegated Primary School Budgets","Owlsmoor - Primary","Electricity",10/10/2018 00:00:00,"30344074",1025.98,"BRITISH GAS TRADING"
"Bracknell Forest Council","http://opendatacommunities.org/id/unitary-authority/bracknell-forest","","","Secondary Schools","Delegated Primary School Budgets","Owlsmoor - Primary","Gas",10/10/2018 00:00:00,"30344300",220.51,"CORONA GAS"
"Bracknell Forest Council","http://opendatacommunities.org/id/unitary-authority/bracknell-forest","","","Secondary Schools","Delegated Primary School Budgets","Owlsmoor - Primary","Electricity",12/11/2018 00:00:00,"30346303",1137.45,"BRITISH GAS TRADING"
"Bracknell Forest Council","http://opendatacommunities.org/id/unitary-authority/bracknell-forest","","","Secondary Schools","Delegated Primary School Budgets","The Pines School","Electricity",10/08/2018 00:00:00,"30340683",867.3,"BRITISH GAS TRADING"
"Bracknell Forest Council","http://opendatacommunities.org/id/unitary-authority/bracknell-forest","","","Secondary Schools","Delegated Primary School Budgets","The Pines School","Electricity",10/08/2018 00:00:00,"30340683",313.96,"BRITISH GAS TRADING"
"Bracknell Forest Council","http://opendatacommunities.org/id/unitary-authority/bracknell-forest","","","Secondary Schools","Delegated Primary School Budgets","The Pines School","Gas",10/08/2018 00:00:00,"30341042",232.43,"CORONA GAS"
"Bracknell Forest Council","http://opendatacommunities.org/id/unitary-authority/bracknell-forest","","","Secondary Schools","Delegated Primary School Budgets","The Pines School","Electricity",10/09/2018 00:00:00,"30342617",457.16,"BRITISH GAS TRADING"
"Bracknell Forest Council","http://opendatacommunities.org/id/unitary-authority/bracknell-forest","","","Secondary Schools","Delegated Primary School Budgets","The Pines School","Electricity",10/09/2018 00:00:00,"30342617",169.87,"BRITISH GAS TRADING"
"Bracknell Forest Council","http://opendatacommunities.org/id/unitary-authority/bracknell-forest","","","Secondary Schools","Delegated Primary School Budgets","The Pines School","Gas",10/09/2018 00:00:00,"30342800",208.22,"CORONA GAS"
"Bracknell Forest Council","http://opendatacommunities.org/id/unitary-authority/bracknell-forest","","","Secondary Schools","Delegated Primary School Budgets","The Pines School","Electricity",10/10/2018 00:00:00,"30344074",402.38,"BRITISH GAS TRADING"
"Bracknell Forest Council","http://opendatacommunities.org/id/unitary-authority/bracknell-forest","","","Secondary Schools","Delegated Primary School Budgets","The Pines School","Electricity",10/10/2018 00:00:00,"30344074",935.89,"BRITISH GAS TRADING"
"Bracknell Forest Council","http://opendatacommunities.org/id/unitary-authority/bracknell-forest","","","Secondary Schools","Delegated Primary School Budgets","The Pines School","Gas",10/10/2018 00:00:00,"30344300",367.76,"CORONA GAS"
"Bracknell Forest Council","http://opendatacommunities.org/id/unitary-authority/bracknell-forest","","","Secondary Schools","Delegated Primary School Budgets","The Pines School","Electricity",12/11/2018 00:00:00,"30346303",466.76,"BRITISH GAS TRADING"
"Bracknell Forest Council","http://opendatacommunities.org/id/unitary-authority/bracknell-forest","","","Secondary Schools","Delegated Primary School Budgets","The Pines School","Electricity",12/11/2018 00:00:00,"30346303",993.23,"BRITISH GAS TRADING"
"Bracknell Forest Council","http://opendatacommunities.org/id/unitary-authority/bracknell-forest","","","Secondary Schools","Delegated Primary School Budgets","Sandy Lane Primary School","Electricity",10/08/2018 00:00:00,"30340683",1113.39,"BRITISH GAS TRADING"
"Bracknell Forest Council","http://opendatacommunities.org/id/unitary-authority/bracknell-forest","","","Secondary Schools","Delegated Primary School Budgets","Sandy Lane Primary School","Gas",10/08/2018 00:00:00,"30341042",410.81,"CORONA GAS"
"Bracknell Forest Council","http://opendatacommunities.org/id/unitary-authority/bracknell-forest","","","Secondary Schools","Delegated Primary School Budgets","Sandy Lane Primary School","Gas",10/08/2018 00:00:00,"30341042",19.85,"CORONA GAS"
"Bracknell Forest Council","http://opendatacommunities.org/id/unitary-authority/bracknell-forest","","","Secondary Schools","Delegated Primary School Budgets","Sandy Lane Primary School","Electricity",10/09/2018 00:00:00,"30342617",660.76,"BRITISH GAS TRADING"
"Bracknell Forest Council","http://opendatacommunities.org/id/unitary-authority/bracknell-forest","","","Secondary Schools","Delegated Primary School Budgets","Sandy Lane Primary School","Gas",10/09/2018 00:00:00,"30342800",19.64,"CORONA GAS"
"Bracknell Forest Council","http://opendatacommunities.org/id/unitary-authority/bracknell-forest","","","Secondary Schools","Delegated Primary School Budgets","Sandy Lane Primary School","Gas",10/09/2018 00:00:00,"30342800",381.76,"CORONA GAS"
"Bracknell Forest Council","http://opendatacommunities.org/id/unitary-authority/bracknell-forest","","","Secondary Schools","Delegated Primary School Budgets","Sandy Lane Primary School","Electricity",10/10/2018 00:00:00,"30344074",1310.72,"BRITISH GAS TRADING"
"Bracknell Forest Council","http://opendatacommunities.org/id/unitary-authority/bracknell-forest","","","Secondary Schools","Delegated Primary School Budgets","Sandy Lane Primary School","Gas",10/10/2018 00:00:00,"30344300",20.16,"CORONA GAS"
"Bracknell Forest Council","http://opendatacommunities.org/id/unitary-authority/bracknell-forest","","","Secondary Schools","Delegated Primary School Budgets","Sandy Lane Primary School","Gas",10/10/2018 00:00:00,"30344300",448.39,"CORONA GAS"
"Bracknell Forest Council","http://opendatacommunities.org/id/unitary-authority/bracknell-forest","","","Secondary Schools","Delegated Primary School Budgets","Sandy Lane Primary School","Electricity",12/11/2018 00:00:00,"30346303",1378.16,"BRITISH GAS TRADING"
"Bracknell Forest Council","http://opendatacommunities.org/id/unitary-authority/bracknell-forest","","","Secondary Schools","Delegated Primary School Budgets","St Joseph's - Catholic Primary","Electricity",10/08/2018 00:00:00,"30340683",561.2,"BRITISH GAS TRADING"
"Bracknell Forest Council","http://opendatacommunities.org/id/unitary-authority/bracknell-forest","","","Secondary Schools","Delegated Primary School Budgets","St Joseph's - Catholic Primary","Electricity",10/09/2018 00:00:00,"30342617",533.69,"BRITISH GAS TRADING"
"Bracknell Forest Council","http://opendatacommunities.org/id/unitary-authority/bracknell-forest","","","Secondary Schools","Delegated Primary School Budgets","St Joseph's - Catholic Primary","Electricity",10/10/2018 00:00:00,"30344074",347.62,"BRITISH GAS TRADING"
"Bracknell Forest Council","http://opendatacommunities.org/id/unitary-authority/bracknell-forest","","","Secondary Schools","Delegated Primary School Budgets","St Joseph's - Catholic Primary","Electricity",12/11/2018 00:00:00,"30346303",735.62,"BRITISH GAS TRADING"
"Bracknell Forest Council","http://opendatacommunities.org/id/unitary-authority/bracknell-forest","","","Management and Support Services - CYPL","Holding Codes - net nil","St Margaret Clitherow Academy","Electricity",10/08/2018 00:00:00,"30340683",6.97,"BRITISH GAS TRADING"
"Bracknell Forest Council","http://opendatacommunities.org/id/unitary-authority/bracknell-forest","","","Management and Support Services - CYPL","Holding Codes - net nil","St Margaret Clitherow Academy","Electricity",10/08/2018 00:00:00,"30340683",518.54,"BRITISH GAS TRADING"
"Bracknell Forest Council","http://opendatacommunities.org/id/unitary-authority/bracknell-forest","","","Management and Support Services - CYPL","Holding Codes - net nil","St Margaret Clitherow Academy","Gas",10/08/2018 00:00:00,"30341042",23.55,"CORONA GAS"
"Bracknell Forest Council","http://opendatacommunities.org/id/unitary-authority/bracknell-forest","","","Management and Support Services - CYPL","Holding Codes - net nil","St Margaret Clitherow Academy","Gas",10/08/2018 00:00:00,"30341042",118.02,"CORONA GAS"
"Bracknell Forest Council","http://opendatacommunities.org/id/unitary-authority/bracknell-forest","","","Management and Support Services - CYPL","Holding Codes - net nil","St Margaret Clitherow Academy","Electricity",10/09/2018 00:00:00,"30342617",6.76,"BRITISH GAS TRADING"
"Bracknell Forest Council","http://opendatacommunities.org/id/unitary-authority/bracknell-forest","","","Management and Support Services - CYPL","Holding Codes - net nil","St Margaret Clitherow Academy","Electricity",10/09/2018 00:00:00,"30342617",224.91,"BRITISH GAS TRADING"
"Bracknell Forest Council","http://opendatacommunities.org/id/unitary-authority/bracknell-forest","","","Management and Support Services - CYPL","Holding Codes - net nil","St Margaret Clitherow Academy","Gas",10/09/2018 00:00:00,"30342800",98.49,"CORONA GAS"
"Bracknell Forest Council","http://opendatacommunities.org/id/unitary-authority/bracknell-forest","","","Management and Support Services - CYPL","Holding Codes - net nil","St Margaret Clitherow Academy","Gas",10/09/2018 00:00:00,"30342800",23.55,"CORONA GAS"
"Bracknell Forest Council","http://opendatacommunities.org/id/unitary-authority/bracknell-forest","","","Management and Support Services - CYPL","Holding Codes - net nil","St Margaret Clitherow Academy","Electricity",10/10/2018 00:00:00,"30344074",5.7,"BRITISH GAS TRADING"
"Bracknell Forest Council","http://opendatacommunities.org/id/unitary-authority/bracknell-forest","","","Management and Support Services - CYPL","Holding Codes - net nil","St Margaret Clitherow Academy","Electricity",10/10/2018 00:00:00,"30344074",688.9,"BRITISH GAS TRADING"
"Bracknell Forest Council","http://opendatacommunities.org/id/unitary-authority/bracknell-forest","","","Management and Support Services - CYPL","Holding Codes - net nil","St Margaret Clitherow Academy","Gas",10/10/2018 00:00:00,"30344300",23.47,"CORONA GAS"
"Bracknell Forest Council","http://opendatacommunities.org/id/unitary-authority/bracknell-forest","","","Management and Support Services - CYPL","Holding Codes - net nil","St Margaret Clitherow Academy","Gas",10/10/2018 00:00:00,"30344300",112.63,"CORONA GAS"
"Bracknell Forest Council","http://opendatacommunities.org/id/unitary-authority/bracknell-forest","","","Management and Support Services - CYPL","Holding Codes - net nil","St Margaret Clitherow Academy","Electricity",12/11/2018 00:00:00,"30346303",7.18,"BRITISH GAS TRADING"
"Bracknell Forest Council","http://opendatacommunities.org/id/unitary-authority/bracknell-forest","","","Management and Support Services - CYPL","Holding Codes - net nil","St Margaret Clitherow Academy","Electricity",12/11/2018 00:00:00,"30346303",743.64,"BRITISH GAS TRADING"
"Bracknell Forest Council","http://opendatacommunities.org/id/unitary-authority/bracknell-forest","","","Secondary Schools","Delegated Primary School Budgets","Winkfield St Mary's - Primary","Electricity",10/08/2018 00:00:00,"30340683",427.47,"BRITISH GAS TRADING"
"Bracknell Forest Council","http://opendatacommunities.org/id/unitary-authority/bracknell-forest","","","Secondary Schools","Delegated Primary School Budgets","Winkfield St Mary's - Primary","Gas",10/08/2018 00:00:00,"30341042",230.61,"CORONA GAS"
"Bracknell Forest Council","http://opendatacommunities.org/id/unitary-authority/bracknell-forest","","","Secondary Schools","Delegated Primary School Budgets","Winkfield St Mary's - Primary","Electricity",10/09/2018 00:00:00,"30342617",291.31,"BRITISH GAS TRADING"
"Bracknell Forest Council","http://opendatacommunities.org/id/unitary-authority/bracknell-forest","","","Secondary Schools","Delegated Primary School Budgets","Winkfield St Mary's - Primary","Gas",10/09/2018 00:00:00,"30342800",290.66,"CORONA GAS"
"Bracknell Forest Council","http://opendatacommunities.org/id/unitary-authority/bracknell-forest","","","Secondary Schools","Delegated Primary School Budgets","Winkfield St Mary's - Primary","Electricity",10/10/2018 00:00:00,"30344074",431.44,"BRITISH GAS TRADING"
"Bracknell Forest Council","http://opendatacommunities.org/id/unitary-authority/bracknell-forest","","","Secondary Schools","Delegated Primary School Budgets","Winkfield St Mary's - Primary","Gas",10/10/2018 00:00:00,"30344300",165.87,"CORONA GAS"
"Bracknell Forest Council","http://opendatacommunities.org/id/unitary-authority/bracknell-forest","","","Secondary Schools","Delegated Primary School Budgets","Winkfield St Mary's - Primary","Electricity",12/11/2018 00:00:00,"30346303",488.13,"BRITISH GAS TRADING"
"Bracknell Forest Council","http://opendatacommunities.org/id/unitary-authority/bracknell-forest","","","Secondary Schools","Delegated Primary School Budgets","St Michael's (Easthampstead) - Primary","Electricity",10/08/2018 00:00:00,"30340683",429.74,"BRITISH GAS TRADING"
"Bracknell Forest Council","http://opendatacommunities.org/id/unitary-authority/bracknell-forest","","","Secondary Schools","Delegated Primary School Budgets","St Michael's (Easthampstead) - Primary","Electricity",10/08/2018 00:00:00,"30340683",49.26,"BRITISH GAS TRADING"
"Bracknell Forest Council","http://opendatacommunities.org/id/unitary-authority/bracknell-forest","","","Secondary Schools","Delegated Primary School Budgets","St Michael's (Easthampstead) - Primary","Electricity",10/08/2018 00:00:00,"30340683",262.88,"BRITISH GAS TRADING"
"Bracknell Forest Council","http://opendatacommunities.org/id/unitary-authority/bracknell-forest","","","Secondary Schools","Delegated Primary School Budgets","St Michael's (Easthampstead) - Primary","Gas",10/08/2018 00:00:00,"30341042",124.67,"CORONA GAS"
"Bracknell Forest Council","http://opendatacommunities.org/id/unitary-authority/bracknell-forest","","","Secondary Schools","Delegated Primary School Budgets","St Michael's (Easthampstead) - Primary","Gas",10/08/2018 00:00:00,"30341042",12.4,"CORONA GAS"
"Bracknell Forest Council","http://opendatacommunities.org/id/unitary-authority/bracknell-forest","","","Secondary Schools","Delegated Primary School Budgets","St Michael's (Easthampstead) - Primary","Electricity",10/09/2018 00:00:00,"30342617",61.49,"BRITISH GAS TRADING"
"Bracknell Forest Council","http://opendatacommunities.org/id/unitary-authority/bracknell-forest","","","Secondary Schools","Delegated Primary School Budgets","St Michael's (Easthampstead) - Primary","Electricity",10/09/2018 00:00:00,"30342617",282.68,"BRITISH GAS TRADING"
"Bracknell Forest Council","http://opendatacommunities.org/id/unitary-authority/bracknell-forest","","","Secondary Schools","Delegated Primary School Budgets","St Michael's (Easthampstead) - Primary","Electricity",10/09/2018 00:00:00,"30342617",46.59,"BRITISH GAS TRADING"
"Bracknell Forest Council","http://opendatacommunities.org/id/unitary-authority/bracknell-forest","","","Secondary Schools","Delegated Primary School Budgets","St Michael's (Easthampstead) - Primary","Gas",10/09/2018 00:00:00,"30342800",12.4,"CORONA GAS"
"Bracknell Forest Council","http://opendatacommunities.org/id/unitary-authority/bracknell-forest","","","Secondary Schools","Delegated Primary School Budgets","St Michael's (Easthampstead) - Primary","Gas",10/09/2018 00:00:00,"30342800",121.71,"CORONA GAS"
"Bracknell Forest Council","http://opendatacommunities.org/id/unitary-authority/bracknell-forest","","","Secondary Schools","Delegated Primary School Budgets","St Michael's (Easthampstead) - Primary","Electricity",10/10/2018 00:00:00,"30344074",462.09,"BRITISH GAS TRADING"
"Bracknell Forest Council","http://opendatacommunities.org/id/unitary-authority/bracknell-forest","","","Secondary Schools","Delegated Primary School Budgets","St Michael's (Easthampstead) - Primary","Electricity",10/10/2018 00:00:00,"30344074",174.59,"BRITISH GAS TRADING"
"Bracknell Forest Council","http://opendatacommunities.org/id/unitary-authority/bracknell-forest","","","Secondary Schools","Delegated Primary School Budgets","St Michael's (Easthampstead) - Primary","Electricity",10/10/2018 00:00:00,"30344074",65.27,"BRITISH GAS TRADING"
"Bracknell Forest Council","http://opendatacommunities.org/id/unitary-authority/bracknell-forest","","","Secondary Schools","Delegated Primary School Budgets","St Michael's (Easthampstead) - Primary","Gas",10/10/2018 00:00:00,"30344300",129.03,"CORONA GAS"
"Bracknell Forest Council","http://opendatacommunities.org/id/unitary-authority/bracknell-forest","","","Secondary Schools","Delegated Primary School Budgets","St Michael's (Easthampstead) - Primary","Gas",10/10/2018 00:00:00,"30344300",12,"CORONA GAS"
"Bracknell Forest Council","http://opendatacommunities.org/id/unitary-authority/bracknell-forest","","","Secondary Schools","Delegated Primary School Budgets","St Michael's (Easthampstead) - Primary","Electricity",12/11/2018 00:00:00,"30346303",512.18,"BRITISH GAS TRADING"
"Bracknell Forest Council","http://opendatacommunities.org/id/unitary-authority/bracknell-forest","","","Secondary Schools","Delegated Primary School Budgets","St Michael's (Easthampstead) - Primary","Electricity",12/11/2018 00:00:00,"30346303",101.41,"BRITISH GAS TRADING"
"Bracknell Forest Council","http://opendatacommunities.org/id/unitary-authority/bracknell-forest","","","Secondary Schools","Delegated Primary School Budgets","St Michael's (Easthampstead) - Primary","Electricity",12/11/2018 00:00:00,"30346303",152.34,"BRITISH GAS TRADING"
"Bracknell Forest Council","http://opendatacommunities.org/id/unitary-authority/bracknell-forest","","","Secondary Schools","Delegated Primary School Budgets","St Michael's (Sandhurst) - Primary","Electricity",10/08/2018 00:00:00,"30340683",456,"BRITISH GAS TRADING"
"Bracknell Forest Council","http://opendatacommunities.org/id/unitary-authority/bracknell-forest","","","Secondary Schools","Delegated Primary School Budgets","St Michael's (Sandhurst) - Primary","Gas",10/08/2018 00:00:00,"30341042",146.09,"CORONA GAS"
"Bracknell Forest Council","http://opendatacommunities.org/id/unitary-authority/bracknell-forest","","","Secondary Schools","Delegated Primary School Budgets","St Michael's (Sandhurst) - Primary","Electricity",10/09/2018 00:00:00,"30342617",318.47,"BRITISH GAS TRADING"
"Bracknell Forest Council","http://opendatacommunities.org/id/unitary-authority/bracknell-forest","","","Secondary Schools","Delegated Primary School Budgets","St Michael's (Sandhurst) - Primary","Gas",10/09/2018 00:00:00,"30342800",109.23,"CORONA GAS"
"Bracknell Forest Council","http://opendatacommunities.org/id/unitary-authority/bracknell-forest","","","Secondary Schools","Delegated Primary School Budgets","St Michael's (Sandhurst) - Primary","Electricity",10/10/2018 00:00:00,"30344074",493.36,"BRITISH GAS TRADING"
"Bracknell Forest Council","http://opendatacommunities.org/id/unitary-authority/bracknell-forest","","","Secondary Schools","Delegated Primary School Budgets","St Michael's (Sandhurst) - Primary","Gas",10/10/2018 00:00:00,"30344300",172.93,"CORONA GAS"
"Bracknell Forest Council","http://opendatacommunities.org/id/unitary-authority/bracknell-forest","","","Secondary Schools","Delegated Primary School Budgets","St Michael's (Sandhurst) - Primary","Electricity",12/11/2018 00:00:00,"30346303",542.6,"BRITISH GAS TRADING"
"Bracknell Forest Council","http://opendatacommunities.org/id/unitary-authority/bracknell-forest","","","Secondary Schools","Delegated Primary School Budgets","Uplands - Primary","Electricity",10/08/2018 00:00:00,"30340683",511.03,"BRITISH GAS TRADING"
"Bracknell Forest Council","http://opendatacommunities.org/id/unitary-authority/bracknell-forest","","","Secondary Schools","Delegated Primary School Budgets","Uplands - Primary","Gas",10/08/2018 00:00:00,"30341042",149.96,"CORONA GAS"
"Bracknell Forest Council","http://opendatacommunities.org/id/unitary-authority/bracknell-forest","","","Secondary Schools","Delegated Primary School Budgets","Uplands - Primary","Electricity",10/09/2018 00:00:00,"30342617",298.09,"BRITISH GAS TRADING"
"Bracknell Forest Council","http://opendatacommunities.org/id/unitary-authority/bracknell-forest","","","Secondary Schools","Delegated Primary School Budgets","Uplands - Primary","Gas",10/09/2018 00:00:00,"30342800",147.37,"CORONA GAS"
"Bracknell Forest Council","http://opendatacommunities.org/id/unitary-authority/bracknell-forest","","","Secondary Schools","Delegated Primary School Budgets","Uplands - Primary","Electricity",10/10/2018 00:00:00,"30344074",610.98,"BRITISH GAS TRADING"
"Bracknell Forest Council","http://opendatacommunities.org/id/unitary-authority/bracknell-forest","","","Secondary Schools","Delegated Primary School Budgets","Uplands - Primary","Gas",10/10/2018 00:00:00,"30344300",213.86,"CORONA GAS"
"Bracknell Forest Council","http://opendatacommunities.org/id/unitary-authority/bracknell-forest","","","Secondary Schools","Delegated Primary School Budgets","Uplands - Primary","Electricity",12/11/2018 00:00:00,"30346303",644.64,"BRITISH GAS TRADING"
"Bracknell Forest Council","http://opendatacommunities.org/id/unitary-authority/bracknell-forest","","","Secondary Schools","Delegated Primary School Budgets","Warfield CE - Primary","Gas",10/08/2018 00:00:00,"30341042",176.3,"CORONA GAS"
"Bracknell Forest Council","http://opendatacommunities.org/id/unitary-authority/bracknell-forest","","","Secondary Schools","Delegated Primary School Budgets","Warfield CE - Primary","Electricity",06/08/2018 00:00:00,"30341689",3124,"EDF ENERY"
"Bracknell Forest Council","http://opendatacommunities.org/id/unitary-authority/bracknell-forest","","","Secondary Schools","Delegated Primary School Budgets","Warfield CE - Primary","Electricity",06/08/2018 00:00:00,"30341689",809.33,"EDF ENERY"
"Bracknell Forest Council","http://opendatacommunities.org/id/unitary-authority/bracknell-forest","","","Secondary Schools","Delegated Primary School Budgets","Warfield CE - Primary","Gas",10/09/2018 00:00:00,"30342800",150.36,"CORONA GAS"
"Bracknell Forest Council","http://opendatacommunities.org/id/unitary-authority/bracknell-forest","","","Secondary Schools","Delegated Primary School Budgets","Warfield CE - Primary","Electricity",05/09/2018 00:00:00,"30342945",518.03,"EDF ENERY"
"Bracknell Forest Council","http://opendatacommunities.org/id/unitary-authority/bracknell-forest","","","Secondary Schools","Delegated Primary School Budgets","Warfield CE - Primary","Gas",10/10/2018 00:00:00,"30344300",266.6,"CORONA GAS"
"Bracknell Forest Council","http://opendatacommunities.org/id/unitary-authority/bracknell-forest","","","Secondary Schools","Delegated Primary School Budgets","Warfield CE - Primary","Electricity",08/10/2018 00:00:00,"30344789",-24646.14,"EDF ENERY"
"Bracknell Forest Council","http://opendatacommunities.org/id/unitary-authority/bracknell-forest","","","Secondary Schools","Delegated Primary School Budgets","Warfield CE - Primary","Electricity",08/10/2018 00:00:00,"30344789",-3245.62,"EDF ENERY"
"Bracknell Forest Council","http://opendatacommunities.org/id/unitary-authority/bracknell-forest","","","Secondary Schools","Delegated Primary School Budgets","Warfield CE - Primary","Electricity",08/10/2018 00:00:00,"30344789",-3503.9,"EDF ENERY"
"Bracknell Forest Council","http://opendatacommunities.org/id/unitary-authority/bracknell-forest","","","Secondary Schools","Delegated Primary School Budgets","Warfield CE - Primary","Electricity",08/10/2018 00:00:00,"30344789",-3172.27,"EDF ENERY"
"Bracknell Forest Council","http://opendatacommunities.org/id/unitary-authority/bracknell-forest","","","Secondary Schools","Delegated Primary School Budgets","Warfield CE - Primary","Electricity",08/10/2018 00:00:00,"30344789",-3124,"EDF ENERY"
"Bracknell Forest Council","http://opendatacommunities.org/id/unitary-authority/bracknell-forest","","","Secondary Schools","Delegated Primary School Budgets","Warfield CE - Primary","Electricity",08/10/2018 00:00:00,"30344789",878.97,"EDF ENERY"
"Bracknell Forest Council","http://opendatacommunities.org/id/unitary-authority/bracknell-forest","","","Secondary Schools","Delegated Primary School Budgets","Warfield CE - Primary","Electricity",05/11/2018 00:00:00,"30346317",1000.89,"EDF ENERY"
"Bracknell Forest Council","http://opendatacommunities.org/id/unitary-authority/bracknell-forest","","","Secondary Schools","Delegated Primary School Budgets","Whitegrove - Primary","Gas",10/08/2018 00:00:00,"30341042",329.1,"CORONA GAS"
"Bracknell Forest Council","http://opendatacommunities.org/id/unitary-authority/bracknell-forest","","","Secondary Schools","Delegated Primary School Budgets","Whitegrove - Primary","Electricity",06/08/2018 00:00:00,"30341689",1070.05,"EDF ENERY"
"Bracknell Forest Council","http://opendatacommunities.org/id/unitary-authority/bracknell-forest","","","Secondary Schools","Delegated Primary School Budgets","Whitegrove - Primary","Gas",10/09/2018 00:00:00,"30342800",248.5,"CORONA GAS"
"Bracknell Forest Council","http://opendatacommunities.org/id/unitary-authority/bracknell-forest","","","Secondary Schools","Delegated Primary School Budgets","Whitegrove - Primary","Electricity",05/09/2018 00:00:00,"30342945",535.54,"EDF ENERY"
"Bracknell Forest Council","http://opendatacommunities.org/id/unitary-authority/bracknell-forest","","","Secondary Schools","Delegated Primary School Budgets","Whitegrove - Primary","Gas",10/10/2018 00:00:00,"30344300",330.11,"CORONA GAS"
"Bracknell Forest Council","http://opendatacommunities.org/id/unitary-authority/bracknell-forest","","","Secondary Schools","Delegated Primary School Budgets","Whitegrove - Primary","Electricity",08/10/2018 00:00:00,"30344789",1095.49,"EDF ENERY"
"Bracknell Forest Council","http://opendatacommunities.org/id/unitary-authority/bracknell-forest","","","Secondary Schools","Delegated Primary School Budgets","Whitegrove - Primary","Electricity",05/11/2018 00:00:00,"30346317",1226.31,"EDF ENERY"
"Bracknell Forest Council","http://opendatacommunities.org/id/unitary-authority/bracknell-forest","","","Secondary Schools","Delegated Primary School Budgets","Wildridings - Primary","Electricity",10/08/2018 00:00:00,"30340683",474.82,"BRITISH GAS TRADING"
"Bracknell Forest Council","http://opendatacommunities.org/id/unitary-authority/bracknell-forest","","","Secondary Schools","Delegated Primary School Budgets","Wildridings - Primary","Electricity",10/08/2018 00:00:00,"30340683",470.09,"BRITISH GAS TRADING"
"Bracknell Forest Council","http://opendatacommunities.org/id/unitary-authority/bracknell-forest","","","Secondary Schools","Delegated Primary School Budgets","Wildridings - Primary","Electricity",10/08/2018 00:00:00,"30340683",70.01,"BRITISH GAS TRADING"
"Bracknell Forest Council","http://opendatacommunities.org/id/unitary-authority/bracknell-forest","","","Secondary Schools","Delegated Primary School Budgets","Wildridings - Primary","Gas",10/08/2018 00:00:00,"30341042",14.26,"CORONA GAS"
"Bracknell Forest Council","http://opendatacommunities.org/id/unitary-authority/bracknell-forest","","","Secondary Schools","Delegated Primary School Budgets","Wildridings - Primary","Gas",10/08/2018 00:00:00,"30341042",99.71,"CORONA GAS"
"Bracknell Forest Council","http://opendatacommunities.org/id/unitary-authority/bracknell-forest","","","Secondary Schools","Delegated Primary School Budgets","Wildridings - Primary","Electricity",10/09/2018 00:00:00,"30342617",286.96,"BRITISH GAS TRADING"
"Bracknell Forest Council","http://opendatacommunities.org/id/unitary-authority/bracknell-forest","","","Secondary Schools","Delegated Primary School Budgets","Wildridings - Primary","Electricity",10/09/2018 00:00:00,"30342617",74.95,"BRITISH GAS TRADING"
"Bracknell Forest Council","http://opendatacommunities.org/id/unitary-authority/bracknell-forest","","","Secondary Schools","Delegated Primary School Budgets","Wildridings - Primary","Electricity",10/09/2018 00:00:00,"30342617",196.87,"BRITISH GAS TRADING"
"Bracknell Forest Council","http://opendatacommunities.org/id/unitary-authority/bracknell-forest","","","Secondary Schools","Delegated Primary School Budgets","Wildridings - Primary","Gas",10/09/2018 00:00:00,"30342800",98.54,"CORONA GAS"
"Bracknell Forest Council","http://opendatacommunities.org/id/unitary-authority/bracknell-forest","","","Secondary Schools","Delegated Primary School Budgets","Wildridings - Primary","Gas",10/09/2018 00:00:00,"30342800",14.26,"CORONA GAS"
"Bracknell Forest Council","http://opendatacommunities.org/id/unitary-authority/bracknell-forest","","","Secondary Schools","Delegated Primary School Budgets","Wildridings - Primary","Electricity",10/10/2018 00:00:00,"30344074",670.23,"BRITISH GAS TRADING"
"Bracknell Forest Council","http://opendatacommunities.org/id/unitary-authority/bracknell-forest","","","Secondary Schools","Delegated Primary School Budgets","Wildridings - Primary","Electricity",10/10/2018 00:00:00,"30344074",648.09,"BRITISH GAS TRADING"
"Bracknell Forest Council","http://opendatacommunities.org/id/unitary-authority/bracknell-forest","","","Secondary Schools","Delegated Primary School Budgets","Wildridings - Primary","Electricity",10/10/2018 00:00:00,"30344074",544.43,"BRITISH GAS TRADING"
"Bracknell Forest Council","http://opendatacommunities.org/id/unitary-authority/bracknell-forest","","","Secondary Schools","Delegated Primary School Budgets","Wildridings - Primary","Gas",10/10/2018 00:00:00,"30344300",13.8,"CORONA GAS"
"Bracknell Forest Council","http://opendatacommunities.org/id/unitary-authority/bracknell-forest","","","Secondary Schools","Delegated Primary School Budgets","Wildridings - Primary","Gas",10/10/2018 00:00:00,"30344300",107.17,"CORONA GAS"
"Bracknell Forest Council","http://opendatacommunities.org/id/unitary-authority/bracknell-forest","","","Secondary Schools","Delegated Primary School Budgets","Wildridings - Primary","Electricity",12/11/2018 00:00:00,"30346303",669.59,"BRITISH GAS TRADING"
"Bracknell Forest Council","http://opendatacommunities.org/id/unitary-authority/bracknell-forest","","","Secondary Schools","Delegated Primary School Budgets","Wildridings - Primary","Electricity",12/11/2018 00:00:00,"30346303",558.53,"BRITISH GAS TRADING"
"Bracknell Forest Council","http://opendatacommunities.org/id/unitary-authority/bracknell-forest","","","Secondary Schools","Delegated Primary School Budgets","Wildridings - Primary","Electricity",12/11/2018 00:00:00,"30346303",657.31,"BRITISH GAS TRADING"
"Bracknell Forest Council","http://opendatacommunities.org/id/unitary-authority/bracknell-forest","","","Secondary Schools","Delegated Primary School Budgets","Wooden Hill - Primary","Electricity",10/08/2018 00:00:00,"30340683",157.33,"BRITISH GAS TRADING"
"Bracknell Forest Council","http://opendatacommunities.org/id/unitary-authority/bracknell-forest","","","Secondary Schools","Delegated Primary School Budgets","Wooden Hill - Primary","Electricity",10/08/2018 00:00:00,"30340683",558.13,"BRITISH GAS TRADING"
"Bracknell Forest Council","http://opendatacommunities.org/id/unitary-authority/bracknell-forest","","","Secondary Schools","Delegated Primary School Budgets","Wooden Hill - Primary","Gas",10/08/2018 00:00:00,"30341042",170.18,"CORONA GAS"
"Bracknell Forest Council","http://opendatacommunities.org/id/unitary-authority/bracknell-forest","","","Secondary Schools","Delegated Primary School Budgets","Wooden Hill - Primary","Gas",10/08/2018 00:00:00,"30341042",38.26,"CORONA GAS"
"Bracknell Forest Council","http://opendatacommunities.org/id/unitary-authority/bracknell-forest","","","Secondary Schools","Delegated Primary School Budgets","Wooden Hill - Primary","Electricity",10/09/2018 00:00:00,"30342617",316.27,"BRITISH GAS TRADING"
"Bracknell Forest Council","http://opendatacommunities.org/id/unitary-authority/bracknell-forest","","","Secondary Schools","Delegated Primary School Budgets","Wooden Hill - Primary","Electricity",10/09/2018 00:00:00,"30342617",53.28,"BRITISH GAS TRADING"
"Bracknell Forest Council","http://opendatacommunities.org/id/unitary-authority/bracknell-forest","","","Secondary Schools","Delegated Primary School Budgets","Wooden Hill - Primary","Gas",10/09/2018 00:00:00,"30342800",38.05,"CORONA GAS"
"Bracknell Forest Council","http://opendatacommunities.org/id/unitary-authority/bracknell-forest","","","Secondary Schools","Delegated Primary School Budgets","Wooden Hill - Primary","Gas",10/09/2018 00:00:00,"30342800",154.34,"CORONA GAS"
"Bracknell Forest Council","http://opendatacommunities.org/id/unitary-authority/bracknell-forest","","","Secondary Schools","Delegated Primary School Budgets","Wooden Hill - Primary","Electricity",10/10/2018 00:00:00,"30344074",138.39,"BRITISH GAS TRADING"
"Bracknell Forest Council","http://opendatacommunities.org/id/unitary-authority/bracknell-forest","","","Secondary Schools","Delegated Primary School Budgets","Wooden Hill - Primary","Electricity",10/10/2018 00:00:00,"30344074",666.77,"BRITISH GAS TRADING"
"Bracknell Forest Council","http://opendatacommunities.org/id/unitary-authority/bracknell-forest","","","Secondary Schools","Delegated Primary School Budgets","Wooden Hill - Primary","Gas",10/10/2018 00:00:00,"30344300",39.63,"CORONA GAS"
"Bracknell Forest Council","http://opendatacommunities.org/id/unitary-authority/bracknell-forest","","","Secondary Schools","Delegated Primary School Budgets","Wooden Hill - Primary","Gas",10/10/2018 00:00:00,"30344300",209.8,"CORONA GAS"
"Bracknell Forest Council","http://opendatacommunities.org/id/unitary-authority/bracknell-forest","","","Secondary Schools","Delegated Primary School Budgets","Wooden Hill - Primary","Electricity",12/11/2018 00:00:00,"30346303",151.7,"BRITISH GAS TRADING"
"Bracknell Forest Council","http://opendatacommunities.org/id/unitary-authority/bracknell-forest","","","Secondary Schools","Delegated Primary School Budgets","Wooden Hill - Primary","Electricity",12/11/2018 00:00:00,"30346303",833.52,"BRITISH GAS TRADING"
"Bracknell Forest Council","http://opendatacommunities.org/id/unitary-authority/bracknell-forest","","","Management and Support Services - CYPL","Holding Codes - net nil","Jennets Park Academy","Insurance Refunds - Staff",30/07/2018 00:00:00,"6665759",1400,"JENNETTS PARK ACADEMY"
"Bracknell Forest Council","http://opendatacommunities.org/id/unitary-authority/bracknell-forest","","","Management and Support Services - CYPL","Holding Codes - net nil","Jennets Park Academy","Sale of Goods",30/07/2018 00:00:00,"6665759",2229.77,"JENNETTS PARK ACADEMY"
"Bracknell Forest Council","http://opendatacommunities.org/id/unitary-authority/bracknell-forest","","","Management and Support Services - CYPL","Holding Codes - net nil","Jennets Park Academy","Sale of Goods",27/09/2018 00:00:00,"6669024",1590.38,"JENNETTS PARK ACADEMY"
"Bracknell Forest Council","http://opendatacommunities.org/id/unitary-authority/bracknell-forest","","","Management and Support Services - CYPL","Holding Codes - net nil","Jennets Park Academy","Insurance Refunds - Staff",30/11/2018 00:00:00,"6672754",2590,"JENNETTS PARK ACADEMY"
"Bracknell Forest Council","http://opendatacommunities.org/id/unitary-authority/bracknell-forest","","","Management and Support Services - CYPL","Holding Codes - net nil","Jennets Park Academy","Electricity",10/08/2018 00:00:00,"30340683",756.66,"BRITISH GAS TRADING"
"Bracknell Forest Council","http://opendatacommunities.org/id/unitary-authority/bracknell-forest","","","Management and Support Services - CYPL","Holding Codes - net nil","Jennets Park Academy","Electricity",10/08/2018 00:00:00,"30340683",992.45,"BRITISH GAS TRADING"
"Bracknell Forest Council","http://opendatacommunities.org/id/unitary-authority/bracknell-forest","","","Management and Support Services - CYPL","Holding Codes - net nil","Jennets Park Academy","Gas",10/08/2018 00:00:00,"30341042",338.59,"CORONA GAS"
"Bracknell Forest Council","http://opendatacommunities.org/id/unitary-authority/bracknell-forest","","","Management and Support Services - CYPL","Holding Codes - net nil","Jennets Park Academy","Electricity",10/09/2018 00:00:00,"30342617",788.22,"BRITISH GAS TRADING"
"Bracknell Forest Council","http://opendatacommunities.org/id/unitary-authority/bracknell-forest","","","Management and Support Services - CYPL","Holding Codes - net nil","Jennets Park Academy","Electricity",10/09/2018 00:00:00,"30342617",991.72,"BRITISH GAS TRADING"
"Bracknell Forest Council","http://opendatacommunities.org/id/unitary-authority/bracknell-forest","","","Management and Support Services - CYPL","Holding Codes - net nil","Jennets Park Academy","Electricity",10/09/2018 00:00:00,"30342617",974.51,"BRITISH GAS TRADING"
"Bracknell Forest Council","http://opendatacommunities.org/id/unitary-authority/bracknell-forest","","","Management and Support Services - CYPL","Holding Codes - net nil","Jennets Park Academy","Electricity",10/09/2018 00:00:00,"30342617",864.2,"BRITISH GAS TRADING"
"Bracknell Forest Council","http://opendatacommunities.org/id/unitary-authority/bracknell-forest","","","Management and Support Services - CYPL","Holding Codes - net nil","Jennets Park Academy","Electricity",10/09/2018 00:00:00,"30342617",495.31,"BRITISH GAS TRADING"
"Bracknell Forest Council","http://opendatacommunities.org/id/unitary-authority/bracknell-forest","","","Management and Support Services - CYPL","Holding Codes - net nil","Jennets Park Academy","Gas",10/09/2018 00:00:00,"30342800",323.76,"CORONA GAS"
"Bracknell Forest Council","http://opendatacommunities.org/id/unitary-authority/bracknell-forest","","","Management and Support Services - CYPL","Holding Codes - net nil","Jennets Park Academy","Electricity",10/10/2018 00:00:00,"30344074",993.07,"BRITISH GAS TRADING"
"Bracknell Forest Council","http://opendatacommunities.org/id/unitary-authority/bracknell-forest","","","Management and Support Services - CYPL","Holding Codes - net nil","Jennets Park Academy","Gas",10/10/2018 00:00:00,"30344300",352.28,"CORONA GAS"
"Bracknell Forest Council","http://opendatacommunities.org/id/unitary-authority/bracknell-forest","","","Management and Support Services - CYPL","Holding Codes - net nil","Jennets Park Academy","Electricity",12/11/2018 00:00:00,"30346303",1058.47,"BRITISH GAS TRADING"
"Bracknell Forest Council","http://opendatacommunities.org/id/unitary-authority/bracknell-forest","","","Management and Support Services - CYPL","Holding Codes - net nil","The Brakenhale Academy","Electricity",10/08/2018 00:00:00,"30340683",586.53,"BRITISH GAS TRADING"
"Bracknell Forest Council","http://opendatacommunities.org/id/unitary-authority/bracknell-forest","","","Management and Support Services - CYPL","Holding Codes - net nil","The Brakenhale Academy","Electricity",10/08/2018 00:00:00,"30340683",80.54,"BRITISH GAS TRADING"
"Bracknell Forest Council","http://opendatacommunities.org/id/unitary-authority/bracknell-forest","","","Management and Support Services - CYPL","Holding Codes - net nil","The Brakenhale Academy","Gas",10/08/2018 00:00:00,"30341042",72.77,"CORONA GAS"
"Bracknell Forest Council","http://opendatacommunities.org/id/unitary-authority/bracknell-forest","","","Management and Support Services - CYPL","Holding Codes - net nil","The Brakenhale Academy","Gas",10/08/2018 00:00:00,"30341042",64.84,"CORONA GAS"
"Bracknell Forest Council","http://opendatacommunities.org/id/unitary-authority/bracknell-forest","","","Management and Support Services - CYPL","Holding Codes - net nil","The Brakenhale Academy","Gas",10/08/2018 00:00:00,"30341042",34.19,"CORONA GAS"
"Bracknell Forest Council","http://opendatacommunities.org/id/unitary-authority/bracknell-forest","","","Management and Support Services - CYPL","Holding Codes - net nil","The Brakenhale Academy","Electricity",06/08/2018 00:00:00,"30341689",79.94,"EDF ENERY"
"Bracknell Forest Council","http://opendatacommunities.org/id/unitary-authority/bracknell-forest","","","Management and Support Services - CYPL","Holding Codes - net nil","The Brakenhale Academy","Electricity",06/08/2018 00:00:00,"30341689",4052.05,"EDF ENERY"
"Bracknell Forest Council","http://opendatacommunities.org/id/unitary-authority/bracknell-forest","","","Management and Support Services - CYPL","Holding Codes - net nil","The Brakenhale Academy","Electricity",10/09/2018 00:00:00,"30342617",190.59,"BRITISH GAS TRADING"
"Bracknell Forest Council","http://opendatacommunities.org/id/unitary-authority/bracknell-forest","","","Management and Support Services - CYPL","Holding Codes - net nil","The Brakenhale Academy","Electricity",10/09/2018 00:00:00,"30342617",51.72,"BRITISH GAS TRADING"
"Bracknell Forest Council","http://opendatacommunities.org/id/unitary-authority/bracknell-forest","","","Management and Support Services - CYPL","Holding Codes - net nil","The Brakenhale Academy","Gas",10/09/2018 00:00:00,"30342800",64.21,"CORONA GAS"
"Bracknell Forest Council","http://opendatacommunities.org/id/unitary-authority/bracknell-forest","","","Management and Support Services - CYPL","Holding Codes - net nil","The Brakenhale Academy","Gas",10/09/2018 00:00:00,"30342800",72.16,"CORONA GAS"
"Bracknell Forest Council","http://opendatacommunities.org/id/unitary-authority/bracknell-forest","","","Management and Support Services - CYPL","Holding Codes - net nil","The Brakenhale Academy","Gas",10/09/2018 00:00:00,"30342800",34,"CORONA GAS"
"Bracknell Forest Council","http://opendatacommunities.org/id/unitary-authority/bracknell-forest","","","Management and Support Services - CYPL","Holding Codes - net nil","The Brakenhale Academy","Electricity",05/09/2018 00:00:00,"30342945",79.94,"EDF ENERY"
"Bracknell Forest Council","http://opendatacommunities.org/id/unitary-authority/bracknell-forest","","","Management and Support Services - CYPL","Holding Codes - net nil","The Brakenhale Academy","Electricity",05/09/2018 00:00:00,"30342945",2181.17,"EDF ENERY"
"Bracknell Forest Council","http://opendatacommunities.org/id/unitary-authority/bracknell-forest","","","Management and Support Services - CYPL","Holding Codes - net nil","The Brakenhale Academy","Electricity",10/10/2018 00:00:00,"30344074",723.46,"BRITISH GAS TRADING"
"Bracknell Forest Council","http://opendatacommunities.org/id/unitary-authority/bracknell-forest","","","Management and Support Services - CYPL","Holding Codes - net nil","The Brakenhale Academy","Electricity",10/10/2018 00:00:00,"30344074",140.43,"BRITISH GAS TRADING"
"Bracknell Forest Council","http://opendatacommunities.org/id/unitary-authority/bracknell-forest","","","Management and Support Services - CYPL","Holding Codes - net nil","The Brakenhale Academy","Gas",10/10/2018 00:00:00,"30344300",68.67,"CORONA GAS"
"Bracknell Forest Council","http://opendatacommunities.org/id/unitary-authority/bracknell-forest","","","Management and Support Services - CYPL","Holding Codes - net nil","The Brakenhale Academy","Gas",10/10/2018 00:00:00,"30344300",77.28,"CORONA GAS"
"Bracknell Forest Council","http://opendatacommunities.org/id/unitary-authority/bracknell-forest","","","Management and Support Services - CYPL","Holding Codes - net nil","The Brakenhale Academy","Gas",10/10/2018 00:00:00,"30344300",35.45,"CORONA GAS"
"Bracknell Forest Council","http://opendatacommunities.org/id/unitary-authority/bracknell-forest","","","Management and Support Services - CYPL","Holding Codes - net nil","The Brakenhale Academy","Electricity",08/10/2018 00:00:00,"30344789",177.96,"EDF ENERY"
"Bracknell Forest Council","http://opendatacommunities.org/id/unitary-authority/bracknell-forest","","","Management and Support Services - CYPL","Holding Codes - net nil","The Brakenhale Academy","Electricity",08/10/2018 00:00:00,"30344789",4409.76,"EDF ENERY"
"Bracknell Forest Council","http://opendatacommunities.org/id/unitary-authority/bracknell-forest","","","Management and Support Services - CYPL","Holding Codes - net nil","The Brakenhale Academy","Electricity",12/11/2018 00:00:00,"30346303",735.36,"BRITISH GAS TRADING"
"Bracknell Forest Council","http://opendatacommunities.org/id/unitary-authority/bracknell-forest","","","Management and Support Services - CYPL","Holding Codes - net nil","The Brakenhale Academy","Electricity",12/11/2018 00:00:00,"30346303",154,"BRITISH GAS TRADING"
"Bracknell Forest Council","http://opendatacommunities.org/id/unitary-authority/bracknell-forest","","","Management and Support Services - CYPL","Holding Codes - net nil","The Brakenhale Academy","Electricity",05/11/2018 00:00:00,"30346317",414.62,"EDF ENERY"
"Bracknell Forest Council","http://opendatacommunities.org/id/unitary-authority/bracknell-forest","","","Management and Support Services - CYPL","Holding Codes - net nil","The Brakenhale Academy","Electricity",05/11/2018 00:00:00,"30346317",5319.12,"EDF ENERY"
"Bracknell Forest Council","http://opendatacommunities.org/id/unitary-authority/bracknell-forest","","","Special Schools","Delegated Secondary Schools Budgets","Easthampstead Park Community - Secondary","Gas",10/08/2018 00:00:00,"30341042",859.41,"CORONA GAS"
"Bracknell Forest Council","http://opendatacommunities.org/id/unitary-authority/bracknell-forest","","","Special Schools","Delegated Secondary Schools Budgets","Easthampstead Park Community - Secondary","Electricity",06/08/2018 00:00:00,"30341689",4689.65,"EDF ENERY"
"Bracknell Forest Council","http://opendatacommunities.org/id/unitary-authority/bracknell-forest","","","Special Schools","Delegated Secondary Schools Budgets","Easthampstead Park Community - Secondary","Electricity",05/09/2018 00:00:00,"30342945",2823.94,"EDF ENERY"
"Bracknell Forest Council","http://opendatacommunities.org/id/unitary-authority/bracknell-forest","","","Special Schools","Delegated Secondary Schools Budgets","Easthampstead Park Community - Secondary","Gas",10/10/2018 00:00:00,"30344300",1114.22,"CORONA GAS"
"Bracknell Forest Council","http://opendatacommunities.org/id/unitary-authority/bracknell-forest","","","Special Schools","Delegated Secondary Schools Budgets","Easthampstead Park Community - Secondary","Electricity",08/10/2018 00:00:00,"30344789",5726.85,"EDF ENERY"
"Bracknell Forest Council","http://opendatacommunities.org/id/unitary-authority/bracknell-forest","","","Special Schools","Delegated Secondary Schools Budgets","Easthampstead Park Community - Secondary","Electricity",05/11/2018 00:00:00,"30346317",6425.01,"EDF ENERY"
"Bracknell Forest Council","http://opendatacommunities.org/id/unitary-authority/bracknell-forest","","","Management and Support Services - CYPL","Holding Codes - net nil","Edgbarrow Academy","Electricity",10/08/2018 00:00:00,"30340683",824.69,"BRITISH GAS TRADING"
"Bracknell Forest Council","http://opendatacommunities.org/id/unitary-authority/bracknell-forest","","","Management and Support Services - CYPL","Holding Codes - net nil","Edgbarrow Academy","Electricity",10/08/2018 00:00:00,"30340683",247.68,"BRITISH GAS TRADING"
"Bracknell Forest Council","http://opendatacommunities.org/id/unitary-authority/bracknell-forest","","","Management and Support Services - CYPL","Holding Codes - net nil","Edgbarrow Academy","Electricity",10/08/2018 00:00:00,"30340683",209.53,"BRITISH GAS TRADING"
"Bracknell Forest Council","http://opendatacommunities.org/id/unitary-authority/bracknell-forest","","","Management and Support Services - CYPL","Holding Codes - net nil","Edgbarrow Academy","Electricity",10/08/2018 00:00:00,"30340683",81.87,"BRITISH GAS TRADING"
"Bracknell Forest Council","http://opendatacommunities.org/id/unitary-authority/bracknell-forest","","","Management and Support Services - CYPL","Holding Codes - net nil","Edgbarrow Academy","Gas",10/08/2018 00:00:00,"30341042",629.9,"CORONA GAS"
"Bracknell Forest Council","http://opendatacommunities.org/id/unitary-authority/bracknell-forest","","","Management and Support Services - CYPL","Holding Codes - net nil","Edgbarrow Academy","Gas",10/08/2018 00:00:00,"30341042",585.49,"CORONA GAS"
"Bracknell Forest Council","http://opendatacommunities.org/id/unitary-authority/bracknell-forest","","","Management and Support Services - CYPL","Holding Codes - net nil","Edgbarrow Academy","Gas",10/08/2018 00:00:00,"30341042",70.31,"CORONA GAS"
"Bracknell Forest Council","http://opendatacommunities.org/id/unitary-authority/bracknell-forest","","","Management and Support Services - CYPL","Holding Codes - net nil","Edgbarrow Academy","Electricity",06/08/2018 00:00:00,"30341689",3788.38,"EDF ENERY"
"Bracknell Forest Council","http://opendatacommunities.org/id/unitary-authority/bracknell-forest","","","Management and Support Services - CYPL","Holding Codes - net nil","Edgbarrow Academy","Electricity",06/08/2018 00:00:00,"30341689",1063.96,"EDF ENERY"
"Bracknell Forest Council","http://opendatacommunities.org/id/unitary-authority/bracknell-forest","","","Management and Support Services - CYPL","Holding Codes - net nil","Edgbarrow Academy","Electricity",10/09/2018 00:00:00,"30342617",55.99,"BRITISH GAS TRADING"
"Bracknell Forest Council","http://opendatacommunities.org/id/unitary-authority/bracknell-forest","","","Management and Support Services - CYPL","Holding Codes - net nil","Edgbarrow Academy","Electricity",10/09/2018 00:00:00,"30342617",600.23,"BRITISH GAS TRADING"
"Bracknell Forest Council","http://opendatacommunities.org/id/unitary-authority/bracknell-forest","","","Management and Support Services - CYPL","Holding Codes - net nil","Edgbarrow Academy","Electricity",10/09/2018 00:00:00,"30342617",217.47,"BRITISH GAS TRADING"
"Bracknell Forest Council","http://opendatacommunities.org/id/unitary-authority/bracknell-forest","","","Management and Support Services - CYPL","Holding Codes - net nil","Edgbarrow Academy","Electricity",10/09/2018 00:00:00,"30342617",109.12,"BRITISH GAS TRADING"
"Bracknell Forest Council","http://opendatacommunities.org/id/unitary-authority/bracknell-forest","","","Management and Support Services - CYPL","Holding Codes - net nil","Edgbarrow Academy","Gas",10/09/2018 00:00:00,"30342800",612.25,"CORONA GAS"
"Bracknell Forest Council","http://opendatacommunities.org/id/unitary-authority/bracknell-forest","","","Management and Support Services - CYPL","Holding Codes - net nil","Edgbarrow Academy","Gas",10/09/2018 00:00:00,"30342800",69.72,"CORONA GAS"
"Bracknell Forest Council","http://opendatacommunities.org/id/unitary-authority/bracknell-forest","","","Management and Support Services - CYPL","Holding Codes - net nil","Edgbarrow Academy","Gas",10/09/2018 00:00:00,"30342800",556.7,"CORONA GAS"
"Bracknell Forest Council","http://opendatacommunities.org/id/unitary-authority/bracknell-forest","","","Management and Support Services - CYPL","Holding Codes - net nil","Edgbarrow Academy","Electricity",05/09/2018 00:00:00,"30342945",1804.99,"EDF ENERY"
"Bracknell Forest Council","http://opendatacommunities.org/id/unitary-authority/bracknell-forest","","","Management and Support Services - CYPL","Holding Codes - net nil","Edgbarrow Academy","Electricity",05/09/2018 00:00:00,"30342945",1175.32,"EDF ENERY"
"Bracknell Forest Council","http://opendatacommunities.org/id/unitary-authority/bracknell-forest","","","Management and Support Services - CYPL","Holding Codes - net nil","Edgbarrow Academy","Electricity",10/10/2018 00:00:00,"30344074",6.94,"BRITISH GAS TRADING"
"Bracknell Forest Council","http://opendatacommunities.org/id/unitary-authority/bracknell-forest","","","Management and Support Services - CYPL","Holding Codes - net nil","Edgbarrow Academy","Electricity",10/10/2018 00:00:00,"30344074",206.47,"BRITISH GAS TRADING"
"Bracknell Forest Council","http://opendatacommunities.org/id/unitary-authority/bracknell-forest","","","Management and Support Services - CYPL","Holding Codes - net nil","Edgbarrow Academy","Electricity",10/10/2018 00:00:00,"30344074",117.67,"BRITISH GAS TRADING"
"Bracknell Forest Council","http://opendatacommunities.org/id/unitary-authority/bracknell-forest","","","Management and Support Services - CYPL","Holding Codes - net nil","Edgbarrow Academy","Electricity",10/10/2018 00:00:00,"30344074",1121.58,"BRITISH GAS TRADING"
"Bracknell Forest Council","http://opendatacommunities.org/id/unitary-authority/bracknell-forest","","","Management and Support Services - CYPL","Holding Codes - net nil","Edgbarrow Academy","Gas",10/10/2018 00:00:00,"30344300",781.87,"CORONA GAS"
"Bracknell Forest Council","http://opendatacommunities.org/id/unitary-authority/bracknell-forest","","","Management and Support Services - CYPL","Holding Codes - net nil","Edgbarrow Academy","Gas",10/10/2018 00:00:00,"30344300",674.38,"CORONA GAS"
"Bracknell Forest Council","http://opendatacommunities.org/id/unitary-authority/bracknell-forest","","","Management and Support Services - CYPL","Holding Codes - net nil","Edgbarrow Academy","Gas",10/10/2018 00:00:00,"30344300",74.16,"CORONA GAS"
"Bracknell Forest Council","http://opendatacommunities.org/id/unitary-authority/bracknell-forest","","","Management and Support Services - CYPL","Holding Codes - net nil","Edgbarrow Academy","Electricity",08/10/2018 00:00:00,"30344789",4429.35,"EDF ENERY"
"Bracknell Forest Council","http://opendatacommunities.org/id/unitary-authority/bracknell-forest","","","Management and Support Services - CYPL","Holding Codes - net nil","Edgbarrow Academy","Electricity",08/10/2018 00:00:00,"30344789",1269.46,"EDF ENERY"
"Bracknell Forest Council","http://opendatacommunities.org/id/unitary-authority/bracknell-forest","","","Management and Support Services - CYPL","Holding Codes - net nil","Edgbarrow Academy","Electricity",12/11/2018 00:00:00,"30346303",188.43,"BRITISH GAS TRADING"
"Bracknell Forest Council","http://opendatacommunities.org/id/unitary-authority/bracknell-forest","","","Management and Support Services - CYPL","Holding Codes - net nil","Edgbarrow Academy","Electricity",12/11/2018 00:00:00,"30346303",195.97,"BRITISH GAS TRADING"
"Bracknell Forest Council","http://opendatacommunities.org/id/unitary-authority/bracknell-forest","","","Management and Support Services - CYPL","Holding Codes - net nil","Edgbarrow Academy","Electricity",12/11/2018 00:00:00,"30346303",98.97,"BRITISH GAS TRADING"
"Bracknell Forest Council","http://opendatacommunities.org/id/unitary-authority/bracknell-forest","","","Management and Support Services - CYPL","Holding Codes - net nil","Edgbarrow Academy","Electricity",12/11/2018 00:00:00,"30346303",1179.04,"BRITISH GAS TRADING"
"Bracknell Forest Council","http://opendatacommunities.org/id/unitary-authority/bracknell-forest","","","Management and Support Services - CYPL","Holding Codes - net nil","Edgbarrow Academy","Electricity",05/11/2018 00:00:00,"30346317",4927.11,"EDF ENERY"
"Bracknell Forest Council","http://opendatacommunities.org/id/unitary-authority/bracknell-forest","","","Management and Support Services - CYPL","Holding Codes - net nil","Edgbarrow Academy","Electricity",05/11/2018 00:00:00,"30346317",2048.01,"EDF ENERY"
"Bracknell Forest Council","http://opendatacommunities.org/id/unitary-authority/bracknell-forest","","","Special Schools","Delegated Secondary Schools Budgets","Garth Hill - Secondary","R&M - Service Contracts",31/08/2018 00:00:00,"6668399",4864.8,"HAWKESWORTH APPLIANCE TESTING LIMITED"
"Bracknell Forest Council","http://opendatacommunities.org/id/unitary-authority/bracknell-forest","","","Special Schools","Delegated Secondary Schools Budgets","Garth Hill - Secondary","R&M - Service Contracts",31/08/2018 00:00:00,"6668400",922.8,"HAWKESWORTH APPLIANCE TESTING LIMITED"
"Bracknell Forest Council","http://opendatacommunities.org/id/unitary-authority/bracknell-forest","","","Special Schools","Delegated Secondary Schools Budgets","Garth Hill - Secondary","R&M - Reactive",31/08/2018 00:00:00,"6668883",672,"COMPCO FIRE SYSTEMS"
"Bracknell Forest Council","http://opendatacommunities.org/id/unitary-authority/bracknell-forest","","","Special Schools","Delegated Secondary Schools Budgets","Garth Hill - Secondary","R&M - Reactive",31/08/2018 00:00:00,"6668884",1023.25,"COMPCO FIRE SYSTEMS"
"Bracknell Forest Council","http://opendatacommunities.org/id/unitary-authority/bracknell-forest","","","Special Schools","Delegated Secondary Schools Budgets","Garth Hill - Secondary","R&M - Reactive",12/09/2018 00:00:00,"6669321",2715.5,"B.T.U. (MAINTENANCE) LTD"
"Bracknell Forest Council","http://opendatacommunities.org/id/unitary-authority/bracknell-forest","","","Special Schools","Delegated Secondary Schools Budgets","Garth Hill - Secondary","R&M - Reactive",27/09/2018 00:00:00,"6670011",1245.12,"B.T.U. (MAINTENANCE) LTD"
"Bracknell Forest Council","http://opendatacommunities.org/id/unitary-authority/bracknell-forest","","","Special Schools","Delegated Secondary Schools Budgets","Garth Hill - Secondary","R&M - Reactive",27/09/2018 00:00:00,"6670036",749.38,"B.T.U. (MAINTENANCE) LTD"
"Bracknell Forest Council","http://opendatacommunities.org/id/unitary-authority/bracknell-forest","","","Special Schools","Delegated Secondary Schools Budgets","Garth Hill - Secondary","R&M - Reactive",16/10/2018 00:00:00,"6670455",802.94,"BERKSHIRE MECHANICAL SERVICES"
"Bracknell Forest Council","http://opendatacommunities.org/id/unitary-authority/bracknell-forest","","","Special Schools","Delegated Secondary Schools Budgets","Garth Hill - Secondary","R&M - Reactive",14/11/2018 00:00:00,"6672940",20150.3,"B.T.U. (MAINTENANCE) LTD"
"Bracknell Forest Council","http://opendatacommunities.org/id/unitary-authority/bracknell-forest","","","Special Schools","Delegated Secondary Schools Budgets","Garth Hill - Secondary","Gas",10/08/2018 00:00:00,"30341042",887.09,"CORONA GAS"
"Bracknell Forest Council","http://opendatacommunities.org/id/unitary-authority/bracknell-forest","","","Special Schools","Delegated Secondary Schools Budgets","Garth Hill - Secondary","Gas",10/08/2018 00:00:00,"30341042",259.64,"CORONA GAS"
"Bracknell Forest Council","http://opendatacommunities.org/id/unitary-authority/bracknell-forest","","","Special Schools","Delegated Secondary Schools Budgets","Garth Hill - Secondary","Electricity",06/08/2018 00:00:00,"30341689",12137.52,"EDF ENERY"
"Bracknell Forest Council","http://opendatacommunities.org/id/unitary-authority/bracknell-forest","","","Special Schools","Delegated Secondary Schools Budgets","Garth Hill - Secondary","Electricity",06/08/2018 00:00:00,"30341689",630.03,"EDF ENERY"
"Bracknell Forest Council","http://opendatacommunities.org/id/unitary-authority/bracknell-forest","","","Special Schools","Delegated Secondary Schools Budgets","Garth Hill - Secondary","Gas",10/09/2018 00:00:00,"30342800",258.39,"CORONA GAS"
"Bracknell Forest Council","http://opendatacommunities.org/id/unitary-authority/bracknell-forest","","","Special Schools","Delegated Secondary Schools Budgets","Garth Hill - Secondary","Gas",10/09/2018 00:00:00,"30342800",771.5,"CORONA GAS"
"Bracknell Forest Council","http://opendatacommunities.org/id/unitary-authority/bracknell-forest","","","Special Schools","Delegated Secondary Schools Budgets","Garth Hill - Secondary","Electricity",05/09/2018 00:00:00,"30342945",7357.46,"EDF ENERY"
"Bracknell Forest Council","http://opendatacommunities.org/id/unitary-authority/bracknell-forest","","","Special Schools","Delegated Secondary Schools Budgets","Garth Hill - Secondary","Electricity",05/09/2018 00:00:00,"30342945",584.48,"EDF ENERY"
"Bracknell Forest Council","http://opendatacommunities.org/id/unitary-authority/bracknell-forest","","","Special Schools","Delegated Secondary Schools Budgets","Garth Hill - Secondary","Gas",10/10/2018 00:00:00,"30344300",898.44,"CORONA GAS"
"Bracknell Forest Council","http://opendatacommunities.org/id/unitary-authority/bracknell-forest","","","Special Schools","Delegated Secondary Schools Budgets","Garth Hill - Secondary","Gas",10/10/2018 00:00:00,"30344300",284.48,"CORONA GAS"
"Bracknell Forest Council","http://opendatacommunities.org/id/unitary-authority/bracknell-forest","","","Special Schools","Delegated Secondary Schools Budgets","Garth Hill - Secondary","Electricity",08/10/2018 00:00:00,"30344789",10848.81,"EDF ENERY"
"Bracknell Forest Council","http://opendatacommunities.org/id/unitary-authority/bracknell-forest","","","Special Schools","Delegated Secondary Schools Budgets","Garth Hill - Secondary","Electricity",08/10/2018 00:00:00,"30344789",863.56,"EDF ENERY"
"Bracknell Forest Council","http://opendatacommunities.org/id/unitary-authority/bracknell-forest","","","Special Schools","Delegated Secondary Schools Budgets","Garth Hill - Secondary","Electricity",05/11/2018 00:00:00,"30346317",12544.6,"EDF ENERY"
"Bracknell Forest Council","http://opendatacommunities.org/id/unitary-authority/bracknell-forest","","","Special Schools","Delegated Secondary Schools Budgets","Garth Hill - Secondary","Electricity",05/11/2018 00:00:00,"30346317",982.83,"EDF ENERY"
"Bracknell Forest Council","http://opendatacommunities.org/id/unitary-authority/bracknell-forest","","","Special Schools","Delegated Secondary Schools Budgets","Garth Hill - Secondary","R&M - Reactive",16/10/2018 00:00:00,"60014767",802.94,"B.T.U. (MAINTENANCE) LTD"
"Bracknell Forest Council","http://opendatacommunities.org/id/unitary-authority/bracknell-forest","","","Special Schools","Delegated Secondary Schools Budgets","Garth Hill - Secondary","R&M - Reactive",16/10/2018 00:00:00,"60014768",-802.94,"BERKSHIRE MECHANICAL SERVICES"
"Bracknell Forest Council","http://opendatacommunities.org/id/unitary-authority/bracknell-forest","","","Special Schools","Delegated Secondary Schools Budgets","Garth Hill ASD Unit","Rent of Property",23/11/2018 00:00:00,"6672736",21250,"TRUSTEES OF THE BWSIPP  - J R GAYNER- 0668"
"Bracknell Forest Council","http://opendatacommunities.org/id/unitary-authority/bracknell-forest","","","Special Schools","Delegated Secondary Schools Budgets","Garth Hill ASD Unit","Electricity",10/08/2018 00:00:00,"30340683",541.74,"BRITISH GAS TRADING"
"Bracknell Forest Council","http://opendatacommunities.org/id/unitary-authority/bracknell-forest","","","Special Schools","Delegated Secondary Schools Budgets","Garth Hill ASD Unit","Gas",10/08/2018 00:00:00,"30341042",95.65,"CORONA GAS"
"Bracknell Forest Council","http://opendatacommunities.org/id/unitary-authority/bracknell-forest","","","Special Schools","Delegated Secondary Schools Budgets","Garth Hill ASD Unit","Electricity",10/09/2018 00:00:00,"30342617",457.8,"BRITISH GAS TRADING"
"Bracknell Forest Council","http://opendatacommunities.org/id/unitary-authority/bracknell-forest","","","Special Schools","Delegated Secondary Schools Budgets","Garth Hill ASD Unit","Gas",10/09/2018 00:00:00,"30342800",95.25,"CORONA GAS"
"Bracknell Forest Council","http://opendatacommunities.org/id/unitary-authority/bracknell-forest","","","Special Schools","Delegated Secondary Schools Budgets","Garth Hill ASD Unit","Electricity",10/10/2018 00:00:00,"30344074",633.63,"BRITISH GAS TRADING"
"Bracknell Forest Council","http://opendatacommunities.org/id/unitary-authority/bracknell-forest","","","Special Schools","Delegated Secondary Schools Budgets","Garth Hill ASD Unit","Gas",10/10/2018 00:00:00,"30344300",94.6,"CORONA GAS"
"Bracknell Forest Council","http://opendatacommunities.org/id/unitary-authority/bracknell-forest","","","Special Schools","Delegated Secondary Schools Budgets","Garth Hill ASD Unit","Electricity",12/11/2018 00:00:00,"30346303",630.05,"BRITISH GAS TRADING"
"Bracknell Forest Council","http://opendatacommunities.org/id/unitary-authority/bracknell-forest","","","Management and Support Services - CYPL","Holding Codes - net nil","Ranelagh Academy","Electricity",10/08/2018 00:00:00,"30340683",161.87,"BRITISH GAS TRADING"
"Bracknell Forest Council","http://opendatacommunities.org/id/unitary-authority/bracknell-forest","","","Management and Support Services - CYPL","Holding Codes - net nil","Ranelagh Academy","Electricity",10/08/2018 00:00:00,"30340683",64.16,"BRITISH GAS TRADING"
"Bracknell Forest Council","http://opendatacommunities.org/id/unitary-authority/bracknell-forest","","","Management and Support Services - CYPL","Holding Codes - net nil","Ranelagh Academy","Electricity",10/08/2018 00:00:00,"30340683",417.28,"BRITISH GAS TRADING"
"Bracknell Forest Council","http://opendatacommunities.org/id/unitary-authority/bracknell-forest","","","Management and Support Services - CYPL","Holding Codes - net nil","Ranelagh Academy","Gas",10/08/2018 00:00:00,"30341042",178.27,"CORONA GAS"
"Bracknell Forest Council","http://opendatacommunities.org/id/unitary-authority/bracknell-forest","","","Management and Support Services - CYPL","Holding Codes - net nil","Ranelagh Academy","Gas",10/08/2018 00:00:00,"30341042",284.41,"CORONA GAS"
"Bracknell Forest Council","http://opendatacommunities.org/id/unitary-authority/bracknell-forest","","","Management and Support Services - CYPL","Holding Codes - net nil","Ranelagh Academy","Gas",10/08/2018 00:00:00,"30341042",358.39,"CORONA GAS"
"Bracknell Forest Council","http://opendatacommunities.org/id/unitary-authority/bracknell-forest","","","Management and Support Services - CYPL","Holding Codes - net nil","Ranelagh Academy","Gas",10/08/2018 00:00:00,"30341042",73.69,"CORONA GAS"
"Bracknell Forest Council","http://opendatacommunities.org/id/unitary-authority/bracknell-forest","","","Management and Support Services - CYPL","Holding Codes - net nil","Ranelagh Academy","Gas",10/08/2018 00:00:00,"30341042",167.88,"CORONA GAS"
"Bracknell Forest Council","http://opendatacommunities.org/id/unitary-authority/bracknell-forest","","","Management and Support Services - CYPL","Holding Codes - net nil","Ranelagh Academy","Electricity",06/08/2018 00:00:00,"30341689",2059.8,"EDF ENERY"
"Bracknell Forest Council","http://opendatacommunities.org/id/unitary-authority/bracknell-forest","","","Management and Support Services - CYPL","Holding Codes - net nil","Ranelagh Academy","Electricity",06/08/2018 00:00:00,"30341689",1071.54,"EDF ENERY"
"Bracknell Forest Council","http://opendatacommunities.org/id/unitary-authority/bracknell-forest","","","Management and Support Services - CYPL","Holding Codes - net nil","Ranelagh Academy","Electricity",10/09/2018 00:00:00,"30342617",325.07,"BRITISH GAS TRADING"
"Bracknell Forest Council","http://opendatacommunities.org/id/unitary-authority/bracknell-forest","","","Management and Support Services - CYPL","Holding Codes - net nil","Ranelagh Academy","Electricity",10/09/2018 00:00:00,"30342617",181.35,"BRITISH GAS TRADING"
"Bracknell Forest Council","http://opendatacommunities.org/id/unitary-authority/bracknell-forest","","","Management and Support Services - CYPL","Holding Codes - net nil","Ranelagh Academy","Electricity",10/09/2018 00:00:00,"30342617",10.25,"BRITISH GAS TRADING"
"Bracknell Forest Council","http://opendatacommunities.org/id/unitary-authority/bracknell-forest","","","Management and Support Services - CYPL","Holding Codes - net nil","Ranelagh Academy","Gas",10/09/2018 00:00:00,"30342800",189.11,"CORONA GAS"
"Bracknell Forest Council","http://opendatacommunities.org/id/unitary-authority/bracknell-forest","","","Management and Support Services - CYPL","Holding Codes - net nil","Ranelagh Academy","Gas",10/09/2018 00:00:00,"30342800",166.14,"CORONA GAS"
"Bracknell Forest Council","http://opendatacommunities.org/id/unitary-authority/bracknell-forest","","","Management and Support Services - CYPL","Holding Codes - net nil","Ranelagh Academy","Gas",10/09/2018 00:00:00,"30342800",1672.41,"CORONA GAS"
"Bracknell Forest Council","http://opendatacommunities.org/id/unitary-authority/bracknell-forest","","","Management and Support Services - CYPL","Holding Codes - net nil","Ranelagh Academy","Gas",10/09/2018 00:00:00,"30342800",73.07,"CORONA GAS"
"Bracknell Forest Council","http://opendatacommunities.org/id/unitary-authority/bracknell-forest","","","Management and Support Services - CYPL","Holding Codes - net nil","Ranelagh Academy","Gas",10/09/2018 00:00:00,"30342800",1112.92,"CORONA GAS"
"Bracknell Forest Council","http://opendatacommunities.org/id/unitary-authority/bracknell-forest","","","Management and Support Services - CYPL","Holding Codes - net nil","Ranelagh Academy","Electricity",05/09/2018 00:00:00,"30342945",1164.69,"EDF ENERY"
"Bracknell Forest Council","http://opendatacommunities.org/id/unitary-authority/bracknell-forest","","","Management and Support Services - CYPL","Holding Codes - net nil","Ranelagh Academy","Electricity",05/09/2018 00:00:00,"30342945",798.01,"EDF ENERY"
"Bracknell Forest Council","http://opendatacommunities.org/id/unitary-authority/bracknell-forest","","","Management and Support Services - CYPL","Holding Codes - net nil","Ranelagh Academy","Electricity",10/10/2018 00:00:00,"30344074",-181.35,"BRITISH GAS TRADING"
"Bracknell Forest Council","http://opendatacommunities.org/id/unitary-authority/bracknell-forest","","","Management and Support Services - CYPL","Holding Codes - net nil","Ranelagh Academy","Electricity",10/10/2018 00:00:00,"30344074",7.99,"BRITISH GAS TRADING"
"Bracknell Forest Council","http://opendatacommunities.org/id/unitary-authority/bracknell-forest","","","Management and Support Services - CYPL","Holding Codes - net nil","Ranelagh Academy","Electricity",10/10/2018 00:00:00,"30344074",198.65,"BRITISH GAS TRADING"
"Bracknell Forest Council","http://opendatacommunities.org/id/unitary-authority/bracknell-forest","","","Management and Support Services - CYPL","Holding Codes - net nil","Ranelagh Academy","Electricity",10/10/2018 00:00:00,"30344074",57.57,"BRITISH GAS TRADING"
"Bracknell Forest Council","http://opendatacommunities.org/id/unitary-authority/bracknell-forest","","","Management and Support Services - CYPL","Holding Codes - net nil","Ranelagh Academy","Electricity",10/10/2018 00:00:00,"30344074",548.32,"BRITISH GAS TRADING"
"Bracknell Forest Council","http://opendatacommunities.org/id/unitary-authority/bracknell-forest","","","Management and Support Services - CYPL","Holding Codes - net nil","Ranelagh Academy","Gas",10/10/2018 00:00:00,"30344300",215.94,"CORONA GAS"
"Bracknell Forest Council","http://opendatacommunities.org/id/unitary-authority/bracknell-forest","","","Management and Support Services - CYPL","Holding Codes - net nil","Ranelagh Academy","Gas",10/10/2018 00:00:00,"30344300",1476.63,"CORONA GAS"
"Bracknell Forest Council","http://opendatacommunities.org/id/unitary-authority/bracknell-forest","","","Management and Support Services - CYPL","Holding Codes - net nil","Ranelagh Academy","Gas",10/10/2018 00:00:00,"30344300",512.35,"CORONA GAS"
"Bracknell Forest Council","http://opendatacommunities.org/id/unitary-authority/bracknell-forest","","","Management and Support Services - CYPL","Holding Codes - net nil","Ranelagh Academy","Gas",10/10/2018 00:00:00,"30344300",78.65,"CORONA GAS"
"Bracknell Forest Council","http://opendatacommunities.org/id/unitary-authority/bracknell-forest","","","Management and Support Services - CYPL","Holding Codes - net nil","Ranelagh Academy","Gas",10/10/2018 00:00:00,"30344300",475.54,"CORONA GAS"
"Bracknell Forest Council","http://opendatacommunities.org/id/unitary-authority/bracknell-forest","","","Management and Support Services - CYPL","Holding Codes - net nil","Ranelagh Academy","Electricity",08/10/2018 00:00:00,"30344789",2639.81,"EDF ENERY"
"Bracknell Forest Council","http://opendatacommunities.org/id/unitary-authority/bracknell-forest","","","Management and Support Services - CYPL","Holding Codes - net nil","Ranelagh Academy","Electricity",08/10/2018 00:00:00,"30344789",1135.87,"EDF ENERY"
"Bracknell Forest Council","http://opendatacommunities.org/id/unitary-authority/bracknell-forest","","","Management and Support Services - CYPL","Holding Codes - net nil","Ranelagh Academy","Electricity",12/11/2018 00:00:00,"30346303",160.16,"BRITISH GAS TRADING"
"Bracknell Forest Council","http://opendatacommunities.org/id/unitary-authority/bracknell-forest","","","Management and Support Services - CYPL","Holding Codes - net nil","Ranelagh Academy","Electricity",12/11/2018 00:00:00,"30346303",68.26,"BRITISH GAS TRADING"
"Bracknell Forest Council","http://opendatacommunities.org/id/unitary-authority/bracknell-forest","","","Management and Support Services - CYPL","Holding Codes - net nil","Ranelagh Academy","Electricity",12/11/2018 00:00:00,"30346303",585.96,"BRITISH GAS TRADING"
"Bracknell Forest Council","http://opendatacommunities.org/id/unitary-authority/bracknell-forest","","","Management and Support Services - CYPL","Holding Codes - net nil","Ranelagh Academy","Electricity",05/11/2018 00:00:00,"30346317",2878.49,"EDF ENERY"
"Bracknell Forest Council","http://opendatacommunities.org/id/unitary-authority/bracknell-forest","","","Management and Support Services - CYPL","Holding Codes - net nil","Ranelagh Academy","Electricity",05/11/2018 00:00:00,"30346317",1261.74,"EDF ENERY"
"Bracknell Forest Council","http://opendatacommunities.org/id/unitary-authority/bracknell-forest","","","Special Schools","Delegated Secondary Schools Budgets","Sandhurst - Secondary","R&M - Reactive",13/08/2018 00:00:00,"6667365",837.16,"B.T.U. (MAINTENANCE) LTD"
"Bracknell Forest Council","http://opendatacommunities.org/id/unitary-authority/bracknell-forest","","","Special Schools","Delegated Secondary Schools Budgets","Sandhurst - Secondary","R&M - Reactive",09/11/2018 00:00:00,"6672106",760,"CONTROL MATTERS LTD"
"Bracknell Forest Council","http://opendatacommunities.org/id/unitary-authority/bracknell-forest","","","Special Schools","Delegated Secondary Schools Budgets","Sandhurst - Secondary","Electricity",10/08/2018 00:00:00,"30340683",866.15,"BRITISH GAS TRADING"
"Bracknell Forest Council","http://opendatacommunities.org/id/unitary-authority/bracknell-forest","","","Special Schools","Delegated Secondary Schools Budgets","Sandhurst - Secondary","Electricity",10/08/2018 00:00:00,"30340683",145.93,"BRITISH GAS TRADING"
"Bracknell Forest Council","http://opendatacommunities.org/id/unitary-authority/bracknell-forest","","","Special Schools","Delegated Secondary Schools Budgets","Sandhurst - Secondary","Gas",10/08/2018 00:00:00,"30341042",1060.73,"CORONA GAS"
"Bracknell Forest Council","http://opendatacommunities.org/id/unitary-authority/bracknell-forest","","","Special Schools","Delegated Secondary Schools Budgets","Sandhurst - Secondary","Electricity",06/08/2018 00:00:00,"30341689",4027.7,"EDF ENERY"
"Bracknell Forest Council","http://opendatacommunities.org/id/unitary-authority/bracknell-forest","","","Special Schools","Delegated Secondary Schools Budgets","Sandhurst - Secondary","Electricity",10/09/2018 00:00:00,"30342617",69.3,"BRITISH GAS TRADING"
"Bracknell Forest Council","http://opendatacommunities.org/id/unitary-authority/bracknell-forest","","","Special Schools","Delegated Secondary Schools Budgets","Sandhurst - Secondary","Electricity",10/09/2018 00:00:00,"30342617",316.65,"BRITISH GAS TRADING"
"Bracknell Forest Council","http://opendatacommunities.org/id/unitary-authority/bracknell-forest","","","Special Schools","Delegated Secondary Schools Budgets","Sandhurst - Secondary","Gas",10/09/2018 00:00:00,"30342800",911.16,"CORONA GAS"
"Bracknell Forest Council","http://opendatacommunities.org/id/unitary-authority/bracknell-forest","","","Special Schools","Delegated Secondary Schools Budgets","Sandhurst - Secondary","Electricity",10/10/2018 00:00:00,"30344074",787.45,"BRITISH GAS TRADING"
"Bracknell Forest Council","http://opendatacommunities.org/id/unitary-authority/bracknell-forest","","","Special Schools","Delegated Secondary Schools Budgets","Sandhurst - Secondary","Electricity",10/10/2018 00:00:00,"30344074",157.33,"BRITISH GAS TRADING"
"Bracknell Forest Council","http://opendatacommunities.org/id/unitary-authority/bracknell-forest","","","Special Schools","Delegated Secondary Schools Budgets","Sandhurst - Secondary","Gas",10/10/2018 00:00:00,"30344300",1355.17,"CORONA GAS"
"Bracknell Forest Council","http://opendatacommunities.org/id/unitary-authority/bracknell-forest","","","Special Schools","Delegated Secondary Schools Budgets","Sandhurst - Secondary","Electricity",08/10/2018 00:00:00,"30344789",2064.05,"EDF ENERY"
"Bracknell Forest Council","http://opendatacommunities.org/id/unitary-authority/bracknell-forest","","","Special Schools","Delegated Secondary Schools Budgets","Sandhurst - Secondary","Electricity",08/10/2018 00:00:00,"30344789",4320.53,"EDF ENERY"
"Bracknell Forest Council","http://opendatacommunities.org/id/unitary-authority/bracknell-forest","","","Special Schools","Delegated Secondary Schools Budgets","Sandhurst - Secondary","Electricity",12/11/2018 00:00:00,"30346303",778.11,"BRITISH GAS TRADING"
"Bracknell Forest Council","http://opendatacommunities.org/id/unitary-authority/bracknell-forest","","","Special Schools","Delegated Secondary Schools Budgets","Sandhurst - Secondary","Electricity",12/11/2018 00:00:00,"30346303",170.63,"BRITISH GAS TRADING"
"Bracknell Forest Council","http://opendatacommunities.org/id/unitary-authority/bracknell-forest","","","Special Schools","Delegated Secondary Schools Budgets","Sandhurst - Secondary","Electricity",05/11/2018 00:00:00,"30346317",5058.32,"EDF ENERY"
"Bracknell Forest Council","http://opendatacommunities.org/id/unitary-authority/bracknell-forest","","","Special Schools & Alternative Provision","Delegated Special and Alternative Provision Budgets","Kennel Lane","R&M - Service Contracts",31/07/2018 00:00:00,"6666479",665.92,"CHURCHES FIRE SECURITY LTD"
"Bracknell Forest Council","http://opendatacommunities.org/id/unitary-authority/bracknell-forest","","","Special Schools & Alternative Provision","Delegated Special and Alternative Provision Budgets","Kennel Lane","R&M - Reactive",27/09/2018 00:00:00,"6670013",1487.76,"B.T.U. (MAINTENANCE) LTD"
"Bracknell Forest Council","http://opendatacommunities.org/id/unitary-authority/bracknell-forest","","","Special Schools & Alternative Provision","Delegated Special and Alternative Provision Budgets","Kennel Lane","Electricity",10/08/2018 00:00:00,"30340683",653.08,"BRITISH GAS TRADING"
"Bracknell Forest Council","http://opendatacommunities.org/id/unitary-authority/bracknell-forest","","","Special Schools & Alternative Provision","Delegated Special and Alternative Provision Budgets","Kennel Lane","Gas",10/08/2018 00:00:00,"30341042",172.56,"CORONA GAS"
"Bracknell Forest Council","http://opendatacommunities.org/id/unitary-authority/bracknell-forest","","","Special Schools & Alternative Provision","Delegated Special and Alternative Provision Budgets","Kennel Lane","Gas",10/08/2018 00:00:00,"30341042",382.24,"CORONA GAS"
"Bracknell Forest Council","http://opendatacommunities.org/id/unitary-authority/bracknell-forest","","","Special Schools & Alternative Provision","Delegated Special and Alternative Provision Budgets","Kennel Lane","Gas",10/08/2018 00:00:00,"30341042",181.62,"CORONA GAS"
"Bracknell Forest Council","http://opendatacommunities.org/id/unitary-authority/bracknell-forest","","","Special Schools & Alternative Provision","Delegated Special and Alternative Provision Budgets","Kennel Lane","Electricity",06/08/2018 00:00:00,"30341689",1531.66,"EDF ENERY"
"Bracknell Forest Council","http://opendatacommunities.org/id/unitary-authority/bracknell-forest","","","Special Schools & Alternative Provision","Delegated Special and Alternative Provision Budgets","Kennel Lane","Electricity",10/09/2018 00:00:00,"30342617",353.88,"BRITISH GAS TRADING"
"Bracknell Forest Council","http://opendatacommunities.org/id/unitary-authority/bracknell-forest","","","Special Schools & Alternative Provision","Delegated Special and Alternative Provision Budgets","Kennel Lane","Gas",10/09/2018 00:00:00,"30342800",248.82,"CORONA GAS"
"Bracknell Forest Council","http://opendatacommunities.org/id/unitary-authority/bracknell-forest","","","Special Schools & Alternative Provision","Delegated Special and Alternative Provision Budgets","Kennel Lane","Gas",10/09/2018 00:00:00,"30342800",171.93,"CORONA GAS"
"Bracknell Forest Council","http://opendatacommunities.org/id/unitary-authority/bracknell-forest","","","Special Schools & Alternative Provision","Delegated Special and Alternative Provision Budgets","Kennel Lane","Gas",10/09/2018 00:00:00,"30342800",413.11,"CORONA GAS"
"Bracknell Forest Council","http://opendatacommunities.org/id/unitary-authority/bracknell-forest","","","Special Schools & Alternative Provision","Delegated Special and Alternative Provision Budgets","Kennel Lane","Electricity",05/09/2018 00:00:00,"30342945",1010.95,"EDF ENERY"
"Bracknell Forest Council","http://opendatacommunities.org/id/unitary-authority/bracknell-forest","","","Special Schools & Alternative Provision","Delegated Special and Alternative Provision Budgets","Kennel Lane","Electricity",10/10/2018 00:00:00,"30344074",769.92,"BRITISH GAS TRADING"
"Bracknell Forest Council","http://opendatacommunities.org/id/unitary-authority/bracknell-forest","","","Special Schools & Alternative Provision","Delegated Special and Alternative Provision Budgets","Kennel Lane","Gas",10/10/2018 00:00:00,"30344300",490.48,"CORONA GAS"
"Bracknell Forest Council","http://opendatacommunities.org/id/unitary-authority/bracknell-forest","","","Special Schools & Alternative Provision","Delegated Special and Alternative Provision Budgets","Kennel Lane","Gas",10/10/2018 00:00:00,"30344300",244.21,"CORONA GAS"
"Bracknell Forest Council","http://opendatacommunities.org/id/unitary-authority/bracknell-forest","","","Special Schools & Alternative Provision","Delegated Special and Alternative Provision Budgets","Kennel Lane","Gas",10/10/2018 00:00:00,"30344300",201.39,"CORONA GAS"
"Bracknell Forest Council","http://opendatacommunities.org/id/unitary-authority/bracknell-forest","","","Special Schools & Alternative Provision","Delegated Special and Alternative Provision Budgets","Kennel Lane","Electricity",08/10/2018 00:00:00,"30344789",1601.81,"EDF ENERY"
"Bracknell Forest Council","http://opendatacommunities.org/id/unitary-authority/bracknell-forest","","","Special Schools & Alternative Provision","Delegated Special and Alternative Provision Budgets","Kennel Lane","Electricity",12/11/2018 00:00:00,"30346303",900.19,"BRITISH GAS TRADING"
"Bracknell Forest Council","http://opendatacommunities.org/id/unitary-authority/bracknell-forest","","","Special Schools & Alternative Provision","Delegated Special and Alternative Provision Budgets","Kennel Lane","Electricity",05/11/2018 00:00:00,"30346317",1767.33,"EDF ENERY"
"Bracknell Forest Council","http://opendatacommunities.org/id/unitary-authority/bracknell-forest","","","Management and Support Services - CYPL","Unallocated High Needs Related Expenditure","Mainstream - Element 3 top up BFC Academy pre 16","Contracted Services",30/07/2018 00:00:00,"6665668",4025.9,"BRACKENHALE ACADEMY"
"Bracknell Forest Council","http://opendatacommunities.org/id/unitary-authority/bracknell-forest","","","Management and Support Services - CYPL","Unallocated High Needs Related Expenditure","Mainstream - Element 3 top up BFC Academy pre 16","Contracted Services",30/07/2018 00:00:00,"6665670",3068.75,"CROWNWOOD ACADEMY"
"Bracknell Forest Council","http://opendatacommunities.org/id/unitary-authority/bracknell-forest","","","Management and Support Services - CYPL","Unallocated High Needs Related Expenditure","Mainstream - Element 3 top up BFC Academy pre 16","Contracted Services",30/07/2018 00:00:00,"6665672",8282.6,"EDGBARROW ACADEMY"
"Bracknell Forest Council","http://opendatacommunities.org/id/unitary-authority/bracknell-forest","","","Management and Support Services - CYPL","Unallocated High Needs Related Expenditure","Mainstream - Element 3 top up BFC Academy pre 16","Contracted Services",30/07/2018 00:00:00,"6665675",2537.97,"RANELAGH SCHOOL"
"Bracknell Forest Council","http://opendatacommunities.org/id/unitary-authority/bracknell-forest","","","Management and Support Services - CYPL","Unallocated High Needs Related Expenditure","Mainstream - Element 3 top up BFC Academy pre 16","Contracted Services",30/07/2018 00:00:00,"6665680",1437.58,"ST MARGARET CLITHEROW CATHOLIC P SCHOOL"
"Bracknell Forest Council","http://opendatacommunities.org/id/unitary-authority/bracknell-forest","","","Management and Support Services - CYPL","Unallocated High Needs Related Expenditure","Mainstream - Element 3 top up BFC Academy pre 16","Contracted Services",30/07/2018 00:00:00,"6665682",1683.58,"WILDMOOR HEATH ACADEMY"
"Bracknell Forest Council","http://opendatacommunities.org/id/unitary-authority/bracknell-forest","","","Management and Support Services - CYPL","Unallocated High Needs Related Expenditure","Mainstream - Element 3 top up BFC Academy pre 16","Contracted Services",30/07/2018 00:00:00,"6665759",1905.99,"JENNETTS PARK ACADEMY"
"Bracknell Forest Council","http://opendatacommunities.org/id/unitary-authority/bracknell-forest","","","Management and Support Services - CYPL","Unallocated High Needs Related Expenditure","Mainstream - Element 3 top up BFC Academy pre 16","Contracted Services",30/08/2018 00:00:00,"6667498",2958.21,"BRACKENHALE ACADEMY"
"Bracknell Forest Council","http://opendatacommunities.org/id/unitary-authority/bracknell-forest","","","Management and Support Services - CYPL","Unallocated High Needs Related Expenditure","Mainstream - Element 3 top up BFC Academy pre 16","Contracted Services",31/08/2018 00:00:00,"6667501",7626.26,"EDGBARROW ACADEMY"
"Bracknell Forest Council","http://opendatacommunities.org/id/unitary-authority/bracknell-forest","","","Management and Support Services - CYPL","Unallocated High Needs Related Expenditure","Mainstream - Element 3 top up BFC Academy pre 16","Contracted Services",31/08/2018 00:00:00,"6667502",2484.83,"GREAT HOLLANDS PRIMARY ACADEMY"
"Bracknell Forest Council","http://opendatacommunities.org/id/unitary-authority/bracknell-forest","","","Management and Support Services - CYPL","Unallocated High Needs Related Expenditure","Mainstream - Element 3 top up BFC Academy pre 16","Contracted Services",30/08/2018 00:00:00,"6667529",2047.53,"RANELAGH SCHOOL"
"Bracknell Forest Council","http://opendatacommunities.org/id/unitary-authority/bracknell-forest","","","Management and Support Services - CYPL","Unallocated High Needs Related Expenditure","Mainstream - Element 3 top up BFC Academy pre 16","Contracted Services",31/08/2018 00:00:00,"6667531",2331.75,"ST MARGARET CLITHEROW CATHOLIC P SCHOOL"
"Bracknell Forest Council","http://opendatacommunities.org/id/unitary-authority/bracknell-forest","","","Management and Support Services - CYPL","Unallocated High Needs Related Expenditure","Mainstream - Element 3 top up BFC Academy pre 16","Contracted Services",31/08/2018 00:00:00,"6667532",1683.58,"WILDMOOR HEATH ACADEMY"
"Bracknell Forest Council","http://opendatacommunities.org/id/unitary-authority/bracknell-forest","","","Management and Support Services - CYPL","Unallocated High Needs Related Expenditure","Mainstream - Element 3 top up BFC Academy pre 16","Contracted Services",26/09/2018 00:00:00,"6668875",2144.87,"RANELAGH SCHOOL"
"Bracknell Forest Council","http://opendatacommunities.org/id/unitary-authority/bracknell-forest","","","Management and Support Services - CYPL","Unallocated High Needs Related Expenditure","Mainstream - Element 3 top up BFC Academy pre 16","Contracted Services",26/09/2018 00:00:00,"6668903",3932.24,"BRACKENHALE ACADEMY"
"Bracknell Forest Council","http://opendatacommunities.org/id/unitary-authority/bracknell-forest","","","Management and Support Services - CYPL","Unallocated High Needs Related Expenditure","Mainstream - Element 3 top up BFC Academy pre 16","Contracted Services",26/09/2018 00:00:00,"6668912",1851.99,"ST MARGARET CLITHEROW CATHOLIC P SCHOOL"
"Bracknell Forest Council","http://opendatacommunities.org/id/unitary-authority/bracknell-forest","","","Management and Support Services - CYPL","Unallocated High Needs Related Expenditure","Mainstream - Element 3 top up BFC Academy pre 16","Contracted Services",27/09/2018 00:00:00,"6668954",3934.53,"CROWNWOOD ACADEMY"
"Bracknell Forest Council","http://opendatacommunities.org/id/unitary-authority/bracknell-forest","","","Management and Support Services - CYPL","Unallocated High Needs Related Expenditure","Mainstream - Element 3 top up BFC Academy pre 16","Contracted Services",27/09/2018 00:00:00,"6668993",7626.23,"EDGBARROW ACADEMY"
"Bracknell Forest Council","http://opendatacommunities.org/id/unitary-authority/bracknell-forest","","","Management and Support Services - CYPL","Unallocated High Needs Related Expenditure","Mainstream - Element 3 top up BFC Academy pre 16","Contracted Services",27/09/2018 00:00:00,"6669006",2484.8,"GREAT HOLLANDS PRIMARY ACADEMY"
"Bracknell Forest Council","http://opendatacommunities.org/id/unitary-authority/bracknell-forest","","","Management and Support Services - CYPL","Unallocated High Needs Related Expenditure","Mainstream - Element 3 top up BFC Academy pre 16","Contracted Services",27/09/2018 00:00:00,"6669008",1683.58,"WILDMOOR HEATH ACADEMY"
"Bracknell Forest Council","http://opendatacommunities.org/id/unitary-authority/bracknell-forest","","","Management and Support Services - CYPL","Unallocated High Needs Related Expenditure","Mainstream - Element 3 top up BFC Academy pre 16","Contracted Services",27/09/2018 00:00:00,"6669009",1905.99,"JENNETTS PARK ACADEMY"
"Bracknell Forest Council","http://opendatacommunities.org/id/unitary-authority/bracknell-forest","","","Management and Support Services - CYPL","Unallocated High Needs Related Expenditure","Mainstream - Element 3 top up BFC Academy pre 16","Contracted Services",27/09/2018 00:00:00,"6669024",1905.99,"Redact Personal Info"
"Bracknell Forest Council","http://opendatacommunities.org/id/unitary-authority/bracknell-forest","","","Management and Support Services - CYPL","Unallocated High Needs Related Expenditure","Mainstream - Element 3 top up BFC Academy pre 16","Contracted Services",05/11/2018 00:00:00,"6671204",3932.3,"BRACKENHALE ACADEMY"
"Bracknell Forest Council","http://opendatacommunities.org/id/unitary-authority/bracknell-forest","","","Management and Support Services - CYPL","Unallocated High Needs Related Expenditure","Mainstream - Element 3 top up BFC Academy pre 16","Contracted Services",05/11/2018 00:00:00,"6671205",2144.91,"RANELAGH SCHOOL"
"Bracknell Forest Council","http://opendatacommunities.org/id/unitary-authority/bracknell-forest","","","Management and Support Services - CYPL","Unallocated High Needs Related Expenditure","Mainstream - Element 3 top up BFC Academy pre 16","Contracted Services",05/11/2018 00:00:00,"6671206",1851.99,"ST MARGARET CLITHEROW CATHOLIC P SCHOOL"
"Bracknell Forest Council","http://opendatacommunities.org/id/unitary-authority/bracknell-forest","","","Management and Support Services - CYPL","Unallocated High Needs Related Expenditure","Mainstream - Element 3 top up BFC Academy pre 16","Contracted Services",05/11/2018 00:00:00,"6671222",3901.37,"CROWNWOOD ACADEMY"
"Bracknell Forest Council","http://opendatacommunities.org/id/unitary-authority/bracknell-forest","","","Management and Support Services - CYPL","Unallocated High Needs Related Expenditure","Mainstream - Element 3 top up BFC Academy pre 16","Contracted Services",05/11/2018 00:00:00,"6671258",4017.46,"GREAT HOLLANDS PRIMARY ACADEMY"
"Bracknell Forest Council","http://opendatacommunities.org/id/unitary-authority/bracknell-forest","","","Management and Support Services - CYPL","Unallocated High Needs Related Expenditure","Mainstream - Element 3 top up BFC Academy pre 16","Contracted Services",05/11/2018 00:00:00,"6671259",2437.73,"JENNETTS PARK ACADEMY"
"Bracknell Forest Council","http://opendatacommunities.org/id/unitary-authority/bracknell-forest","","","Management and Support Services - CYPL","Unallocated High Needs Related Expenditure","Mainstream - Element 3 top up BFC Academy pre 16","Contracted Services",05/11/2018 00:00:00,"6671260",613.75,"WILDMOOR HEATH ACADEMY"
"Bracknell Forest Council","http://opendatacommunities.org/id/unitary-authority/bracknell-forest","","","Management and Support Services - CYPL","Unallocated High Needs Related Expenditure","Mainstream - Element 3 top up BFC Academy pre 16","Contracted Services",05/11/2018 00:00:00,"6672192",7626.23,"EDGBARROW ACADEMY"
"Bracknell Forest Council","http://opendatacommunities.org/id/unitary-authority/bracknell-forest","","","Management and Support Services - CYPL","Unallocated High Needs Related Expenditure","Mainstream - Element 3 top up BFC Academy pre 16","Contracted Services",27/11/2018 00:00:00,"6672614",3932.3,"BRACKENHALE ACADEMY"
"Bracknell Forest Council","http://opendatacommunities.org/id/unitary-authority/bracknell-forest","","","Management and Support Services - CYPL","Unallocated High Needs Related Expenditure","Mainstream - Element 3 top up BFC Academy pre 16","Contracted Services",27/11/2018 00:00:00,"6672615",3901.4,"CROWNWOOD ACADEMY"
"Bracknell Forest Council","http://opendatacommunities.org/id/unitary-authority/bracknell-forest","","","Management and Support Services - CYPL","Unallocated High Needs Related Expenditure","Mainstream - Element 3 top up BFC Academy pre 16","Contracted Services",27/11/2018 00:00:00,"6672620",1949.86,"RANELAGH SCHOOL"
"Bracknell Forest Council","http://opendatacommunities.org/id/unitary-authority/bracknell-forest","","","Management and Support Services - CYPL","Unallocated High Needs Related Expenditure","Mainstream - Element 3 top up BFC Academy pre 16","Contracted Services",27/11/2018 00:00:00,"6672622",1851.99,"ST MARGARET CLITHEROW CATHOLIC P SCHOOL"
"Bracknell Forest Council","http://opendatacommunities.org/id/unitary-authority/bracknell-forest","","","Management and Support Services - CYPL","Unallocated High Needs Related Expenditure","Mainstream - Element 3 top up BFC Academy pre 16","Contracted Services",28/11/2018 00:00:00,"6672693",613.75,"WILDMOOR HEATH ACADEMY"
"Bracknell Forest Council","http://opendatacommunities.org/id/unitary-authority/bracknell-forest","","","Management and Support Services - CYPL","Unallocated High Needs Related Expenditure","Mainstream - Element 3 top up BFC Academy pre 16","Contracted Services",28/11/2018 00:00:00,"6672698",6825.5,"EDGBARROW ACADEMY"
"Bracknell Forest Council","http://opendatacommunities.org/id/unitary-authority/bracknell-forest","","","Management and Support Services - CYPL","Unallocated High Needs Related Expenditure","Mainstream - Element 3 top up BFC Academy pre 16","Contracted Services",30/11/2018 00:00:00,"6672754",2437.7,"JENNETTS PARK ACADEMY"
"Bracknell Forest Council","http://opendatacommunities.org/id/unitary-authority/bracknell-forest","","","Post 16 Provision","High needs budget fpr post-16 provision","Mainstream - Element 3 top up BFC Academy post 16","Contracted Services",30/07/2018 00:00:00,"6665672",4959.92,"EDGBARROW ACADEMY"
"Bracknell Forest Council","http://opendatacommunities.org/id/unitary-authority/bracknell-forest","","","Post 16 Provision","High needs budget fpr post-16 provision","Mainstream - Element 3 top up BFC Academy post 16","Contracted Services",31/08/2018 00:00:00,"6667501",4959.92,"EDGBARROW ACADEMY"
"Bracknell Forest Council","http://opendatacommunities.org/id/unitary-authority/bracknell-forest","","","Post 16 Provision","High needs budget fpr post-16 provision","Mainstream - Element 3 top up BFC Academy post 16","Contracted Services",27/09/2018 00:00:00,"6668993",2564.93,"EDGBARROW ACADEMY"
"Bracknell Forest Council","http://opendatacommunities.org/id/unitary-authority/bracknell-forest","","","Post 16 Provision","High needs budget fpr post-16 provision","Mainstream - Element 3 top up BFC Academy post 16","Contracted Services",05/11/2018 00:00:00,"6672192",2564.92,"EDGBARROW ACADEMY"
"Bracknell Forest Council","http://opendatacommunities.org/id/unitary-authority/bracknell-forest","","","Post 16 Provision","High needs budget fpr post-16 provision","Mainstream - Element 3 top up BFC Academy post 16","Contracted Services",28/11/2018 00:00:00,"6672698",2564.92,"EDGBARROW ACADEMY"
"Bracknell Forest Council","http://opendatacommunities.org/id/unitary-authority/bracknell-forest","","","Other Education and Community Budget","Service strategy and other education functions","Education Psychology Service","Recruitment Expenses",10/07/2018 00:00:00,"6666374",17500,"UNIVERSITY OF SOUTHAMPTON"
"Bracknell Forest Council","http://opendatacommunities.org/id/unitary-authority/bracknell-forest","","","Other Education and Community Budget","Service strategy and other education functions","Education Psychology Service","Consultants Fees",27/09/2018 00:00:00,"6669451",1575,"RICARDO ALMEIDA PSYCHOLOGY LTD"
"Bracknell Forest Council","http://opendatacommunities.org/id/unitary-authority/bracknell-forest","","","Other Education and Community Budget","Service strategy and other education functions","Education Psychology Service","Consultants Fees",24/09/2018 00:00:00,"6669452",990,"Redact Personal Info"
"Bracknell Forest Council","http://opendatacommunities.org/id/unitary-authority/bracknell-forest","","","Other Education and Community Budget","Service strategy and other education functions","Education Psychology Service","Consultants Fees",13/10/2018 00:00:00,"6669945",2250,"RICARDO ALMEIDA PSYCHOLOGY LTD"
"Bracknell Forest Council","http://opendatacommunities.org/id/unitary-authority/bracknell-forest","","","Other Education and Community Budget","Service strategy and other education functions","Education Psychology Service","Learning Resources - Purchase",10/10/2018 00:00:00,"6670364",599.8,"WATERSTONES"
"Bracknell Forest Council","http://opendatacommunities.org/id/unitary-authority/bracknell-forest","","","Other Education and Community Budget","Service strategy and other education functions","Education Psychology Service","Consultants Fees",16/11/2018 00:00:00,"6672086",3600,"RICARDO ALMEIDA PSYCHOLOGY LTD"
"Bracknell Forest Council","http://opendatacommunities.org/id/unitary-authority/bracknell-forest","","","Secondary Schools","High Needs Budget for Primary Education","Support for Learning","Learning Resources - Purchase",20/11/2018 00:00:00,"6672348",678,"ANN ARBOR PUBLISHERS LTD"
"Bracknell Forest Council","http://opendatacommunities.org/id/unitary-authority/bracknell-forest","","","Special Schools & Alternative Provision","Non-School Funding","Pupil Premium Non Maintained Schools","Contracted Services",06/11/2018 00:00:00,"6671422",935,"BOWDEN HOUSE SCHOOL"
"Bracknell Forest Council","http://opendatacommunities.org/id/unitary-authority/bracknell-forest","","","Special Schools & Alternative Provision","Non-School Funding","Pupil Premium Non Maintained Schools","Contracted Services",07/11/2018 00:00:00,"6671423",935,"CATCH22"
"Bracknell Forest Council","http://opendatacommunities.org/id/unitary-authority/bracknell-forest","","","Special Schools & Alternative Provision","Non-School Funding","Pupil Premium Non Maintained Schools","Contracted Services",07/11/2018 00:00:00,"6671424",6215,"CHILWORTH HOUSE SCHOOL"
"Bracknell Forest Council","http://opendatacommunities.org/id/unitary-authority/bracknell-forest","","","Special Schools & Alternative Provision","Non-School Funding","Pupil Premium Non Maintained Schools","Contracted Services",07/11/2018 00:00:00,"6671428",1870,"PAYMENT WITHOUT INVOICES"
"Bracknell Forest Council","http://opendatacommunities.org/id/unitary-authority/bracknell-forest","","","Special Schools & Alternative Provision","Non-School Funding","Pupil Premium Non Maintained Schools","Contracted Services",07/11/2018 00:00:00,"6671429",12375,"HIGH CLOSE SCHOOL"
"Bracknell Forest Council","http://opendatacommunities.org/id/unitary-authority/bracknell-forest","","","Special Schools & Alternative Provision","Non-School Funding","Pupil Premium Non Maintained Schools","Contracted Services",07/11/2018 00:00:00,"6671431",1870,"ST DOMINICS SCHOOL"
"Bracknell Forest Council","http://opendatacommunities.org/id/unitary-authority/bracknell-forest","","","Special Schools & Alternative Provision","Non-School Funding","Pupil Premium Non Maintained Schools","Contracted Services",07/11/2018 00:00:00,"6671434",935,"PAYMENT WITHOUT INVOICES"
"Bracknell Forest Council","http://opendatacommunities.org/id/unitary-authority/bracknell-forest","","","Other Education and Community Budget","Service strategy and other education functions","SEND Grant","Consultants Fees",02/10/2018 00:00:00,"6672955",1400,"AUBERGINE ADVANTAGE LTD"
"Bracknell Forest Council","http://opendatacommunities.org/id/unitary-authority/bracknell-forest","","","Special Schools & Alternative Provision","Pre-School Education","College Hall PRU","R&M - Reactive",08/08/2018 00:00:00,"6666486",999.25,"ONWATCH MULTIFIRE PLC"
"Bracknell Forest Council","http://opendatacommunities.org/id/unitary-authority/bracknell-forest","","","Special Schools & Alternative Provision","Pre-School Education","College Hall PRU","R&M - Reactive",23/08/2018 00:00:00,"6667491",710.51,"SOUTHERN ELECTRIC CONTRACTING"
"Bracknell Forest Council","http://opendatacommunities.org/id/unitary-authority/bracknell-forest","","","Special Schools & Alternative Provision","Pre-School Education","College Hall PRU","Electricity",10/08/2018 00:00:00,"30340683",446.8,"BRITISH GAS TRADING"
"Bracknell Forest Council","http://opendatacommunities.org/id/unitary-authority/bracknell-forest","","","Special Schools & Alternative Provision","Pre-School Education","College Hall PRU","Gas",10/08/2018 00:00:00,"30341042",147.95,"CORONA GAS"
"Bracknell Forest Council","http://opendatacommunities.org/id/unitary-authority/bracknell-forest","","","Special Schools & Alternative Provision","Pre-School Education","College Hall PRU","Gas",10/08/2018 00:00:00,"30341042",27.17,"CORONA GAS"
"Bracknell Forest Council","http://opendatacommunities.org/id/unitary-authority/bracknell-forest","","","Special Schools & Alternative Provision","Pre-School Education","College Hall PRU","Electricity",10/09/2018 00:00:00,"30342617",281.33,"BRITISH GAS TRADING"
"Bracknell Forest Council","http://opendatacommunities.org/id/unitary-authority/bracknell-forest","","","Special Schools & Alternative Provision","Pre-School Education","College Hall PRU","Gas",10/09/2018 00:00:00,"30342800",27.19,"CORONA GAS"
"Bracknell Forest Council","http://opendatacommunities.org/id/unitary-authority/bracknell-forest","","","Special Schools & Alternative Provision","Pre-School Education","College Hall PRU","Gas",10/09/2018 00:00:00,"30342800",146.25,"CORONA GAS"
"Bracknell Forest Council","http://opendatacommunities.org/id/unitary-authority/bracknell-forest","","","Special Schools & Alternative Provision","Pre-School Education","College Hall PRU","Electricity",10/10/2018 00:00:00,"30344074",479.42,"BRITISH GAS TRADING"
"Bracknell Forest Council","http://opendatacommunities.org/id/unitary-authority/bracknell-forest","","","Special Schools & Alternative Provision","Pre-School Education","College Hall PRU","Gas",10/10/2018 00:00:00,"30344300",127.9,"CORONA GAS"
"Bracknell Forest Council","http://opendatacommunities.org/id/unitary-authority/bracknell-forest","","","Special Schools & Alternative Provision","Pre-School Education","College Hall PRU","Gas",10/10/2018 00:00:00,"30344300",27.95,"CORONA GAS"
"Bracknell Forest Council","http://opendatacommunities.org/id/unitary-authority/bracknell-forest","","","Special Schools & Alternative Provision","Pre-School Education","College Hall PRU","Electricity",12/11/2018 00:00:00,"30346303",507.2,"BRITISH GAS TRADING"
"Bracknell Forest Council","http://opendatacommunities.org/id/unitary-authority/bracknell-forest","","","Management and Support Services - CYPL","De-Delegated Expenditure","Primary Resource Centre","Office Stationery",24/09/2018 00:00:00,"30343350",33,"COMMERCIAL LTD"
"Bracknell Forest Council","http://opendatacommunities.org/id/unitary-authority/bracknell-forest","","","Management and Support Services - CYPL","De-Delegated Expenditure","Primary Resource Centre","Office Stationery",22/10/2018 00:00:00,"30345767",21.52,"COMMERCIAL LTD"
"Bracknell Forest Council","http://opendatacommunities.org/id/unitary-authority/bracknell-forest","","","Management and Support Services - CYPL","De-Delegated Expenditure","Primary Resource Centre","Office Stationery",22/10/2018 00:00:00,"30345767",22.7,"COMMERCIAL LTD"
"Bracknell Forest Council","http://opendatacommunities.org/id/unitary-authority/bracknell-forest","","","Management and Support Services - CYPL","De-Delegated Expenditure","Primary Resource Centre","Office Stationery",22/10/2018 00:00:00,"30345767",0.32,"COMMERCIAL LTD"
"Bracknell Forest Council","http://opendatacommunities.org/id/unitary-authority/bracknell-forest","","","Management and Support Services - CYPL","De-Delegated Expenditure","Primary Resource Centre","Office Stationery",22/10/2018 00:00:00,"30345767",6.3,"COMMERCIAL LTD"
"Bracknell Forest Council","http://opendatacommunities.org/id/unitary-authority/bracknell-forest","","","Management and Support Services - CYPL","De-Delegated Expenditure","Primary Resource Centre","Office Stationery",22/10/2018 00:00:00,"30345767",2.64,"COMMERCIAL LTD"
"Bracknell Forest Council","http://opendatacommunities.org/id/unitary-authority/bracknell-forest","","","Management and Support Services - CYPL","De-Delegated Expenditure","Primary Resource Centre","Office Stationery",22/10/2018 00:00:00,"30345767",10.8,"COMMERCIAL LTD"
"Bracknell Forest Council","http://opendatacommunities.org/id/unitary-authority/bracknell-forest","","","Management and Support Services - CYPL","De-Delegated Expenditure","Primary Resource Centre","Office Stationery",22/11/2018 00:00:00,"30346366",0.67,"COMMERCIAL LTD"
"Bracknell Forest Council","http://opendatacommunities.org/id/unitary-authority/bracknell-forest","","","Management and Support Services - CYPL","De-Delegated Expenditure","Primary Resource Centre","Office Stationery",22/11/2018 00:00:00,"30346366",0.72,"COMMERCIAL LTD"
"Bracknell Forest Council","http://opendatacommunities.org/id/unitary-authority/bracknell-forest","","","Management and Support Services - CYPL","De-Delegated Expenditure","Primary Resource Centre","Office Stationery",22/11/2018 00:00:00,"30346366",3.56,"COMMERCIAL LTD"
"Bracknell Forest Council","http://opendatacommunities.org/id/unitary-authority/bracknell-forest","","","Management and Support Services - CYPL","De-Delegated Expenditure","Primary Resource Centre","Office Stationery",22/11/2018 00:00:00,"30346366",1.91,"COMMERCIAL LTD"
"Bracknell Forest Council","http://opendatacommunities.org/id/unitary-authority/bracknell-forest","","","Management and Support Services - CYPL","De-Delegated Expenditure","Primary Resource Centre","Office Stationery",22/11/2018 00:00:00,"30346366",3.56,"COMMERCIAL LTD"
"Bracknell Forest Council","http://opendatacommunities.org/id/unitary-authority/bracknell-forest","","","Management and Support Services - CYPL","De-Delegated Expenditure","Primary Resource Centre","Office Stationery",22/11/2018 00:00:00,"30346366",12.14,"COMMERCIAL LTD"
"Bracknell Forest Council","http://opendatacommunities.org/id/unitary-authority/bracknell-forest","","","Management and Support Services - CYPL","De-Delegated Expenditure","Primary Resource Centre","Office Stationery",22/11/2018 00:00:00,"30346366",6.07,"COMMERCIAL LTD"
"Bracknell Forest Council","http://opendatacommunities.org/id/unitary-authority/bracknell-forest","","","Management and Support Services - CYPL","De-Delegated Expenditure","Primary Resource Centre","Office Stationery",22/11/2018 00:00:00,"30346366",3.85,"COMMERCIAL LTD"
"Bracknell Forest Council","http://opendatacommunities.org/id/unitary-authority/bracknell-forest","","","Management and Support Services - CYPL","De-Delegated Expenditure","Primary Resource Centre","Office Stationery",22/11/2018 00:00:00,"30346366",22.7,"COMMERCIAL LTD"
"Bracknell Forest Council","http://opendatacommunities.org/id/unitary-authority/bracknell-forest","","","Management and Support Services - CYPL","De-Delegated Expenditure","Primary Resource Centre","Office Stationery",22/11/2018 00:00:00,"30346366",16.75,"COMMERCIAL LTD"
"Bracknell Forest Council","http://opendatacommunities.org/id/unitary-authority/bracknell-forest","","","Management and Support Services - CYPL","De-Delegated Expenditure","Primary Resource Centre","Office Stationery",22/11/2018 00:00:00,"30346366",0.85,"COMMERCIAL LTD"
"Bracknell Forest Council","http://opendatacommunities.org/id/unitary-authority/bracknell-forest","","","Special Schools & Alternative Provision","Youth Services","Education for CAHMS Hospital Placements","Externally Purchased Professional Services-curriculum",15/07/2018 00:00:00,"6668549",4812.5,"PRIORY GROUP"
"Bracknell Forest Council","http://opendatacommunities.org/id/unitary-authority/bracknell-forest","","","Special Schools & Alternative Provision","Youth Services","Education for CAHMS Hospital Placements","Externally Purchased Professional Services-curriculum",27/07/2018 00:00:00,"6669958",1485,"THE HUNTERCOMBE HOSPITAL MAIDENHEAD /  HUNTERCOMBE GROUP"
"Bracknell Forest Council","http://opendatacommunities.org/id/unitary-authority/bracknell-forest","","","Special Schools & Alternative Provision","Youth Services","Education for CAHMS Hospital Placements","Externally Purchased Professional Services-curriculum",21/10/2018 00:00:00,"6671272",2640,"THE HUNTERCOMBE HOSPITAL MAIDENHEAD /  HUNTERCOMBE GROUP"
"Bracknell Forest Council","http://opendatacommunities.org/id/unitary-authority/bracknell-forest","","","Special Schools & Alternative Provision","Youth Services","Education for CAHMS Hospital Placements","Externally Purchased Professional Services-curriculum",31/10/2018 00:00:00,"6671566",3200,"ELYSIUM HEALTHCARE"
"Bracknell Forest Council","http://opendatacommunities.org/id/unitary-authority/bracknell-forest","","","Special Schools & Alternative Provision","Youth Services","Education for CAHMS Hospital Placements","Externally Purchased Professional Services-curriculum",18/11/2018 00:00:00,"6672890",1650,"THE HUNTERCOMBE HOSPITAL MAIDENHEAD /  HUNTERCOMBE GROUP"
"Bracknell Forest Council","http://opendatacommunities.org/id/unitary-authority/bracknell-forest","","","Management and Support Services - CYPL","Unallocated High Needs Related Expenditure","Speech and Language Services","Other Fees for Bought-in Services",09/08/2018 00:00:00,"6667734",17000,"BERKSHIRE HEALTHCARE NHS FOUNDATION TRUST"
"Bracknell Forest Council","http://opendatacommunities.org/id/unitary-authority/bracknell-forest","","","Management and Support Services - CYPL","Unallocated High Needs Related Expenditure","Speech and Language Services","Other Fees for Bought-in Services",12/09/2018 00:00:00,"6668548",19033.33,"BERKSHIRE HEALTHCARE NHS FOUNDATION TRUST"
"Bracknell Forest Council","http://opendatacommunities.org/id/unitary-authority/bracknell-forest","","","Management and Support Services - CYPL","Unallocated High Needs Related Expenditure","Speech and Language Services","Other Fees for Bought-in Services",29/10/2018 00:00:00,"6671189",17000,"BERKSHIRE HEALTHCARE NHS FOUNDATION TRUST"
"Bracknell Forest Council","http://opendatacommunities.org/id/unitary-authority/bracknell-forest","","","Management and Support Services - CYPL","Unallocated High Needs Related Expenditure","Speech and Language Services","Other Fees for Bought-in Services",08/11/2018 00:00:00,"6671697",17000,"BERKSHIRE HEALTHCARE NHS FOUNDATION TRUST"
"Bracknell Forest Council","http://opendatacommunities.org/id/unitary-authority/bracknell-forest","","","Management and Support Services - CYPL","Unallocated High Needs Related Expenditure","SEN Non LEA Provision Pre 16","Contracted Services",12/07/2018 00:00:00,"6665428",14550.31,"PRIORS COURT FOUNDATION"
"Bracknell Forest Council","http://opendatacommunities.org/id/unitary-authority/bracknell-forest","","","Management and Support Services - CYPL","Unallocated High Needs Related Expenditure","SEN Non LEA Provision Pre 16","Contracted Services",22/08/2018 00:00:00,"6668162",2094.6,"CAMBIAN AUTISM SERVICES LTD"
"Bracknell Forest Council","http://opendatacommunities.org/id/unitary-authority/bracknell-forest","","","Management and Support Services - CYPL","Unallocated High Needs Related Expenditure","SEN Non LEA Provision Pre 16","Contracted Services",23/08/2018 00:00:00,"6668163",5285.5,"CAMBIAN ASPERGER SYNDROME SERVICES"
"Bracknell Forest Council","http://opendatacommunities.org/id/unitary-authority/bracknell-forest","","","Management and Support Services - CYPL","Unallocated High Needs Related Expenditure","SEN Non LEA Provision Pre 16","Contracted Services",01/09/2018 00:00:00,"6668194",20412.5,"THE LODDON SCHOOL"
"Bracknell Forest Council","http://opendatacommunities.org/id/unitary-authority/bracknell-forest","","","Management and Support Services - CYPL","Unallocated High Needs Related Expenditure","Mainstream - Element 3 top up non BFC pre 16","RB of Windsor & Maidenhead",20/07/2018 00:00:00,"6665661",4651,"CHARTERS SCHOOL"
"Bracknell Forest Council","http://opendatacommunities.org/id/unitary-authority/bracknell-forest","","","Management and Support Services - CYPL","Unallocated High Needs Related Expenditure","Mainstream - Element 3 top up non BFC pre 16","RB of Windsor & Maidenhead",20/07/2018 00:00:00,"6665662",1306,"CHARTERS SCHOOL"
"Bracknell Forest Council","http://opendatacommunities.org/id/unitary-authority/bracknell-forest","","","Management and Support Services - CYPL","Unallocated High Needs Related Expenditure","Mainstream - Element 3 top up non BFC pre 16","Other Local Authorities",25/07/2018 00:00:00,"6665905",19990,"BOWDEN HOUSE SCHOOL"
"Bracknell Forest Council","http://opendatacommunities.org/id/unitary-authority/bracknell-forest","","","Management and Support Services - CYPL","Unallocated High Needs Related Expenditure","Mainstream - Element 3 top up non BFC pre 16","RB of Windsor & Maidenhead",25/07/2018 00:00:00,"6665991",1722,"WESSEX PRIMARY SCHOOL"
"Bracknell Forest Council","http://opendatacommunities.org/id/unitary-authority/bracknell-forest","","","Management and Support Services - CYPL","Unallocated High Needs Related Expenditure","Mainstream - Element 3 top up non BFC pre 16","Other Local Authorities",03/08/2018 00:00:00,"6666323",8184,"HAMPSHIRE COUNTY COUNCIL"
"Bracknell Forest Council","http://opendatacommunities.org/id/unitary-authority/bracknell-forest","","","Management and Support Services - CYPL","Unallocated High Needs Related Expenditure","Mainstream - Element 3 top up non BFC pre 16","Other Local Authorities",13/08/2018 00:00:00,"6666715",8218,"FOREST BRIDGE SCHOOL"
"Bracknell Forest Council","http://opendatacommunities.org/id/unitary-authority/bracknell-forest","","","Management and Support Services - CYPL","Unallocated High Needs Related Expenditure","Mainstream - Element 3 top up non BFC pre 16","Other Local Authorities",13/08/2018 00:00:00,"6666716",11859.33,"FOREST BRIDGE SCHOOL"
"Bracknell Forest Council","http://opendatacommunities.org/id/unitary-authority/bracknell-forest","","","Management and Support Services - CYPL","Unallocated High Needs Related Expenditure","Mainstream - Element 3 top up non BFC pre 16","Other Local Authorities",13/08/2018 00:00:00,"6666717",11859.33,"FOREST BRIDGE SCHOOL"
"Bracknell Forest Council","http://opendatacommunities.org/id/unitary-authority/bracknell-forest","","","Management and Support Services - CYPL","Unallocated High Needs Related Expenditure","Mainstream - Element 3 top up non BFC pre 16","Other Local Authorities",13/08/2018 00:00:00,"6666718",11859.33,"FOREST BRIDGE SCHOOL"
"Bracknell Forest Council","http://opendatacommunities.org/id/unitary-authority/bracknell-forest","","","Management and Support Services - CYPL","Unallocated High Needs Related Expenditure","Mainstream - Element 3 top up non BFC pre 16","Other Local Authorities",25/05/2018 00:00:00,"6667399",12333.34,"NAS ACADEMIES TRUST"
"Bracknell Forest Council","http://opendatacommunities.org/id/unitary-authority/bracknell-forest","","","Management and Support Services - CYPL","Unallocated High Needs Related Expenditure","Mainstream - Element 3 top up non BFC pre 16","Other Local Authorities",15/08/2018 00:00:00,"6667678",11859.33,"FOREST BRIDGE SCHOOL"
"Bracknell Forest Council","http://opendatacommunities.org/id/unitary-authority/bracknell-forest","","","Management and Support Services - CYPL","Unallocated High Needs Related Expenditure","Mainstream - Element 3 top up non BFC pre 16","Other Local Authorities",15/08/2018 00:00:00,"6667680",9837.95,"FOREST BRIDGE SCHOOL"
"Bracknell Forest Council","http://opendatacommunities.org/id/unitary-authority/bracknell-forest","","","Management and Support Services - CYPL","Unallocated High Needs Related Expenditure","Mainstream - Element 3 top up non BFC pre 16","Other Local Authorities",17/08/2018 00:00:00,"6667682",12646.67,"NAS ACADEMIES TRUST"
"Bracknell Forest Council","http://opendatacommunities.org/id/unitary-authority/bracknell-forest","","","Management and Support Services - CYPL","Unallocated High Needs Related Expenditure","Mainstream - Element 3 top up non BFC pre 16","Other Local Authorities",17/08/2018 00:00:00,"6667684",12986.67,"NAS ACADEMIES TRUST"
"Bracknell Forest Council","http://opendatacommunities.org/id/unitary-authority/bracknell-forest","","","Management and Support Services - CYPL","Unallocated High Needs Related Expenditure","Mainstream - Element 3 top up non BFC pre 16","Other Local Authorities",17/08/2018 00:00:00,"6667687",12986.67,"NAS ACADEMIES TRUST"
"Bracknell Forest Council","http://opendatacommunities.org/id/unitary-authority/bracknell-forest","","","Management and Support Services - CYPL","Unallocated High Needs Related Expenditure","Mainstream - Element 3 top up non BFC pre 16","Other Local Authorities",17/08/2018 00:00:00,"6667688",12646.67,"NAS ACADEMIES TRUST"
"Bracknell Forest Council","http://opendatacommunities.org/id/unitary-authority/bracknell-forest","","","Management and Support Services - CYPL","Unallocated High Needs Related Expenditure","Mainstream - Element 3 top up non BFC pre 16","Other Local Authorities",20/08/2018 00:00:00,"6667689",16446.67,"NAS ACADEMIES TRUST"
"Bracknell Forest Council","http://opendatacommunities.org/id/unitary-authority/bracknell-forest","","","Management and Support Services - CYPL","Unallocated High Needs Related Expenditure","Mainstream - Element 3 top up non BFC pre 16","Other Local Authorities",20/08/2018 00:00:00,"6667690",16673.34,"NAS ACADEMIES TRUST"
"Bracknell Forest Council","http://opendatacommunities.org/id/unitary-authority/bracknell-forest","","","Management and Support Services - CYPL","Unallocated High Needs Related Expenditure","Mainstream - Element 3 top up non BFC pre 16","Other Local Authorities",20/08/2018 00:00:00,"6667691",16466.67,"NAS ACADEMIES TRUST"
"Bracknell Forest Council","http://opendatacommunities.org/id/unitary-authority/bracknell-forest","","","Management and Support Services - CYPL","Unallocated High Needs Related Expenditure","Mainstream - Element 3 top up non BFC pre 16","Other Local Authorities",06/09/2018 00:00:00,"6668812",2205,"PORTAL HOUSE SCHOOL"
"Bracknell Forest Council","http://opendatacommunities.org/id/unitary-authority/bracknell-forest","","","Management and Support Services - CYPL","Unallocated High Needs Related Expenditure","Mainstream - Element 3 top up non BFC pre 16","Other Local Authorities",12/09/2018 00:00:00,"6669209",2465,"FROGMORE COMMUNITY COLLEGE"
"Bracknell Forest Council","http://opendatacommunities.org/id/unitary-authority/bracknell-forest","","","Management and Support Services - CYPL","Unallocated High Needs Related Expenditure","Mainstream - Element 3 top up non BFC pre 16","RB of Windsor & Maidenhead",03/10/2018 00:00:00,"6670023",6552,"ROYAL BOROUGH OF WINDSOR &  MAIDENHEAD"
"Bracknell Forest Council","http://opendatacommunities.org/id/unitary-authority/bracknell-forest","","","Management and Support Services - CYPL","Unallocated High Needs Related Expenditure","Mainstream - Element 3 top up non BFC pre 16","RB of Windsor & Maidenhead",03/10/2018 00:00:00,"6670025",9135.75,"ROYAL BOROUGH OF WINDSOR &  MAIDENHEAD"
"Bracknell Forest Council","http://opendatacommunities.org/id/unitary-authority/bracknell-forest","","","Management and Support Services - CYPL","Unallocated High Needs Related Expenditure","Mainstream - Element 3 top up non BFC pre 16","Other Local Authorities",15/08/2018 00:00:00,"6670310",2181,"FOREST BRIDGE SCHOOL"
"Bracknell Forest Council","http://opendatacommunities.org/id/unitary-authority/bracknell-forest","","","Management and Support Services - CYPL","Unallocated High Needs Related Expenditure","Mainstream - Element 3 top up non BFC pre 16","Other Local Authorities",15/08/2018 00:00:00,"6670311",2225,"FOREST BRIDGE SCHOOL"
"Bracknell Forest Council","http://opendatacommunities.org/id/unitary-authority/bracknell-forest","","","Management and Support Services - CYPL","Unallocated High Needs Related Expenditure","Mainstream - Element 3 top up non BFC pre 16","Other Local Authorities",02/10/2018 00:00:00,"6670330",8540,"COPPICE SPRING SCHOOL"
"Bracknell Forest Council","http://opendatacommunities.org/id/unitary-authority/bracknell-forest","","","Management and Support Services - CYPL","Unallocated High Needs Related Expenditure","Mainstream - Element 3 top up non BFC pre 16","Other Local Authorities",22/10/2018 00:00:00,"6671086",19102.5,"SURREY COUNTY COUNCIL"
"Bracknell Forest Council","http://opendatacommunities.org/id/unitary-authority/bracknell-forest","","","Management and Support Services - CYPL","Unallocated High Needs Related Expenditure","Mainstream - Element 3 top up non BFC pre 16","Other Local Authorities",30/10/2018 00:00:00,"6671415",1303.66,"ST ANTHONYS SCHOOL"
"Bracknell Forest Council","http://opendatacommunities.org/id/unitary-authority/bracknell-forest","","","Management and Support Services - CYPL","Unallocated High Needs Related Expenditure","Mainstream - Element 3 top up non BFC pre 16","Other Local Authorities",30/10/2018 00:00:00,"6671537",23747,"WANDSWORTH  COUNCIL"
"Bracknell Forest Council","http://opendatacommunities.org/id/unitary-authority/bracknell-forest","","","Management and Support Services - CYPL","Unallocated High Needs Related Expenditure","Mainstream - Element 3 top up non BFC pre 16","Other Local Authorities",18/10/2018 00:00:00,"6671538",23747,"WANDSWORTH  COUNCIL"
"Bracknell Forest Council","http://opendatacommunities.org/id/unitary-authority/bracknell-forest","","","Management and Support Services - CYPL","Unallocated High Needs Related Expenditure","Mainstream - Element 3 top up non BFC pre 16","Other Local Authorities",16/11/2018 00:00:00,"6671800",-23747,"WANDSWORTH  COUNCIL"
"Bracknell Forest Council","http://opendatacommunities.org/id/unitary-authority/bracknell-forest","","","Post 16 Provision","High needs budget fpr post-16 provision","Mainstream - Element 3 top up non BFC post 16","RB of Windsor & Maidenhead",20/07/2018 00:00:00,"6665661",4286,"CHARTERS SCHOOL"
"Bracknell Forest Council","http://opendatacommunities.org/id/unitary-authority/bracknell-forest","","","Post 16 Provision","High needs budget fpr post-16 provision","Mainstream - Element 3 top up non BFC post 16","RB of Windsor & Maidenhead",20/07/2018 00:00:00,"6665662",653,"CHARTERS SCHOOL"
"Bracknell Forest Council","http://opendatacommunities.org/id/unitary-authority/bracknell-forest","","","Post 16 Provision","High needs budget fpr post-16 provision","Mainstream - Element 3 top up non BFC post 16","Other Local Authorities",22/10/2018 00:00:00,"6671086",7885.5,"SURREY COUNTY COUNCIL"
"Bracknell Forest Council","http://opendatacommunities.org/id/unitary-authority/bracknell-forest","","","Management and Support Services - CYPL","Unallocated High Needs Related Expenditure","High Block Funding Review 2016-17","Consultants Fees",11/09/2018 00:00:00,"6668833",5000,"V & G SOLUTIONS LTD"
"Bracknell Forest Council","http://opendatacommunities.org/id/unitary-authority/bracknell-forest","","","Management and Support Services - CYPL","Unallocated High Needs Related Expenditure","High Block Funding Review 2016-17","Consultants Fees",11/09/2018 00:00:00,"6668834",6000,"V & G SOLUTIONS LTD"
"Bracknell Forest Council","http://opendatacommunities.org/id/unitary-authority/bracknell-forest","","","Management and Support Services - CYPL","Unallocated High Needs Related Expenditure","High Block Funding Review 2016-17","Consultants Fees",11/09/2018 00:00:00,"6668835",6500,"V & G SOLUTIONS LTD"
"Bracknell Forest Council","http://opendatacommunities.org/id/unitary-authority/bracknell-forest","","","Management and Support Services - CYPL","Unallocated High Needs Related Expenditure","High Block Funding Review 2016-17","Consultants Fees",11/09/2018 00:00:00,"6668836",6500,"V & G SOLUTIONS LTD"
"Bracknell Forest Council","http://opendatacommunities.org/id/unitary-authority/bracknell-forest","","","Management and Support Services - CYPL","Unallocated High Needs Related Expenditure","High Block Funding Review 2016-17","Consultants Fees",11/09/2018 00:00:00,"6668837",3000,"V & G SOLUTIONS LTD"
"Bracknell Forest Council","http://opendatacommunities.org/id/unitary-authority/bracknell-forest","","","Management and Support Services - CYPL","Unallocated High Needs Related Expenditure","High Block Funding Review 2016-17","Consultants Fees",11/09/2018 00:00:00,"6668838",1000,"V & G SOLUTIONS LTD"
"Bracknell Forest Council","http://opendatacommunities.org/id/unitary-authority/bracknell-forest","","","Management and Support Services - CYPL","Unallocated High Needs Related Expenditure","Travellers Education Service","Consultants Fees",27/07/2018 00:00:00,"6667697",7795,"XL EDUCATION SOLUTIONS LTD"
"Bracknell Forest Council","http://opendatacommunities.org/id/unitary-authority/bracknell-forest","","","Management and Support Services - CYPL","Unallocated High Needs Related Expenditure","Travellers Education Service","Consultants Fees",17/07/2018 00:00:00,"6667743",7950,"XL EDUCATION SOLUTIONS LTD"
"Bracknell Forest Council","http://opendatacommunities.org/id/unitary-authority/bracknell-forest","","","Management and Support Services - CYPL","Unallocated High Needs Related Expenditure","Travellers Education Service","Consultants Fees",16/08/2018 00:00:00,"6667865",4885,"XL EDUCATION SOLUTIONS LTD"
"Bracknell Forest Council","http://opendatacommunities.org/id/unitary-authority/bracknell-forest","","","Management and Support Services - CYPL","Unallocated High Needs Related Expenditure","Travellers Education Service","Consultants Fees",07/09/2018 00:00:00,"6668181",7850,"XL EDUCATION SOLUTIONS LTD"
"Bracknell Forest Council","http://opendatacommunities.org/id/unitary-authority/bracknell-forest","","","Management and Support Services - CYPL","Unallocated High Needs Related Expenditure","Travellers Education Service","Consultants Fees",28/09/2018 00:00:00,"6669463",7875,"XL EDUCATION SOLUTIONS LTD"
"Bracknell Forest Council","http://opendatacommunities.org/id/unitary-authority/bracknell-forest","","","Management and Support Services - CYPL","Unallocated High Needs Related Expenditure","Travellers Education Service","Consultants Fees",19/10/2018 00:00:00,"6671017",7965,"XL EDUCATION SOLUTIONS LTD"
"Bracknell Forest Council","http://opendatacommunities.org/id/unitary-authority/bracknell-forest","","","Management and Support Services - CYPL","Schools Block Centrally Managed","Educational Attainment for Looked After Children","Consultants Fees",31/07/2018 00:00:00,"6668005",1786,"TLC EDUCATION GROUP T/A TLC LIVE"
"Bracknell Forest Council","http://opendatacommunities.org/id/unitary-authority/bracknell-forest","","","Management and Support Services - CYPL","Schools Block Centrally Managed","Educational Attainment for Looked After Children","Consultants Fees",20/08/2018 00:00:00,"6668102",2250,"KIMICHI SCHOOL"
"Bracknell Forest Council","http://opendatacommunities.org/id/unitary-authority/bracknell-forest","","","Management and Support Services - CYPL","Schools Block Centrally Managed","Educational Attainment for Looked After Children","Consultants Fees",03/06/2018 00:00:00,"6668240",2250,"KIMICHI SCHOOL"
"Bracknell Forest Council","http://opendatacommunities.org/id/unitary-authority/bracknell-forest","","","Management and Support Services - CYPL","Schools Block Centrally Managed","Educational Attainment for Looked After Children","Consultants Fees",03/09/2018 00:00:00,"6669135",784.96,"TEACHING PERSONNEL LTD"
"Bracknell Forest Council","http://opendatacommunities.org/id/unitary-authority/bracknell-forest","","","Management and Support Services - CYPL","Schools Block Centrally Managed","Educational Attainment for Looked After Children","Consultants Fees",25/07/2018 00:00:00,"6669415",929.46,"TEACHING PERSONNEL LTD"
"Bracknell Forest Council","http://opendatacommunities.org/id/unitary-authority/bracknell-forest","","","Management and Support Services - CYPL","Schools Block Centrally Managed","Educational Attainment for Looked After Children","Consultants Fees",03/10/2018 00:00:00,"6669554",1114.65,"TEACHING PERSONNEL LTD"
"Bracknell Forest Council","http://opendatacommunities.org/id/unitary-authority/bracknell-forest","","","Management and Support Services - CYPL","Schools Block Centrally Managed","Educational Attainment for Looked After Children","Consultants Fees",01/10/2018 00:00:00,"6669561",3485,"XL EDUCATION SOLUTIONS LTD"
"Bracknell Forest Council","http://opendatacommunities.org/id/unitary-authority/bracknell-forest","","","Management and Support Services - CYPL","Schools Block Centrally Managed","Educational Attainment for Looked After Children","Occasional Hire of Premises",04/10/2018 00:00:00,"6669615",500,"COPPID BEECH HOTEL"
"Bracknell Forest Council","http://opendatacommunities.org/id/unitary-authority/bracknell-forest","","","Management and Support Services - CYPL","Schools Block Centrally Managed","Educational Attainment for Looked After Children","Consultants Fees",30/09/2018 00:00:00,"6669873",2128,"TLC EDUCATION GROUP T/A TLC LIVE"
"Bracknell Forest Council","http://opendatacommunities.org/id/unitary-authority/bracknell-forest","","","Management and Support Services - CYPL","Schools Block Centrally Managed","Educational Attainment for Looked After Children","Consultants Fees",10/10/2018 00:00:00,"6669961",1003.53,"TEACHING PERSONNEL LTD"
"Bracknell Forest Council","http://opendatacommunities.org/id/unitary-authority/bracknell-forest","","","Management and Support Services - CYPL","Schools Block Centrally Managed","Educational Attainment for Looked After Children","Consultants Fees",24/10/2018 00:00:00,"6670933",859.6,"TEACHING PERSONNEL LTD"
"Bracknell Forest Council","http://opendatacommunities.org/id/unitary-authority/bracknell-forest","","","Management and Support Services - CYPL","Schools Block Centrally Managed","Educational Attainment for Looked After Children","Consultants Fees",19/09/2018 00:00:00,"6671364",727.04,"TEACHING PERSONNEL LTD"
"Bracknell Forest Council","http://opendatacommunities.org/id/unitary-authority/bracknell-forest","","","Management and Support Services - CYPL","Schools Block Centrally Managed","Educational Attainment for Looked After Children","Consultants Fees",18/07/2018 00:00:00,"6671367",2622.18,"TEACHING PERSONNEL LTD"
"Bracknell Forest Council","http://opendatacommunities.org/id/unitary-authority/bracknell-forest","","","Management and Support Services - CYPL","Schools Block Centrally Managed","Educational Attainment for Looked After Children","Consultants Fees",31/10/2018 00:00:00,"6671451",4305,"XL EDUCATION SOLUTIONS LTD"
"Bracknell Forest Council","http://opendatacommunities.org/id/unitary-authority/bracknell-forest","","","Management and Support Services - CYPL","Schools Block Centrally Managed","Educational Attainment for Looked After Children","Consultants Fees",31/10/2018 00:00:00,"6671784",3690,"XL EDUCATION SOLUTIONS LTD"
"Bracknell Forest Council","http://opendatacommunities.org/id/unitary-authority/bracknell-forest","","","Management and Support Services - CYPL","Schools Block Centrally Managed","Educational Attainment for Looked After Children","Consultants Fees",17/10/2018 00:00:00,"6671805",1207.82,"TEACHING PERSONNEL LTD"
"Bracknell Forest Council","http://opendatacommunities.org/id/unitary-authority/bracknell-forest","","","Management and Support Services - CYPL","Schools Block Centrally Managed","Educational Attainment for Looked After Children","Consultants Fees",13/11/2018 00:00:00,"6672016",617.5,"COPPID BEECH HOTEL"
"Bracknell Forest Council","http://opendatacommunities.org/id/unitary-authority/bracknell-forest","","","Management and Support Services - CYPL","Schools Block Centrally Managed","Educational Attainment for Looked After Children","Consultants Fees",09/11/2018 00:00:00,"6672116",7850,"XL EDUCATION SOLUTIONS LTD"
"Bracknell Forest Council","http://opendatacommunities.org/id/unitary-authority/bracknell-forest","","","Management and Support Services - CYPL","Schools Block Centrally Managed","Educational Attainment for Looked After Children","Consultants Fees",14/11/2018 00:00:00,"6672150",505.9,"TEACHING PERSONNEL LTD"
"Bracknell Forest Council","http://opendatacommunities.org/id/unitary-authority/bracknell-forest","","","Management and Support Services - CYPL","Schools Block Centrally Managed","Educational Attainment for Looked After Children","Consultants Fees",21/11/2018 00:00:00,"6672442",2250,"KIMICHI SCHOOL"
"Bracknell Forest Council","http://opendatacommunities.org/id/unitary-authority/bracknell-forest","","","Management and Support Services - CYPL","Schools Block Centrally Managed","Educational Attainment for Looked After Children","Consultants Fees",31/10/2018 00:00:00,"6672582",1102,"TLC EDUCATION GROUP T/A TLC LIVE"
"Bracknell Forest Council","http://opendatacommunities.org/id/unitary-authority/bracknell-forest","","","Management and Support Services - CYPL","Schools Block Centrally Managed","Educational Attainment for Looked After Children","Consultants Fees",03/12/2018 00:00:00,"6672945",1440,"XL EDUCATION SOLUTIONS LTD"
"Bracknell Forest Council","http://opendatacommunities.org/id/unitary-authority/bracknell-forest","","","Management and Support Services - CYPL","Schools Block Centrally Managed","Educational Attainment for Looked After Children","Consultants Fees",03/12/2018 00:00:00,"6672947",3960,"XL EDUCATION SOLUTIONS LTD"
"Bracknell Forest Council","http://opendatacommunities.org/id/unitary-authority/bracknell-forest","","","Management and Support Services - CYPL","Schools Block Centrally Managed","Educational Attainment for Looked After Children","Consultants Fees",03/12/2018 00:00:00,"6672948",3850,"XL EDUCATION SOLUTIONS LTD"
"Bracknell Forest Council","http://opendatacommunities.org/id/unitary-authority/bracknell-forest","","","Management and Support Services - CYPL","Schools Block Centrally Managed","Educational Attainment for Looked After Children","Consultants Fees",03/12/2018 00:00:00,"6672950",1560,"XL EDUCATION SOLUTIONS LTD"
"Bracknell Forest Council","http://opendatacommunities.org/id/unitary-authority/bracknell-forest","","","Management and Support Services - CYPL","Schools Block Centrally Managed","Young People in Sport","Contracted Services",30/09/2018 00:00:00,"6669605",1248,"EB SPORTS - EAST BERKSHIRE CRICKET COACHING"
"Bracknell Forest Council","http://opendatacommunities.org/id/unitary-authority/bracknell-forest","","","Management and Support Services - CYPL","Schools Block Centrally Managed","Young People in Sport","Learning Resources - Purchase",19/10/2018 00:00:00,"6670899",571.52,"RUNNING IMP INTERNATIONAL"
"Bracknell Forest Council","http://opendatacommunities.org/id/unitary-authority/bracknell-forest","","","Management and Support Services - CYPL","Schools Block Centrally Managed","Young People in Sport","Consultants Fees",22/10/2018 00:00:00,"6670986",1224,"EB SPORTS - EAST BERKSHIRE CRICKET COACHING"
"Bracknell Forest Council","http://opendatacommunities.org/id/unitary-authority/bracknell-forest","","","Management and Support Services - CYPL","Schools Block Centrally Managed","Young People in Sport","Consultants Fees",02/11/2018 00:00:00,"6671483",1224,"EB SPORTS - EAST BERKSHIRE CRICKET COACHING"
"Bracknell Forest Council","http://opendatacommunities.org/id/unitary-authority/bracknell-forest","","","Management and Support Services - CYPL","Schools Block Centrally Managed","Young People in Sport","Learning Resources - Purchase",19/11/2018 00:00:00,"6672366",576,"WERNICK EVENT HIRE LIMITED"
"Bracknell Forest Council","http://opendatacommunities.org/id/unitary-authority/bracknell-forest","","","Management and Support Services - CYPL","Unallocated High Needs Related Expenditure","Delegated ISB - SEN Contingency","Contracted Services",30/07/2018 00:00:00,"6665672",3025,"EDGBARROW ACADEMY"
"Bracknell Forest Council","http://opendatacommunities.org/id/unitary-authority/bracknell-forest","","","Management and Support Services - CYPL","Unallocated High Needs Related Expenditure","Delegated ISB - SEN Contingency","Contracted Services",31/08/2018 00:00:00,"6667501",3025,"EDGBARROW ACADEMY"
"Bracknell Forest Council","http://opendatacommunities.org/id/unitary-authority/bracknell-forest","","","Management and Support Services - CYPL","Unallocated High Needs Related Expenditure","Delegated ISB - SEN Contingency","Contracted Services",27/09/2018 00:00:00,"6668993",3025,"EDGBARROW ACADEMY"
"Bracknell Forest Council","http://opendatacommunities.org/id/unitary-authority/bracknell-forest","","","Management and Support Services - CYPL","Unallocated High Needs Related Expenditure","Delegated ISB - SEN Contingency","Contracted Services",05/11/2018 00:00:00,"6672192",3025,"EDGBARROW ACADEMY"
"Bracknell Forest Council","http://opendatacommunities.org/id/unitary-authority/bracknell-forest","","","Management and Support Services - CYPL","Unallocated High Needs Related Expenditure","Delegated ISB - SEN Contingency","Contracted Services",28/11/2018 00:00:00,"6672698",3025,"EDGBARROW ACADEMY"
"Bracknell Forest Council","http://opendatacommunities.org/id/unitary-authority/bracknell-forest","","","Primary Schools","Early Year's Free Entitlement","Free Entitlements for 3 Year Olds","Grants and Donations",29/08/2018 00:00:00,"30341301",1573.12,"Redact Personal Info"
"Bracknell Forest Council","http://opendatacommunities.org/id/unitary-authority/bracknell-forest","","","Primary Schools","Early Year's Free Entitlement","Free Entitlements for 3 Year Olds","Grants and Donations",29/08/2018 00:00:00,"30341301",-16.5,"Redact Personal Info"
"Bracknell Forest Council","http://opendatacommunities.org/id/unitary-authority/bracknell-forest","","","Primary Schools","Early Year's Free Entitlement","Free Entitlements for 3 Year Olds","Grants and Donations",10/09/2018 00:00:00,"30342034",416.35,"Redact Personal Info"
"Bracknell Forest Council","http://opendatacommunities.org/id/unitary-authority/bracknell-forest","","","Primary Schools","Early Year's Free Entitlement","Free Entitlements for 3 Year Olds","Grants and Donations",18/09/2018 00:00:00,"30342386",615,"Redact Personal Info"
"Bracknell Forest Council","http://opendatacommunities.org/id/unitary-authority/bracknell-forest","","","Primary Schools","Early Year's Free Entitlement","Free Entitlements for 3 Year Olds","Grants and Donations",15/10/2018 00:00:00,"30344050",701794.8,"Redact Personal Info"
"Bracknell Forest Council","http://opendatacommunities.org/id/unitary-authority/bracknell-forest","","","Primary Schools","Early Year's Free Entitlement","Free Entitlements for 3 Year Olds","Grants and Donations",22/10/2018 00:00:00,"30344295",120.68,"Redact Personal Info"
"Bracknell Forest Council","http://opendatacommunities.org/id/unitary-authority/bracknell-forest","","","Primary Schools","Early Year's Free Entitlement","Free Entitlements for 3 Year Olds","Grants and Donations",06/11/2018 00:00:00,"30345243",844.76,"Redact Personal Info"
"Bracknell Forest Council","http://opendatacommunities.org/id/unitary-authority/bracknell-forest","","","Primary Schools","Early Year's Free Entitlement","Free Entitlements for 3 Year Olds","Grants and Donations",26/11/2018 00:00:00,"30346242",21989.52,"Redact Personal Info"
"Bracknell Forest Council","http://opendatacommunities.org/id/unitary-authority/bracknell-forest","","","Primary Schools","Early Year's Free Entitlement","Free Entitlements for 3 Year Olds","Grants and Donations",04/12/2018 00:00:00,"30346784",989.1,"Redact Personal Info"
"Bracknell Forest Council","http://opendatacommunities.org/id/unitary-authority/bracknell-forest","","","Primary Schools","Centrally managed Expenditure - Early Years","Disability Access Fund","Grants and Donations",03/10/2018 00:00:00,"30343495",1845,"Redact Personal Info"
"Bracknell Forest Council","http://opendatacommunities.org/id/unitary-authority/bracknell-forest","","","Primary Schools","Centrally managed Expenditure - Early Years","Disability Access Fund","Grants and Donations",15/10/2018 00:00:00,"30344049",615,"Redact Personal Info"
"Bracknell Forest Council","http://opendatacommunities.org/id/unitary-authority/bracknell-forest","","","Primary Schools","Centrally managed Expenditure - Early Years","Disability Access Fund","Grants and Donations",16/10/2018 00:00:00,"30344076",615,"Redact Personal Info"
"Bracknell Forest Council","http://opendatacommunities.org/id/unitary-authority/bracknell-forest","","","Primary Schools","Centrally managed Expenditure - Early Years","Disability Access Fund","Grants and Donations",16/11/2018 00:00:00,"30345855",1230,"Redact Personal Info"
"Bracknell Forest Council","http://opendatacommunities.org/id/unitary-authority/bracknell-forest","","","Primary Schools","Centrally managed Expenditure - Early Years","Disability Access Fund","Grants and Donations",21/11/2018 00:00:00,"30346000",615,"Redact Personal Info"
"Bracknell Forest Council","http://opendatacommunities.org/id/unitary-authority/bracknell-forest","","","Primary Schools","Centrally managed Expenditure - Early Years","EAL Specialist Support","Other Fees for Bought-in Services",31/05/2018 00:00:00,"6666908",27500,"BRACKNELL PRE-SCHOOL LEARNING ALLIANCE"
"Bracknell Forest Council","http://opendatacommunities.org/id/unitary-authority/bracknell-forest","","","Primary Schools","Centrally managed Expenditure - Early Years","EY Delivery Support Grant","Other Fees for Bought-in Services",13/08/2018 00:00:00,"6667174",1032,"FLOURISHING PEOPLE LIMITED"
"Bracknell Forest Council","http://opendatacommunities.org/id/unitary-authority/bracknell-forest","","","Primary Schools","Centrally managed Expenditure - Early Years","EY Delivery Support Grant","Other Fees for Bought-in Services",17/09/2018 00:00:00,"6669229",850,"CAPITA BUSINESS SERVICES LTD"
"Bracknell Forest Council","http://opendatacommunities.org/id/unitary-authority/bracknell-forest","","","Primary Schools","Centrally managed Expenditure - Early Years","EY Delivery Support Grant","Other Fees for Bought-in Services",24/09/2018 00:00:00,"6669230",1050,"CAPITA BUSINESS SERVICES LTD"
"Bracknell Forest Council","http://opendatacommunities.org/id/unitary-authority/bracknell-forest","","","Primary Schools","Centrally managed Expenditure - Early Years","EY Delivery Support Grant","Other Fees for Bought-in Services",09/10/2018 00:00:00,"6670212",3000,"CAPITA BUSINESS SERVICES LTD"
"Bracknell Forest Council","http://opendatacommunities.org/id/unitary-authority/bracknell-forest","","","Primary Schools","Early Year's Free Entitlement","EY Free Entitlement","Contracted Services",30/07/2018 00:00:00,"6665674",5530.97,"GREAT HOLLANDS PRIMARY ACADEMY"
"Bracknell Forest Council","http://opendatacommunities.org/id/unitary-authority/bracknell-forest","","","Primary Schools","Early Year's Free Entitlement","EY Free Entitlement","Contracted Services",30/07/2018 00:00:00,"6665759",7179.23,"JENNETTS PARK ACADEMY"
"Bracknell Forest Council","http://opendatacommunities.org/id/unitary-authority/bracknell-forest","","","Primary Schools","Early Year's Free Entitlement","EY Free Entitlement","Contracted Services",31/08/2018 00:00:00,"6667499",3934.51,"CROWNWOOD ACADEMY"
"Bracknell Forest Council","http://opendatacommunities.org/id/unitary-authority/bracknell-forest","","","Primary Schools","Early Year's Free Entitlement","EY Free Entitlement","Contracted Services",31/08/2018 00:00:00,"6667499",10644.83,"CROWNWOOD ACADEMY"
"Bracknell Forest Council","http://opendatacommunities.org/id/unitary-authority/bracknell-forest","","","Primary Schools","Early Year's Free Entitlement","EY Free Entitlement","Contracted Services",31/08/2018 00:00:00,"6667502",5530.96,"GREAT HOLLANDS PRIMARY ACADEMY"
"Bracknell Forest Council","http://opendatacommunities.org/id/unitary-authority/bracknell-forest","","","Primary Schools","Early Year's Free Entitlement","EY Free Entitlement","Contracted Services",27/09/2018 00:00:00,"6668954",10644.83,"CROWNWOOD ACADEMY"
"Bracknell Forest Council","http://opendatacommunities.org/id/unitary-authority/bracknell-forest","","","Primary Schools","Early Year's Free Entitlement","EY Free Entitlement","Contracted Services",27/09/2018 00:00:00,"6669006",8533.96,"GREAT HOLLANDS PRIMARY ACADEMY"
"Bracknell Forest Council","http://opendatacommunities.org/id/unitary-authority/bracknell-forest","","","Primary Schools","Early Year's Free Entitlement","EY Free Entitlement","Contracted Services",27/09/2018 00:00:00,"6669009",7179.24,"JENNETTS PARK ACADEMY"
"Bracknell Forest Council","http://opendatacommunities.org/id/unitary-authority/bracknell-forest","","","Primary Schools","Early Year's Free Entitlement","EY Free Entitlement","Contracted Services",27/09/2018 00:00:00,"6669024",7179.24,"JENNETTS PARK ACADEMY"
"Bracknell Forest Council","http://opendatacommunities.org/id/unitary-authority/bracknell-forest","","","Primary Schools","Early Year's Free Entitlement","EY Free Entitlement","Contracted Services",05/11/2018 00:00:00,"6671222",10644.83,"CROWNWOOD ACADEMY"
"Bracknell Forest Council","http://opendatacommunities.org/id/unitary-authority/bracknell-forest","","","Primary Schools","Early Year's Free Entitlement","EY Free Entitlement","Contracted Services",05/11/2018 00:00:00,"6671258",9189.33,"GREAT HOLLANDS PRIMARY ACADEMY"
"Bracknell Forest Council","http://opendatacommunities.org/id/unitary-authority/bracknell-forest","","","Primary Schools","Early Year's Free Entitlement","EY Free Entitlement","Contracted Services",05/11/2018 00:00:00,"6671259",8667.67,"JENNETTS PARK ACADEMY"
"Bracknell Forest Council","http://opendatacommunities.org/id/unitary-authority/bracknell-forest","","","Primary Schools","Early Year's Free Entitlement","EY Free Entitlement","Contracted Services",27/11/2018 00:00:00,"6672615",10644.83,"CROWNWOOD ACADEMY"
"Bracknell Forest Council","http://opendatacommunities.org/id/unitary-authority/bracknell-forest","","","Primary Schools","Early Year's Free Entitlement","EY Free Entitlement","Contracted Services",30/11/2018 00:00:00,"6672754",8667.67,"JENNETTS PARK ACADEMY"
"Bracknell Forest Council","http://opendatacommunities.org/id/unitary-authority/bracknell-forest","","","Sure Start Children's Centres","Centrally managed expenditure - children's centres","EH Children's Centres","Other Fees for Bought-in Services",09/08/2018 00:00:00,"6667734",2033.33,"BERKSHIRE HEALTHCARE NHS FOUNDATION TRUST"
"Bracknell Forest Council","http://opendatacommunities.org/id/unitary-authority/bracknell-forest","","","Sure Start Children's Centres","Centrally managed expenditure - children's centres","EH Children's Centres","Other Fees for Bought-in Services",10/05/2018 00:00:00,"6668006",4449.72,"CITIZENS ADVICE BUREAU"
"Bracknell Forest Council","http://opendatacommunities.org/id/unitary-authority/bracknell-forest","","","Sure Start Children's Centres","Centrally managed expenditure - children's centres","EH Children's Centres","Learning Resources - Purchase",18/10/2018 00:00:00,"6670880",506.25,"CARE FOR THE FAMILY"
"Bracknell Forest Council","http://opendatacommunities.org/id/unitary-authority/bracknell-forest","","","Sure Start Children's Centres","Centrally managed expenditure - children's centres","EH Children's Centres","Other Fees for Bought-in Services",29/10/2018 00:00:00,"6671189",2033.33,"BERKSHIRE HEALTHCARE NHS FOUNDATION TRUST"
"Bracknell Forest Council","http://opendatacommunities.org/id/unitary-authority/bracknell-forest","","","Sure Start Children's Centres","Centrally managed expenditure - children's centres","EH Children's Centres","Other Fees for Bought-in Services",08/11/2018 00:00:00,"6671697",2033.33,"BERKSHIRE HEALTHCARE NHS FOUNDATION TRUST"
"Bracknell Forest Council","http://opendatacommunities.org/id/unitary-authority/bracknell-forest","","","Sure Start Children's Centres","Children's centres - direct","The Oaks Children's Centre","Office Stationery",22/08/2018 00:00:00,"30341721",22.64,"COMMERCIAL LTD"
"Bracknell Forest Council","http://opendatacommunities.org/id/unitary-authority/bracknell-forest","","","Sure Start Children's Centres","Children's centres - direct","The Oaks Children's Centre","Office Stationery",22/08/2018 00:00:00,"30341721",22.64,"COMMERCIAL LTD"
"Bracknell Forest Council","http://opendatacommunities.org/id/unitary-authority/bracknell-forest","","","Sure Start Children's Centres","Children's centres - direct","The Oaks Children's Centre","Office Stationery",22/08/2018 00:00:00,"30341721",0.25,"COMMERCIAL LTD"
"Bracknell Forest Council","http://opendatacommunities.org/id/unitary-authority/bracknell-forest","","","Sure Start Children's Centres","Children's centres - direct","The Oaks Children's Centre","Office Stationery",22/08/2018 00:00:00,"30341721",0.14,"COMMERCIAL LTD"
"Bracknell Forest Council","http://opendatacommunities.org/id/unitary-authority/bracknell-forest","","","Sure Start Children's Centres","Children's centres - direct","The Oaks Children's Centre","Office Stationery",24/09/2018 00:00:00,"30343350",15.52,"COMMERCIAL LTD"
"Bracknell Forest Council","http://opendatacommunities.org/id/unitary-authority/bracknell-forest","","","Business Support","Premises Development","Easthampstead Park Centre - Catering","Cost of Goods Sold",18/01/2017 00:00:00,"30342799",-19.22,"Redact Personal Info"
"Bracknell Forest Council","http://opendatacommunities.org/id/unitary-authority/bracknell-forest","","","Business Support","Premises Development","Easthampstead Park Centre - Catering","Cost of Goods Sold",05/09/2018 00:00:00,"30342799",160.31,"THE QUALITY MEAT COMPANY"
"Bracknell Forest Council","http://opendatacommunities.org/id/unitary-authority/bracknell-forest","","","Business Support","Premises Development","Easthampstead Park Centre - Catering","Cost of Goods Sold",08/09/2018 00:00:00,"30342799",51.33,"THE QUALITY MEAT COMPANY"
"Bracknell Forest Council","http://opendatacommunities.org/id/unitary-authority/bracknell-forest","","","Business Support","Premises Development","Easthampstead Park Centre - Catering","Cost of Goods Sold",13/09/2018 00:00:00,"30342799",95.57,"THE QUALITY MEAT COMPANY"
"Bracknell Forest Council","http://opendatacommunities.org/id/unitary-authority/bracknell-forest","","","Business Support","Premises Development","Easthampstead Park Centre - Catering","Cost of Goods Sold",13/09/2018 00:00:00,"30342799",328.75,"THE QUALITY MEAT COMPANY"
"Bracknell Forest Council","http://opendatacommunities.org/id/unitary-authority/bracknell-forest","","","Business Support","Premises Development","Easthampstead Park Centre - Catering","Cost of Goods Sold",14/09/2018 00:00:00,"30342799",11.73,"THE QUALITY MEAT COMPANY"
"Bracknell Forest Council","http://opendatacommunities.org/id/unitary-authority/bracknell-forest","","","Business Support","Premises Development","Easthampstead Park Centre - Catering","Cost of Goods Sold",14/09/2018 00:00:00,"30342799",281.45,"THE QUALITY MEAT COMPANY"
"Bracknell Forest Council","http://opendatacommunities.org/id/unitary-authority/bracknell-forest","","","Business Support","Premises Development","Easthampstead Park Centre - Catering","Cost of Goods Sold",15/09/2018 00:00:00,"30342799",430.28,"THE QUALITY MEAT COMPANY"
"Bracknell Forest Council","http://opendatacommunities.org/id/unitary-authority/bracknell-forest","","","Business Support","Premises Development","Easthampstead Park Centre - Catering","Cost of Goods Sold",17/09/2018 00:00:00,"30342799",424.92,"BRAKE BROS FOODSERVICE LTD"
"Bracknell Forest Council","http://opendatacommunities.org/id/unitary-authority/bracknell-forest","","","Business Support","Premises Development","Easthampstead Park Centre - Catering","Cost of Goods Sold",17/09/2018 00:00:00,"30342799",51.02,"BRAKE BROS FOODSERVICE LTD"
"Bracknell Forest Council","http://opendatacommunities.org/id/unitary-authority/bracknell-forest","","","Business Support","Premises Development","Easthampstead Park Centre - Catering","Cost of Goods Sold",17/09/2018 00:00:00,"30342799",49.3,"BRAKE BROS FOODSERVICE LTD"
"Bracknell Forest Council","http://opendatacommunities.org/id/unitary-authority/bracknell-forest","","","Business Support","Premises Development","Easthampstead Park Centre - Catering","Cost of Goods Sold",17/09/2018 00:00:00,"30342799",216.83,"THE QUALITY MEAT COMPANY"
"Bracknell Forest Council","http://opendatacommunities.org/id/unitary-authority/bracknell-forest","","","Business Support","Premises Development","Easthampstead Park Centre - Catering","Cost of Goods Sold",17/09/2018 00:00:00,"30342799",22.5,"THE QUALITY MEAT COMPANY"
"Bracknell Forest Council","http://opendatacommunities.org/id/unitary-authority/bracknell-forest","","","Business Support","Premises Development","Easthampstead Park Centre - Catering","Cost of Goods Sold",18/09/2018 00:00:00,"30342799",203.94,"THE QUALITY MEAT COMPANY"
"Bracknell Forest Council","http://opendatacommunities.org/id/unitary-authority/bracknell-forest","","","Business Support","Premises Development","Easthampstead Park Centre - Catering","Cost of Goods Sold",18/09/2018 00:00:00,"30342799",506.19,"THE QUALITY MEAT COMPANY"
"Bracknell Forest Council","http://opendatacommunities.org/id/unitary-authority/bracknell-forest","","","Business Support","Premises Development","Easthampstead Park Centre - Catering","Cost of Goods Sold",18/09/2018 00:00:00,"30342799",67.95,"TOWN & COUNTRY FINE FOODS"
"Bracknell Forest Council","http://opendatacommunities.org/id/unitary-authority/bracknell-forest","","","Sure Start Children's Centres","Children's centres - direct","The Oaks Children's Centre","Office Stationery",24/09/2018 00:00:00,"30343350",26.58,"COMMERCIAL LTD"
"Bracknell Forest Council","http://opendatacommunities.org/id/unitary-authority/bracknell-forest","","","Sure Start Children's Centres","Children's centres - direct","The Oaks Children's Centre","Office Stationery",24/09/2018 00:00:00,"30343350",21.07,"COMMERCIAL LTD"
"Bracknell Forest Council","http://opendatacommunities.org/id/unitary-authority/bracknell-forest","","","Sure Start Children's Centres","Children's centres - direct","The Oaks Children's Centre","Office Stationery",24/09/2018 00:00:00,"30343350",0.9,"COMMERCIAL LTD"
"Bracknell Forest Council","http://opendatacommunities.org/id/unitary-authority/bracknell-forest","","","Sure Start Children's Centres","Children's centres - direct","The Oaks Children's Centre","Office Stationery",24/09/2018 00:00:00,"30343350",9.7,"COMMERCIAL LTD"
"Bracknell Forest Council","http://opendatacommunities.org/id/unitary-authority/bracknell-forest","","","Sure Start Children's Centres","Children's centres - direct","The Oaks Children's Centre","Office Stationery",24/09/2018 00:00:00,"30343350",13.12,"COMMERCIAL LTD"
"Bracknell Forest Council","http://opendatacommunities.org/id/unitary-authority/bracknell-forest","","","Sure Start Children's Centres","Children's centres - direct","The Oaks Children's Centre","Office Stationery",22/10/2018 00:00:00,"30345767",11.32,"COMMERCIAL LTD"
"Bracknell Forest Council","http://opendatacommunities.org/id/unitary-authority/bracknell-forest","","","Sure Start Children's Centres","Children's centres - direct","The Oaks Children's Centre","Office Stationery",22/10/2018 00:00:00,"30345767",0.84,"COMMERCIAL LTD"
